Workbook

Sheet Notes
A1: NSW State Water
A3: Instructions
A5: The purpose of this model is to illustrate the workings of the form of price control formulae which will apply in the ACCC's setting of Tariffs for the Regulatory Period 2014-15 to 2016-17.
A6: The model calculates Tariffs for the Regulatory Period 2014-15 to 2016-17 based on actual inflation rates , actual water usage and actual average water allocations.
A8: Note the 2014-15 tariffs in this model (at the time of the Final Decision) are to apply for the year 2014-15.
A10: The State Water data input fields in this model (at the time of the Final Decision) are blank.
A12: The State Water data input fields are to be populated in 2015 and 2016 in order for the model to calculate applicable prices for 2015-16 and 2016-17
A14: State Water data input fields are shaded | C14: and located in tab "State Water data inputs".
H77: =G77 -> 0 | I77: =H77 -> 0 | J77: =I77 -> 0 | K77: =J77 -> 0 | L77: =K77 -> 0

Sheet State Water data inputs
A2: Actual CPI
A3: CPI All Groups, Weighted Average of Eight Capital Cities, Index Numbers
A4: CPI Index March 2013 | B4: 102.4
A5: CPI Index March 2014 | B5: 105.4
A6: CPI Index March 2015
A7: CPI Index March 2016
C10: 2014-15 | D10: 2015-16 | E10: 2016-17
A11: Actual CPI | C11: =IF(B5="",0,B5/B4-1) -> 0.029296875 | D11: =IF(B6="",0,B6/B5-1) -> 0 | E11: =IF(B7="",0,B7/B6-1) -> 0
B14: Forecast Data | F14: Estimated Data | K14: Actual Data
A15: General Security Entitlement (ML) | B15: General Security Entitlement (ML) | F15: General Security Entitlement (ML) | K15: General Security Entitlement (ML)
B16: 2014-15 | C16: 2015-16 | D16: 2016-17 | F16: 2014-15 | G16: 2015-16 | H16: 2016-17 | K16: 2014-15 | L16: 2015-16 | M16: 2016-17
A17: Border | B17: ='ACCC data inputs'!C19 -> 263238
A18: Gwydir | B18: ='ACCC data inputs'!C20 -> 509665
A19: Namoi | B19: ='ACCC data inputs'!C21 -> 256076
A20: Peel | C20: Not Required | F20: Not Required
A21: Lachlan | B21: ='ACCC data inputs'!C23 -> 632837
A22: Macquarie | B22: ='ACCC data inputs'!C24 -> 631716
A23: Murray | B23: ='ACCC data inputs'!C25 -> 2075822
A24: Murrumbidgee | B24: ='ACCC data inputs'!C26 -> 2260113
A25: Lowbidgee | C25: Not Required | F25: Not Required
A28: High Security Entitlement (ML) | B28: Forecast Data | F28: Estimated Data | K28: Actual Data
B29: High Security Entitlement (ML) | F29: High Security Entitlement (ML) | K29: High Security Entitlement (ML)
B30: 2014-15 | C30: 2015-16 | D30: 2016-17 | F30: 2014-15 | G30: 2015-16 | H30: 2016-17 | K30: 2014-15 | L30: 2015-16 | M30: 2016-17
A31: Border | B31: ='ACCC data inputs'!D19 -> 3122
A32: Gwydir | B32: ='ACCC data inputs'!D20 -> 21457.9
A33: Namoi | B33: ='ACCC data inputs'!D21 -> 8881
A34: Peel | C34: Not Required | F34: Not Required
A35: Lachlan | B35: ='ACCC data inputs'!D23 -> 60745
A36: Macquarie | B36: ='ACCC data inputs'!D24 -> 42606
A37: Murray | B37: ='ACCC data inputs'!D25 -> 261400.7
A38: Murrumbidgee | B38: ='ACCC data inputs'!D26 -> 436928
B41: Forecast Data (20 year average) | F41: Estimated Data | J41: Actual Data
A42: Water Volumes (ML) | B42: Water Volumes (ML) | F42: Water Volumes (ML) | J42: Water Volumes (ML)
B43: 2014-15 | C43: 2015-16 | D43: 2016-17 | F43: 2014-15 | G43: 2015-16 | H43: 2016-17 | J43: 2013-14 | K43: 2014-15 | L43: 2015-16 | M43: 2016-17
A44: Border | B44: ='Demand and Allocations data'!C$35 -> 140676.9395 | C44: ='Demand and Allocations data'!C$36 -> 137272.5895 | D44: ='Demand and Allocations data'!C$37 -> 134078.3895
A45: Gwydir | B45: ='Demand and Allocations data'!D$35 -> 245876.7405 | C45: ='Demand and Allocations data'!D$36 -> 240933.613 | D45: ='Demand and Allocations data'!D$37 -> 238674.575
A46: Namoi | B46: ='Demand and Allocations data'!E$35 -> 158960.9705 | C46: ='Demand and Allocations data'!E$36 -> 152848.5105 | D46: ='Demand and Allocations data'!E$37 -> 150866.7155
A47: Peel | B47: ='Demand and Allocations data'!F$35 -> 11163.91 | C47: ='Demand and Allocations data'!F$36 -> 10664.9 | D47: ='Demand and Allocations data'!F$37 -> 10069.09 | F47: Not Required
A48: Lachlan | B48: ='Demand and Allocations data'!G$35 -> 227697.179 | C48: ='Demand and Allocations data'!G$36 -> 213448.4265 | D48: ='Demand and Allocations data'!G$37 -> 193955.308
A49: Macquarie | B49: ='Demand and Allocations data'!H$35 -> 279670.6685 | C49: ='Demand and Allocations data'!H$36 -> 253939.8495 | D49: ='Demand and Allocations data'!H$37 -> 245588.856
A50: Murray | B50: ='Demand and Allocations data'!I$35 -> 1459688.934 | C50: ='Demand and Allocations data'!I$36 -> 1368381.784 | D50: ='Demand and Allocations data'!I$37 -> 1261589.234
A51: Murrumbidgee | B51: ='Demand and Allocations data'!J$35 -> 1759739.925 | C51: ='Demand and Allocations data'!J$36 -> 1655354.475 | D51: ='Demand and Allocations data'!J$37 -> 1527092.425
B56: Actual Data | G56: Actual Data | L56: (20 year average)
A57: Water Allocation Rates | B57: General Security - Water Allocation (%) | G57: High Security - Water Allocation (%) | L57: Average Water Allocation (AWA)
B58: 2013-14 | C58: 2014-15 | D58: 2015-16 | E58: 2016-17 | G58: 2013-14 | H58: 2014-15 | I58: 2015-16 | J58: 2016-17 | L58: 2014-15 | M58: 2015-16 | N58: 2016-17
A59: Border | L59: ='Demand and Allocations data'!M$41 -> 2.318499677 | M59: ='Demand and Allocations data'!M$42 -> 2.220594258 | N59: ='Demand and Allocations data'!M$43 -> 2.103720876
A60: Gwydir | L60: ='Demand and Allocations data'!O$41 -> 2.246650589 | M60: ='Demand and Allocations data'!O$42 -> 2.134318059 | N60: ='Demand and Allocations data'!O$43 -> 2.02198553
A61: Namoi | L61: ='Demand and Allocations data'!Q$41 -> 1.720536962 | M61: ='Demand and Allocations data'!Q$42 -> 1.673378083 | N61: ='Demand and Allocations data'!Q$43 -> 1.585305553
A62: Peel | L62: ='Demand and Allocations data'!S$41 -> 1.467351431 | M62: ='Demand and Allocations data'!S$42 -> 1.504354711 | N62: ='Demand and Allocations data'!S$43 -> 1.483924155
A63: Lachlan | L63: ='Demand and Allocations data'!U$41 -> 1.645064806 | M63: ='Demand and Allocations data'!U$42 -> 1.755379388 | N63: ='Demand and Allocations data'!U$43 -> 1.805728518
A64: Macquarie | L64: ='Demand and Allocations data'!W$41 -> 1.960784314 | M64: ='Demand and Allocations data'!W$42 -> 2.065217391 | N64: ='Demand and Allocations data'!W$43 -> 2.142857143
A65: Murray | L65: ='Demand and Allocations data'!Y$41 -> 1.411111111 | M65: ='Demand and Allocations data'!Y$42 -> 1.479508197 | N65: ='Demand and Allocations data'!Y$43 -> 1.515555556
A66: Murrumbidgee | L66: ='Demand and Allocations data'!AA$41 -> 1.412543353 | M66: ='Demand and Allocations data'!AA$42 -> 1.467531646 | N66: ='Demand and Allocations data'!AA$43 -> 1.507697595
A70: Fish River
B71: Forecast Data (20 year average) | F71: Estimated Data | J71: Actual Data
A72: Water Volumes (ML) | B72: Water Volumes (ML) | F72: Water Volumes (ML) | J72: Water Volumes (ML)
B73: 2014-15 | C73: 2015-16 | D73: 2016-17 | F73: 2014-15 | G73: 2015-16 | H73: 2016-17 | J73: 2013-14 | K73: 2014-15 | L73: 2015-16 | M73: 2016-17
A74: BULK RAW WATER
A75: - Delta Electricity | B75: ='Demand and Allocations data'!$AE$35 -> 6189.8482 | C75: ='Demand and Allocations data'!$AE$36 -> 5929.7982 | D75: ='Demand and Allocations data'!AE$37 -> 5615.7482
A76: - Sydney Catchment Authority | B76: ='Demand and Allocations data'!$AF$35 -> 2411.62875 | C76: ='Demand and Allocations data'!$AF$36 -> 2224.82875 | D76: ='Demand and Allocations data'!AF$37 -> 2060.17875
A77: - Oberon Council | B77: ='Demand and Allocations data'!$AG$35 -> 717.08692 | C77: ='Demand and Allocations data'!$AG$36 -> 681.88692 | D77: ='Demand and Allocations data'!AG$37 -> 652.08692
A78: - Individual Minor Customers | B78: ='Demand and Allocations data'!$AI$35 -> 52.09287623 | C78: ='Demand and Allocations data'!$AI$36 -> 46.22923347 | D78: ='Demand and Allocations data'!AI$37 -> 44.08809423
A79: BULK FILTERED WATER
A80: - Lithgow Council | B80: ='Demand and Allocations data'!$AH$35 -> 985.5005 | C80: ='Demand and Allocations data'!$AH$36 -> 881.1005 | D80: ='Demand and Allocations data'!AH$37 -> 807.1005
A81: - Individual Minor Customers | B81: ='Demand and Allocations data'!$AJ$35 -> 131.8055767 | C81: ='Demand and Allocations data'!$AJ$36 -> 116.748685 | D81: ='Demand and Allocations data'!AJ$37 -> 111.2505837
B84: Forecast Data | F84: Estimated Data | K84: Actual Data
B85: Number of Minor Customers | F85: Number of Minor Customers | K85: Number of Minor Customers
A86: Number of Minor Customers | B86: 2014-15 | C86: 2015-16 | D86: 2016-17 | F86: 2014-15 | G86: 2015-16 | H86: 2016-17 | K86: 2014-15 | L86: 2015-16 | M86: 2016-17
A87: BULK RAW WATER | B87: ='ACCC data inputs'!G29 -> 74
A88: BULK FILTERED WATER | B88: ='ACCC data inputs'!G30 -> 208

Sheet ACCC data inputs
B3: Benchmark Revenue (Rev BBM)
B4: ($ Real 2013-14) | F4: MDBA / BCR costs
B5: 2014-15 | C5: 2015-16 | D5: 2016-17 | F5: ($ Real 2013-14) | G5: 2014-15 | H5: 2015-16 | I5: 2016-17
A6: Border | B6: 1492913.586 | C6: 1500530.613 | D6: 1508186.502 | F6: Border | G6: 700000 | H6: 700000 | I6: 700000
A7: Gwydir | B7: 4836836.082 | C7: 4904575.592 | D7: 4973263.79 | F7: Gwydir | G7: 0 | H7: 0 | I7: 0
A8: Namoi | B8: 5131008.462 | C8: 5165594.195 | D8: 5200413.055 | F8: Namoi | G8: 0 | H8: 0 | I8: 0
A9: Peel | F9: Peel
A10: Lachlan | B10: 6790422.257 | C10: 6927298.326 | D10: 7066933.436 | F10: Lachlan | G10: 0 | H10: 0 | I10: 0
A11: Macquarie | B11: 6521658.324 | C11: 6644104.1 | D11: 6768848.827 | F11: Macquarie | G11: 0 | H11: 0 | I11: 0
A12: Murray | B12: 6057234.654 | C12: 5950350.123 | D12: 5845351.652 | F12: Murray | G12: 10200000 | H12: 10400000 | I12: 9300000
A13: Murrumbidgee | B13: 9986019.517 | C13: 9955319.521 | D13: 9924713.906 | F13: Murrumbidgee | G13: 2300000 | H13: 2300000 | I13: 2100000
A14: Lowbidgee | F14: Lowbidgee
A15: Fish River | B15: 9444699.659 | C15: 9548404.016 | D15: 9653247.062 | F15: Fish River
B17: Water sharing plan ratio (WSP) | C17: General Security Entitlement (ML) | D17: High Security Entitlement (ML) | F17: Fish River
B18: 2014-17 | C18: 2014-15 | D18: 2014-15 | F18: Minimum Annual Quantity (MAQ) | G18: 2014-15 | H18: 2015-16 | I18: 2016-17
A19: Border | B19: 1.28 | C19: 263238 | D19: 3122 | F19: BULK RAW WATER
A20: Gwydir | B20: 1.81 | C20: 509665 | D20: 21457.9 | F20: - Delta Electricity | G20: 8184 | H20: 8184 | I20: 8184
A21: Namoi | B21: 1.25 | C21: 256076 | D21: 8881 | F21: - Sydney Catchment Authority | G21: 3650 | H21: 3650 | I21: 3650
A22: Peel | F22: - Oberon Council | G22: 1064 | H22: 1064 | I22: 1064
A23: Lachlan | B23: 2.45 | C23: 632837 | D23: 60745 | F23: - Individual Minor Customers | G23: 200 | H23: 200 | I23: 200
A24: Macquarie | B24: 1.88 | C24: 631716 | D24: 42606 | F24: BULK FILTERED WATER
A25: Murray | B25: 1.25 | C25: 2075822 | D25: 261400.7 | F25: - Lithgow Council | G25: 1778 | H25: 1778 | I25: 1778
A26: Murrumbidgee | B26: 1.63 | C26: 2260113 | D26: 436928 | F26: - Individual Minor Customers | G26: 200 | H26: 200 | I26: 200
A27: Lowbidgee
F28: Number of Minor Customers | G28: 2014-15
A29: Tariff Structure 2014-17 | B29: 2014-15 | C29: 2015-16 | D29: 2016-17 | F29: BULK RAW WATER | G29: 74
A30: Target Variable / Fixed ratio (%) | B30: 0.6 | C30: 0.6 | D30: 0.6 | F30: BULK FILTERED WATER | G30: 208
A32: Fish River
A33: Raw Water /Filtered Water (%) | B33: 0.8 | C33: 0.8 | D33: 0.8
A34: Target Variable / Fixed ratio (%)
A35: Raw Water | B35: 0.45 | C35: 0.45 | D35: 0.45
A36: Filtered Water | B36: 0.4 | C36: 0.4 | D36: 0.4
A38: WACC | B38: 2014-15 | C38: 2015-16 | D38: 2016-17
A39: Real Pre Tax WACC | B39: 0.04257220868 | C39: 0.04257220868 | D39: 0.04257220868
A43: Peel Valley
A45: Base year prices per tariff component for 2013-14 ($ Nominal)
B46: High Security Entitlement ($/ML) | C46: General Security Entitlement ($/ML) | D46: Usage ($/ML delivered)
B47: 2013-14 | C47: 2013-14 | D47: 2013-14
A48: Peel Valley Opening prices | B48: 25.07631511 | C48: 2.757498724 | D48: 41.42221008
A51: Peel Valley Annual real price increase cap | B51: 0.1 | C51: 0.1 | D51: 0.1
A54: Lowbidgee
B55: 2014-15 | C55: 2015-16 | D55: 2016-17
A56: Tariffs ($ Real 2013-14)
A57: General Security Entitlement ($/ML) | B57: 0.7105504754 | C57: 0.7504347828 | D57: 0.7925578586

Sheet Demand and Allocations data
B3: Demand | L3: General Security and High Security Allocations | AD3: Fish River
A4: Year | C4: Border | D4: Gwydir | E4: Namoi | F4: Peel | G4: Lachlan | H4: Macquarie | I4: Murray | J4: Murrumbidgee | M4: Border | O4: Gwydir | Q4: Namoi | S4: Peel | U4: Lachlan | W4: Macquarie | Y4: Murray | AA4: Murrumbidgee | AE4: Actual Water usage
A5: Counter | B5: FY ending | C5: Actual | D5: Actual | E5: Actual | F5: Actual | G5: Actual | H5: Actual | I5: Actual | J5: Actual | L5: FY ending | M5: Actual | O5: Actual | Q5: Actual | S5: Actual | U5: Actual | W5: Actual | Y5: Actual | AA5: Actual | AD5: FY ending | AI5: Minor customers
M6: GS | N6: HS | O6: GS | P6: HS | Q6: GS | R6: HS | S6: GS | T6: HS | U6: GS | V6: HS | W6: GS | X6: HS | Y6: GS | Z6: HS | AA6: GS | AB6: HS | AE6: Delta Electricity | AF6: SCA | AG6: Oberon Council | AH6: Lithgow Council | AI6: Raw | AJ6: Filtered
A7: 1 | B7: 1994 | C7: 68087 | D7: 98862.55 | E7: 122249.2 | F7: 9980.2 | G7: 284975.05 | H7: 514616.38 | I7: 1826143 | J7: 2087709 | L7: 1994 | M7: 0.07 | N7: 1 | O7: 0 | P7: 1 | Q7: 0.27 | R7: 1 | S7: 1 | T7: 1 | U7: 1.2 | V7: 1 | W7: 1 | X7: 1 | Y7: 1.3 | Z7: 1 | AA7: 1.2 | AB7: 1 | AD7: 1994 | AE7: 5201 | AF7: 3736 | AG7: 704 | AH7: 2088 | AI7: 117.2728551 | AJ7: 301.137834
A8: =A7+1 -> 2 | B8: 1995 | C8: 63884 | D8: 45180.76 | E8: 39635.9 | F8: 11916.2 | G8: 389862.37 | H8: 167019.87 | I8: 2135851 | J8: 2565241 | L8: 1995 | M8: 0 | N8: 1 | O8: 0 | P8: 1 | Q8: 0 | R8: 1 | S8: 0.5 | T8: 1 | U8: 0.8 | V8: 1 | W8: 0.8 | X8: 1 | Y8: 0.95 | Z8: 1 | AA8: 1 | AB8: 1 | AD8: 1995 | AE8: 6281 | AF8: 3293 | AG8: 596 | AH8: 1480 | AI8: 42.82278481 | AJ8: 109.9620253
A9: =A8+1 -> 3 | B9: 1996 | C9: 139403 | D9: 178003 | E9: 97586 | F9: 5942 | G9: 385000 | H9: 199100 | I9: 2033592.896 | J9: 2159000 | L9: 1996 | M9: 0.05 | N9: 1 | O9: 0.18 | P9: 1 | Q9: 0.3 | R9: 1 | S9: 0.3 | T9: 1 | U9: 1 | V9: 1 | W9: 0.55 | X9: 1 | Y9: 1 | Z9: 1 | AA9: 1.05 | AB9: 1 | AD9: 1996 | AE9: 7662 | AF9: 3215 | AG9: 622 | AH9: 1138 | AI9: 45.34177215 | AJ9: 116.4303797
A10: 4 | B10: 1997 | C10: 169812 | D10: 394616 | E10: 198965.3 | F10: 5641 | G10: 436000 | H10: 348937 | I10: 2372283.84 | J10: 2611000 | L10: 1997 | M10: 0.65 | N10: 1 | O10: 0.75 | P10: 1 | Q10: 1 | R10: 1 | S10: 0.65 | T10: 1 | U10: 1 | V10: 1 | W10: 0.85 | X10: 1 | Y10: 1 | Z10: 1 | AA10: 1 | AB10: 1 | AD10: 1997 | AE10: 7451 | AF10: 3650 | AG10: 734 | AH10: 1098 | AI10: 72.49085795 | AJ10: 186.1448664
A11: 5 | B11: 1998 | C11: 187883 | D11: 454913 | E11: 323274.03 | F11: 16020 | G11: 414000 | H11: 403989 | I11: 1972012.6 | J11: 2442000 | L11: 1998 | M11: 0.55 | N11: 1 | O11: 0.82 | P11: 1 | Q11: 1 | R11: 1 | S11: 1 | T11: 1 | U11: 0.65 | V11: 1 | W11: 0.1 | X11: 1 | Y11: 0.84 | Z11: 1 | AA11: 0.9 | AB11: 1 | AD11: 1998 | AE11: 7243 | AF11: 3003 | AG11: 827 | AH11: 970 | AI11: 53.73839662 | AJ11: 137.9915612
A12: 6 | B12: 1999 | C12: 164331 | D12: 374762 | E12: 216487.31 | F12: 5561 | G12: 278000 | H12: 336071 | I12: 2063827.2 | J12: 2119000 | L12: 1999 | M12: 0.35 | N12: 1 | O12: 1.681853282 | P12: 1 | Q12: 2.319354839 | R12: 1 | S12: 1 | T12: 1 | U12: 1 | V12: 1 | W12: 1 | X12: 1 | Y12: 0.93 | Z12: 1 | AA12: 0.85 | AB12: 1 | AD12: 1999 | AE12: 7204 | AF12: 3317 | AG12: 855 | AH12: 898 | AI12: 47.86075949 | AJ12: 122.8987342
A13: 7 | B13: 2000 | C13: 180863 | D13: 417837 | E13: 246477.68 | F13: 7309 | G13: 285000 | H13: 385748 | I13: 1252922.342 | J13: 1713000 | L13: 2000 | M13: 0.6 | N13: 1 | O13: 0.4936573548 | P13: 1 | Q13: 0.6670445344 | R13: 1 | S13: 1 | T13: 1 | U13: 0.74 | V13: 1 | W13: 1 | X13: 1 | Y13: 0.35 | Z13: 1 | AA13: 0.78 | AB13: 1 | AD13: 2000 | AE13: 7294 | AF13: 3468 | AG13: 767 | AH13: 858 | AI13: 50.09985935 | AJ13: 128.6483826
A14: 8 | B14: 2001 | C14: 231793 | D14: 425315 | E14: 248842.49 | F14: 10241 | G14: 407000 | H14: 464188 | I14: 2224902 | J14: 2198000 | L14: 2001 | M14: 0.4 | N14: 1 | O14: 0.4469803922 | P14: 1 | Q14: 1.226720648 | R14: 1 | S14: 1 | T14: 1 | U14: 0.84 | V14: 1 | W14: 1 | X14: 1 | Y14: 0.95 | Z14: 1 | AA14: 0.9 | AB14: 1 | AD14: 2001 | AE14: 8136.524 | AF14: 3779.438 | AG14: 968.542 | AH14: 926.604 | AI14: 50.37974684 | AJ14: 129.3670886
A15: 9 | B15: 2002 | C15: 182622 | D15: 443145 | E15: 280339.88 | F15: 14671 | G15: 439572.22 | H15: 545663.54 | I15: 2076048 | J15: 2254000 | L15: 2002 | M15: 0.9616007471 | N15: 1 | O15: 0.2662352941 | P15: 1 | Q15: 0.2980161943 | R15: 1 | S15: 1 | T15: 1 | U15: 0.58 | V15: 1 | W15: 0.9 | X15: 1 | Y15: 1.05 | Z15: 1 | AA15: 0.72 | AB15: 1 | AD15: 2002 | AE15: 8359 | AF15: 3677 | AG15: 838 | AH15: 1019 | AI15: 50.37974684 | AJ15: 129.3670886
A16: 10 | B16: 2003 | C16: 123803 | D16: 278986 | E16: 236853.11 | F16: 21805 | G16: 237252.44 | H16: 375914.33 | I16: 969209 | J16: 1730000 | L16: 2003 | M16: 0.1383938411 | N16: 1 | O16: 0 | P16: 1 | Q16: 0 | R16: 1 | S16: 0.6 | T16: 1 | U16: 0.03 | V16: 1 | W16: 0 | X16: 1 | Y16: 0.1 | Z16: 1 | AA16: 0.38 | AB16: 1 | AD16: 2003 | AE16: 8303 | AF16: 4390 | AG16: 911 | AH16: 1183 | AI16: 66.33333333 | AJ16: 170.3333333
A17: 11 | B17: 2004 | C17: 100542.36 | D17: 159250 | E17: 80652.71 | F17: 13325 | G17: 43509.97 | H17: 174168.35 | I17: 1306721 | J17: 1655000 | L17: 2004 | M17: 0.5394395847 | N17: 1 | O17: 0.3071568627 | P17: 1 | Q17: 0.4646963563 | R17: 1 | S17: 0.35 | T17: 1 | U17: 0 | V17: 0.7 | W17: 0.19 | X17: 1 | Y17: 0.55 | Z17: 1 | AA17: 0.41 | AB17: 0.95 | AD17: 2004 | AE17: 6734 | AF17: 3005 | AG17: 732 | AH17: 968 | AI17: 60.4556962 | AJ17: 155.2405063
A18: 12 | B18: 2005 | C18: 107563.76 | D18: 154840 | E18: 96650 | F18: 15165 | G18: 21164.7 | H18: 63783.6 | I18: 1244515.1 | J18: 1533411 | L18: 2005 | M18: 0.1667033994 | N18: 1 | O18: 0.04598039216 | P18: 1 | Q18: 0.1413360324 | R18: 1 | S18: 0.65 | T18: 1 | U18: 0 | V18: 0.3 | W18: 0.09 | X18: 1 | Y18: 0.49 | Z18: 0.97 | AA18: 0.4 | AB18: 0.95 | AD18: 2005 | AE18: 4960 | AF18: 1878 | AG18: 677 | AH18: 735 | AI18: 45.34177215 | AJ18: 116.4303797
A19: 13 | B19: 2006 | C19: 134417.37 | D19: 218496 | E19: 141325.3 | F19: 14753 | G19: 112435.93 | H19: 180723 | I19: 1644734.3 | J19: 1942641 | L19: 2006 | M19: 0.3804940351 | N19: 1 | O19: 0.2188263003 | P19: 1 | Q19: 0.299757195 | R19: 1 | S19: 0.45 | T19: 1 | U19: 0.19 | V19: 1 | W19: 0.44 | X19: 1 | Y19: 0.63 | Z19: 0.97 | AA19: 0.54 | AB19: 0.95 | AD19: 2006 | AE19: 6367 | AF19: 2098 | AG19: 725 | AH19: 959 | AI19: 63.81434599 | AJ19: 163.8649789
A20: 14 | B20: 2007 | C20: 131933.8 | D20: 129467 | E20: 66558.5 | F20: 9718 | G20: 57260.2 | H20: 204745 | I20: 559114.7 | J20: 934075 | L20: 2007 | M20: 0.2518418989 | N20: 1 | O20: 0 | P20: 1 | Q20: 0 | R20: 1 | S20: 0 | T20: 1 | U20: 0 | V20: 0.8 | W20: 0 | X20: 1 | Y20: 0 | Z20: 0.69 | AA20: 0.1 | AB20: 0.9 | AD20: 2007 | AE20: 6590 | AF20: 3115 | AG20: 749 | AH20: 795 | AI20: 47 | AJ20: 112
A21: 15 | B21: 2008 | C21: 112269 | D21: 79132 | E21: 51211.6 | F21: 9080 | G21: 30776.5 | H21: 30867 | I21: 226153 | J21: 471430 | L21: 2008 | M21: 0.2534980989 | N21: 1 | O21: 0.2424509804 | P21: 1 | Q21: 0.1362753036 | R21: 1 | S21: 0.5 | T21: 1 | U21: 0 | V21: 0.3 | W21: 0.05 | X21: 1 | Y21: 0 | Z21: 0.5 | AA21: 0.13 | AB21: 0.9 | AD21: 2008 | AE21: 4366.7 | AF21: 1077.2 | AG21: 600.971 | AH21: 747.338 | AI21: 40 | AJ21: 110
A22: 16 | B22: 2009 | C22: 117688 | D22: 143199 | E22: 97482 | F22: 10183 | G22: 27797.6 | H22: 65439 | I22: 301558 | J22: 568580 | L22: 2009 | M22: 0.2374144487 | N22: 1 | O22: 0 | P22: 1 | Q22: 0.2373279352 | R22: 1 | S22: 0.8 | T22: 1 | U22: 0 | V22: 0.3 | W22: 0.1 | X22: 1 | Y22: 0.09 | Z22: 0.95 | AA22: 0.21 | AB22: 0.95 | AD22: 2009 | AE22: 3596.64 | AF22: 249.636 | AG22: 582.9084 | AH22: 747.906 | AI22: 42 | AJ22: 104
A23: 17 | B23: 2010 | C23: 100850 | D23: 46959 | E23: 75152 | F23: 17517 | G23: 11786.7 | H23: 73820 | I23: 414880 | J23: 822914 | L23: 2010 | M23: 0.02688212928 | N23: 1 | O23: 0 | P23: 1 | Q23: 0.005748987854 | R23: 1 | S23: 0 | T23: 1 | U23: 0 | V23: 0.1 | W23: 0 | X23: 1 | Y23: 0.27 | Z23: 0.97 | AA23: 0.27 | AB23: 0.95 | AD23: 2010 | AE23: 3824.4 | AF23: 0 | AG23: 591.114 | AH23: 747.193 | AI23: 40 | AJ23: 88
A24: 18 | B24: 2011 | C24: 163725 | D24: 245148 | E24: 149958 | F24: 6915 | G24: 85698.8 | H24: 203146 | I24: 773243 | J24: 1279759 | L24: 2011 | M24: 1 | N24: 1 | O24: 0.829 | P24: 1 | Q24: 1.093 | R24: 1 | S24: 1 | T24: 1 | U24: 1 | V24: 1 | W24: 1 | X24: 1 | Y24: 1 | Z24: 1 | AA24: 1 | AB24: 0.9996 | AD24: 2011 | AE24: 4248.2 | AF24: 223.876 | AG24: 617.913 | AH24: 764.464 | AI24: 30 | AJ24: 97
A25: 19 | B25: 2012 | C25: 134199.8 | D25: 200724.1 | E25: 128271.7 | F25: 4218.7 | G25: 212768.7 | H25: 296617.9 | I25: 1670161.2 | J25: 1738425.6 | L25: 2012 | M25: 1 | N25: 1 | O25: 1 | P25: 1 | Q25: 1.165 | R25: 1 | S25: 1 | T25: 1 | U25: 1 | V25: 1 | W25: 0.49 | X25: 1 | Y25: 1 | Z25: 1 | AA25: 1 | AB25: 1 | AD25: 2012 | AE25: 4111.5 | AF25: 43.425 | AG25: 658.29 | AH25: 754.505 | AI25: 35.82559775 | AJ25: 91.99437412
A26: 20 | B26: 2013 | C26: 197868.7 | D26: 428699.4 | E26: 281246.7 | F26: 13317.1 | G26: 394082.4 | H26: 558856.4 | I26: 2125906.5 | J26: 2369612.9 | L26: 2013 | M26: 1 | N26: 1 | O26: 1.62 | P26: 1 | Q26: 1 | R26: 1 | S26: 0.83 | T26: 1 | U26: 0 | V26: 1 | W26: 0.64 | X26: 1 | Y26: 1 | Z26: 1 | AA26: 1 | AB26: 1 | AD26: 2013 | AE26: 5864 | AF26: 1014 | AG26: 585 | AH26: 833 | AI26: 40.7 | AJ26: 65.3
A27: 21 | B27: 2014 | C27: ='State Water data inputs'!$J$44 -> 0 | D27: ='State Water data inputs'!$J$45 -> 0 | E27: ='State Water data inputs'!$J$46 -> 0 | F27: ='State Water data inputs'!$J$47 -> 0 | G27: ='State Water data inputs'!$J$48 -> 0 | H27: ='State Water data inputs'!$J$49 -> 0 | I27: ='State Water data inputs'!$J$50 -> 0 | J27: ='State Water data inputs'!$J$51 -> 0 | L27: 2014 | M27: ='State Water data inputs'!$B$59 -> 0 | N27: ='State Water data inputs'!$G$59 -> 0 | O27: ='State Water data inputs'!$B$60 -> 0 | P27: ='State Water data inputs'!$G$60 -> 0 | Q27: ='State Water data inputs'!$B$61 -> 0 | R27: ='State Water data inputs'!$G$61 -> 0 | S27: ='State Water data inputs'!$B$62 -> 0 | T27: ='State Water data inputs'!$G$62 -> 0 | U27: ='State Water data inputs'!$B$63 -> 0 | V27: ='State Water data inputs'!$G$63 -> 0 | W27: ='State Water data inputs'!$B$64 -> 0 | X27: ='State Water data inputs'!$G$64 -> 0 | Y27: ='State Water data inputs'!$B$65 -> 0 | Z27: ='State Water data inputs'!$G$65 -> 0 | AA27: ='State Water data inputs'!$B$66 -> 0 | AB27: ='State Water data inputs'!$G$66 -> 0 | AD27: 2014 | AE27: ='State Water data inputs'!$J$75 -> 0 | AF27: ='State Water data inputs'!$J$76 -> 0 | AG27: ='State Water data inputs'!$J$77 -> 0 | AH27: ='State Water data inputs'!$J$80 -> 0 | AI27: ='State Water data inputs'!$J$78 -> 0 | AJ27: ='State Water data inputs'!$J$81 -> 0
A28: 22 | B28: 2015 | C28: ='State Water data inputs'!$K$44 -> 0 | D28: ='State Water data inputs'!$K$45 -> 0 | E28: ='State Water data inputs'!$K$46 -> 0 | F28: ='State Water data inputs'!$K$47 -> 0 | G28: ='State Water data inputs'!$K$48 -> 0 | H28: ='State Water data inputs'!$K$49 -> 0 | I28: ='State Water data inputs'!$K$50 -> 0 | J28: ='State Water data inputs'!$K$51 -> 0 | L28: 2015 | M28: ='State Water data inputs'!$C$59 -> 0 | N28: ='State Water data inputs'!$H$59 -> 0 | O28: ='State Water data inputs'!$C$60 -> 0 | P28: ='State Water data inputs'!$H$60 -> 0 | Q28: ='State Water data inputs'!$C$61 -> 0 | R28: ='State Water data inputs'!$H$61 -> 0 | S28: ='State Water data inputs'!$C$62 -> 0 | T28: ='State Water data inputs'!$H$62 -> 0 | U28: ='State Water data inputs'!$C$63 -> 0 | V28: ='State Water data inputs'!$H$63 -> 0 | W28: ='State Water data inputs'!$C$64 -> 0 | X28: ='State Water data inputs'!$H$64 -> 0 | Y28: ='State Water data inputs'!$C$65 -> 0 | Z28: ='State Water data inputs'!$H$65 -> 0 | AA28: ='State Water data inputs'!$C$66 -> 0 | AB28: ='State Water data inputs'!$H$66 -> 0 | AD28: 2015 | AE28: ='State Water data inputs'!$K$75 -> 0 | AF28: ='State Water data inputs'!$K$76 -> 0 | AG28: ='State Water data inputs'!$K$77 -> 0 | AH28: ='State Water data inputs'!$K$80 -> 0 | AI28: ='State Water data inputs'!$K$78 -> 0 | AJ28: ='State Water data inputs'!$K$81 -> 0
A29: 23 | B29: 2016 | C29: ='State Water data inputs'!$L$44 -> 0 | D29: ='State Water data inputs'!$L$45 -> 0 | E29: ='State Water data inputs'!$L$46 -> 0 | F29: ='State Water data inputs'!$L$47 -> 0 | G29: ='State Water data inputs'!$L$48 -> 0 | H29: ='State Water data inputs'!$L$49 -> 0 | I29: ='State Water data inputs'!$L$50 -> 0 | J29: ='State Water data inputs'!$L$51 -> 0 | L29: 2016 | M29: ='State Water data inputs'!$D$59 -> 0 | N29: ='State Water data inputs'!$I$59 -> 0 | O29: ='State Water data inputs'!$D$60 -> 0 | P29: ='State Water data inputs'!$I$60 -> 0 | Q29: ='State Water data inputs'!$D$61 -> 0 | R29: ='State Water data inputs'!$I$61 -> 0 | S29: ='State Water data inputs'!$D$62 -> 0 | T29: ='State Water data inputs'!$I$62 -> 0 | U29: ='State Water data inputs'!$D$63 -> 0 | V29: ='State Water data inputs'!$I$63 -> 0 | W29: ='State Water data inputs'!$D$64 -> 0 | X29: ='State Water data inputs'!$I$64 -> 0 | Y29: ='State Water data inputs'!$D$65 -> 0 | Z29: ='State Water data inputs'!$I$65 -> 0 | AA29: ='State Water data inputs'!$D$66 -> 0 | AB29: ='State Water data inputs'!$I$66 -> 0 | AD29: 2016 | AE29: ='State Water data inputs'!$L$75 -> 0 | AF29: ='State Water data inputs'!$L$76 -> 0 | AG29: ='State Water data inputs'!$L$77 -> 0 | AH29: ='State Water data inputs'!$L$80 -> 0 | AI29: ='State Water data inputs'!$L$78 -> 0 | AJ29: ='State Water data inputs'!$L$81 -> 0
A30: 24 | B30: 2017 | C30: ='State Water data inputs'!$M$44 -> 0 | D30: ='State Water data inputs'!$M$45 -> 0 | E30: ='State Water data inputs'!$M$46 -> 0 | F30: ='State Water data inputs'!$M$47 -> 0 | G30: ='State Water data inputs'!$M$48 -> 0 | H30: ='State Water data inputs'!$M$49 -> 0 | I30: ='State Water data inputs'!$M$50 -> 0 | J30: ='State Water data inputs'!$M$51 -> 0 | L30: 2017 | M30: ='State Water data inputs'!$E$59 -> 0 | N30: ='State Water data inputs'!$J$59 -> 0 | O30: ='State Water data inputs'!$E$60 -> 0 | P30: ='State Water data inputs'!$J$60 -> 0 | Q30: ='State Water data inputs'!$E$61 -> 0 | R30: ='State Water data inputs'!$J$61 -> 0 | S30: ='State Water data inputs'!$E$62 -> 0 | T30: ='State Water data inputs'!$J$62 -> 0 | U30: ='State Water data inputs'!$E$63 -> 0 | V30: ='State Water data inputs'!$J$63 -> 0 | W30: ='State Water data inputs'!$E$64 -> 0 | X30: ='State Water data inputs'!$J$64 -> 0 | Y30: ='State Water data inputs'!$E$65 -> 0 | Z30: ='State Water data inputs'!$J$65 -> 0 | AA30: ='State Water data inputs'!$E$66 -> 0 | AB30: ='State Water data inputs'!$J$66 -> 0 | AD30: 2017 | AE30: ='State Water data inputs'!$M$75 -> 0 | AF30: ='State Water data inputs'!$M$76 -> 0 | AG30: ='State Water data inputs'!$M$77 -> 0 | AH30: ='State Water data inputs'!$M$80 -> 0 | AI30: ='State Water data inputs'!$M$78 -> 0 | AJ30: ='State Water data inputs'!$M$81 -> 0
B34: Forecasts (20 year moving average) | L34: Allocations (20 year moving average) | AD34: Forecasts (20 year moving average)
B35: 2015 | C35: =AVERAGE(C7:C26) -> 140676.9395 | D35: 245876.7405 | E35: 158960.9705 | F35: 11163.91 | G35: =AVERAGE(G7:G26) -> 227697.179 | H35: 279670.6685 | I35: =AVERAGE(I7:I26) -> 1459688.934 | J35: 1759739.925 | L35: 2015 | M35: =AVERAGE(M7:M26) -> 0.4313134092 | N35: 1 | O35: 0.4451070429 | P35: 1 | Q35: 0.5812139013 | R35: 1 | S35: 0.6815 | T35: 1 | U35: =AVERAGE(U7:U26) -> 0.5015 | V35: 0.825 | W35: 0.51 | X35: 1 | Y35: =AVERAGE(Y7:Y26) -> 0.675 | Z35: 0.9525 | AA35: 0.692 | AB35: 0.97748 | AD35: 2015 | AE35: =AVERAGE(AE7:AE26) -> 6189.8482 | AF35: 2411.62875 | AG35: 717.08692 | AH35: 985.5005 | AI35: =AVERAGE(AI7:AI26) -> 52.09287623 | AJ35: =AVERAGE(AJ7:AJ26) -> 131.8055767
B36: 2016 | C36: 137272.5895 | D36: 240933.613 | E36: 152848.5105 | F36: 10664.9 | G36: =AVERAGE(G8:G27) -> 213448.4265 | H36: 253939.8495 | I36: =AVERAGE(I8:I27) -> 1368381.784 | J36: 1655354.475 | L36: 2016 | M36: =AVERAGE(M8:M27) -> 0.4278134092 | N36: 0.95 | O36: =AVERAGE(O8:O27) -> 0.4451070429 | P36: 0.95 | Q36: 0.5677139013 | R36: 0.95 | S36: 0.6315 | T36: 0.95 | U36: 0.4415 | V36: 0.775 | W36: 0.46 | X36: 0.95 | Y36: 0.61 | Z36: 0.9025 | AA36: 0.632 | AB36: 0.92748 | AD36: 2016 | AE36: =AVERAGE(AE8:AE27) -> 5929.7982 | AF36: 2224.82875 | AG36: 681.88692 | AH36: 881.1005 | AI36: =AVERAGE(AI8:AI27) -> 46.22923347 | AJ36: =AVERAGE(AJ8:AJ27) -> 116.748685
B37: 2017 | C37: 134078.3895 | D37: 238674.575 | E37: 150866.7155 | F37: 10069.09 | G37: =AVERAGE(G9:G28) -> 193955.308 | H37: 245588.856 | I37: =AVERAGE(I9:I28) -> 1261589.234 | J37: 1527092.425 | L37: 2017 | M37: 0.4278134092 | N37: 0.9 | O37: =AVERAGE(O9:O28) -> 0.4451070429 | P37: 0.9 | Q37: 0.5677139013 | R37: 0.9 | S37: 0.6065 | T37: 0.9 | U37: 0.4015 | V37: 0.725 | W37: 0.42 | X37: 0.9 | Y37: 0.5625 | Z37: 0.8525 | AA37: 0.582 | AB37: 0.87748 | AD37: 2017 | AE37: =AVERAGE(AE9:AE28) -> 5615.7482 | AF37: 2060.17875 | AG37: 652.08692 | AH37: 807.1005 | AI37: =AVERAGE(AI9:AI28) -> 44.08809423 | AJ37: =AVERAGE(AJ9:AJ28) -> 111.2505837
L40: Average Water Allocation
L41: 2015 | M41: =N35/M35 -> 2.318499677 | O41: =P35/O35 -> 2.246650589 | Q41: =R35/Q35 -> 1.720536962 | S41: =T35/S35 -> 1.467351431 | U41: =V35/U35 -> 1.645064806 | W41: =X35/W35 -> 1.960784314 | Y41: =Z35/Y35 -> 1.411111111 | AA41: =AB35/AA35 -> 1.412543353
L42: 2016 | M42: =N36/M36 -> 2.220594258 | O42: 2.134318059 | Q42: =R36/Q36 -> 1.673378083 | S42: =T36/S36 -> 1.504354711 | U42: =V36/U36 -> 1.755379388 | W42: =X36/W36 -> 2.065217391 | Y42: =Z36/Y36 -> 1.479508197 | AA42: =AB36/AA36 -> 1.467531646
L43: 2017 | M43: 2.103720876 | O43: 2.02198553 | Q43: =R37/Q37 -> 1.585305553 | S43: =T37/S37 -> 1.483924155 | U43: 1.805728518 | W43: =X37/W37 -> 2.142857143 | Y43: =Z37/Y37 -> 1.515555556 | AA43: 1.507697595

Sheet Summary
C1: Check | D1: =IF(E1>0.001,"Error","Ok") -> Ok | E1: =SUM(Border!E1,Gwydir!E1,Namoi!E1,Peel!E1,Lachlan!E1,Macquarie!E1,Murray!E1,Murrumbidgee!E1,Lowbidgee!E1,'Fish River'!E1) -> 3.259629011e-09
A3: Tariffs ($ Nominal)
C4: 2014-15 | D4: 2015-16 | E4: 2016-17 | G4: 2014-15 | H4: 2015-16 | I4: 2016-17 | K4: 2014-15 | L4: 2015-16 | M4: 2016-17
A5: Total Tariffs | C5: High Security Entitlement ($/ML) | G5: General Security Entitlement ($/ML) | K5: Usage ($/ML delivered)
A6: Border | C6: =SUM(C26,C45) -> 9.832585534 | D6: =SUM(D26,D45) -> 0 | E6: 0 | G6: =SUM(G26,G45) -> 3.313223428 | H6: 0 | I6: 0 | K6: =SUM(K26,K45) -> 9.626989795 | L6: 13.46925568 | M6: 17.63674748
A7: Gwydir | C7: =SUM(C27,C46) -> 13.5662053 | D7: 0 | E7: 0 | G7: =SUM(G27,G46) -> 3.33614007 | H7: 0 | I7: 0 | K7: =SUM(K27,K46) -> 12.14886838 | L7: 13.09957142 | M7: 13.96424692
A8: Namoi | C8: =SUM(C28,C47) -> 16.51074492 | D8: 0 | E8: 0 | G8: =SUM(G28,G47) -> 7.677019575 | H8: 0 | I8: 0 | K8: =SUM(K28,K47) -> 19.93444413 | L8: 21.75396228 | M8: 23.12053567
A9: =A29 -> Peel Valley (10% price cap) | C9: =SUM(C29,C48) -> 28.39207006 | D9: 31.23127706 | E9: 34.35440477 | G9: =SUM(G29,G48) -> 3.122113301 | H9: 3.434324632 | I9: 3.777757095 | K9: =SUM(K29,K48) -> 46.89932652 | L9: 51.58925918 | M9: 56.74818509
A10: Lachlan | C10: =SUM(C30,C49) -> 12.83861419 | D10: 0 | E10: 0 | G10: =SUM(G30,G49) -> 3.185437237 | H10: 0 | I10: 0 | K10: =SUM(K30,K49) -> 18.41751516 | L10: 20.87942034 | M10: 24.40070211
A11: Macquarie | C11: =SUM(C31,C50) -> 12.54856596 | D11: 0 | E11: 0 | G11: =SUM(G31,G50) -> 3.404132255 | H11: 0 | I11: 0 | K11: =SUM(K31,K50) -> 14.40134406 | L11: 16.83358723 | M11: 18.46070098
A12: Murray | C12: =SUM(C32,C51) -> 4.653873209 | D12: 0 | E12: 0 | G12: =SUM(G32,G51) -> 2.638416307 | H12: 0 | I12: 0 | K12: =SUM(K32,K51) -> 6.878254854 | L12: 12.29506663 | M12: 18.40474374
A13: Murrumbidgee | C13: =SUM(C33,C52) -> 3.565903894 | D13: 0 | E13: 0 | G13: =SUM(G33,G52) -> 1.548746165 | H13: 0 | I13: 0 | K13: =SUM(K33,K52) -> 4.311760385 | L13: 5.625421616 | M13: 7.194400694
A14: Lowbidgee | G14: 0.7313673838 | H14: 0.7724201768 | I14: 0.8157773271
A16: Fish River | C16: Access ($/KL) | G16: Usage < MAQ ($/KL) | K16: Usage > 200kl ($/KL)
A17: Raw water - major customers | C17: =C37 -> 0.3312539443 | D17: =D37 -> 0.3415333894 | E17: 0.3516122945 | G17: =G37 -> 0.3721564695 | H17: 0.4039722799 | I17: 0.4413504134
A18: Raw water - minor customers * | C18: =C38 -> 66.25078886 | D18: 68.30667788 | E18: 70.32245889 | G18: =G38 -> 0.3721564695 | H18: 0.4039722799 | I18: 0.4413504134 | K18: 0.7034104138 | L18: 0.7455056693 | M18: 0.7929627078
A19: Filtered water - major customers | C19: =C39 -> 0.6411123221 | D19: 0.6756975647 | E19: 0.6956379037 | G19: =G39 -> 0.6442997992 | H19: 0.7235963665 | I19: 0.8136024291
A20: Filtered water - minor customers * | C20: =C40 -> 128.2224644 | D20: 135.1395129 | E20: 139.1275807 | G20: =G40 -> 0.6442997992 | H20: 0.7235963665 | I20: 0.8136024291 | K20: 1.285412121 | L20: 1.399293931 | M20: 1.509240333
A21: * Note : Access Fee for minor customers is an Annual Charge
C24: 2014-15 | D24: 2015-16 | E24: 2016-17 | G24: 2014-15 | H24: 2015-16 | I24: 2016-17 | K24: 2014-15 | L24: 2015-16 | M24: 2016-17
A25: State Water Costs Tariffs | C25: High Security Entitlement ($/ML) | G25: General Security Entitlement ($/ML) | K25: Usage ($/ML delivered)
A26: Border | C26: =Border!C$67 -> 6.693925663 | D26: =Border!D$67 -> 0 | E26: =Border!E$67 -> 0 | G26: =Border!C$68 -> 2.255609296 | H26: =Border!D$68 -> 0 | I26: =Border!E$68 -> 0 | K26: =Border!C$69 -> 6.553958145 | L26: =Border!D$69 -> 7.036700257 | M26: =Border!E$69 -> 7.546306581
A27: Gwydir | C27: =Gwydir!C$67 -> 13.5662053 | D27: =Gwydir!D$67 -> 0 | E27: =Gwydir!E$67 -> 0 | G27: =Gwydir!C$68 -> 3.33614007 | H27: =Gwydir!D$68 -> 0 | I27: =Gwydir!E$68 -> 0 | K27: =Gwydir!C$69 -> 12.14886838 | L27: =Gwydir!D$69 -> 13.09957142 | M27: =Gwydir!E$69 -> 13.96424692
A28: Namoi | C28: =Namoi!C$67 -> 16.51074492 | D28: =Namoi!D$67 -> 0 | E28: =Namoi!E$67 -> 0 | G28: =Namoi!C$68 -> 7.677019575 | H28: =Namoi!D$68 -> 0 | I28: =Namoi!E$68 -> 0 | K28: =Namoi!C$69 -> 19.93444413 | L28: =Namoi!D$69 -> 21.75396228 | M28: =Namoi!E$69 -> 23.12053567
A29: ="Peel Valley (" &'ACCC data inputs'!B51*100& "% price cap)" -> Peel Valley (10% price cap) | C29: =Peel!D11 -> 28.39207006 | D29: =Peel!E11 -> 31.23127706 | E29: =Peel!F11 -> 34.35440477 | G29: =Peel!D12 -> 3.122113301 | H29: =Peel!E12 -> 3.434324632 | I29: =Peel!F12 -> 3.777757095 | K29: =Peel!D13 -> 46.89932652 | L29: =Peel!E13 -> 51.58925918 | M29: =Peel!F13 -> 56.74818509
A30: Lachlan | C30: =Lachlan!C$67 -> 12.83861419 | D30: =Lachlan!D$67 -> 0 | E30: =Lachlan!E$67 -> 0 | G30: =Lachlan!C$68 -> 3.185437237 | H30: =Lachlan!D$68 -> 0 | I30: =Lachlan!E$68 -> 0 | K30: =Lachlan!C$69 -> 18.41751516 | L30: =Lachlan!D$69 -> 20.87942034 | M30: =Lachlan!E$69 -> 24.40070211
A31: Macquarie | C31: =Macquarie!C$67 -> 12.54856596 | D31: =Macquarie!D$67 -> 0 | E31: =Macquarie!E$67 -> 0 | G31: =Macquarie!C$68 -> 3.404132255 | H31: =Macquarie!D$68 -> 0 | I31: =Macquarie!E$68 -> 0 | K31: =Macquarie!C$69 -> 14.40134406 | L31: =Macquarie!D$69 -> 16.83358723 | M31: =Macquarie!E$69 -> 18.46070098
A32: Murray | C32: =Murray!C$67 -> 1.733972762 | D32: =Murray!D$67 -> 0 | E32: =Murray!E$67 -> 0 | G32: =Murray!C$68 -> 0.9830396761 | H32: =Murray!D$68 -> 0 | I32: =Murray!E$68 -> 0 | K32: =Murray!C$69 -> 2.562748496 | L32: =Murray!D$69 -> 2.801894106 | M32: =Murray!E$69 -> 3.117053023
A33: Murrumbidgee | C33: =Murrumbidgee!C$67 -> 2.898350099 | D33: =Murrumbidgee!D$67 -> 0 | E33: =Murrumbidgee!E$67 -> 0 | G33: =Murrumbidgee!C$68 -> 1.258813679 | H33: =Murrumbidgee!D$68 -> 0 | I33: =Murrumbidgee!E$68 -> 0 | K33: =Murrumbidgee!C$69 -> 3.504578786 | L33: =Murrumbidgee!D$69 -> 3.872727406 | M33: =Murrumbidgee!E$69 -> 4.364342585
A34: Lowbidgee | G34: =Lowbidgee!C14 -> 0.7313673838 | H34: =Lowbidgee!D14 -> 0.7724201768 | I34: =Lowbidgee!E14 -> 0.8157773271
A36: Fish River | C36: Access ($/KL) | G36: Usage < MAQ ($/KL) | K36: Usage > 200kl ($/KL)
A37: Raw water - major customers | C37: ='Fish River'!C131 -> 0.3312539443 | D37: ='Fish River'!D131 -> 0.3415333894 | E37: ='Fish River'!E131 -> 0.3516122945 | G37: ='Fish River'!C153 -> 0.3721564695 | H37: ='Fish River'!D153 -> 0.4039722799 | I37: ='Fish River'!E153 -> 0.4413504134
A38: Raw water - minor customers * | C38: ='Fish River'!C144 -> 66.25078886 | D38: ='Fish River'!D144 -> 68.30667788 | E38: ='Fish River'!E144 -> 70.32245889 | G38: ='Fish River'!C166 -> 0.3721564695 | H38: ='Fish River'!D166 -> 0.4039722799 | I38: ='Fish River'!E166 -> 0.4413504134 | K38: ='Fish River'!C180 -> 0.7034104138 | L38: ='Fish River'!D180 -> 0.7455056693 | M38: ='Fish River'!E180 -> 0.7929627078
A39: Filtered water - major customers | C39: ='Fish River'!C195 -> 0.6411123221 | D39: ='Fish River'!D195 -> 0.6756975647 | E39: ='Fish River'!E195 -> 0.6956379037 | G39: ='Fish River'!C208 -> 0.6442997992 | H39: ='Fish River'!D208 -> 0.7235963665 | I39: ='Fish River'!E208 -> 0.8136024291
A40: Filtered water - minor customers * | C40: ='Fish River'!C199 -> 128.2224644 | D40: ='Fish River'!D199 -> 135.1395129 | E40: ='Fish River'!E199 -> 139.1275807 | G40: ='Fish River'!C212 -> 0.6442997992 | H40: ='Fish River'!D212 -> 0.7235963665 | I40: ='Fish River'!E212 -> 0.8136024291 | K40: ='Fish River'!C225 -> 1.285412121 | L40: ='Fish River'!D225 -> 1.399293931 | M40: ='Fish River'!E225 -> 1.509240333
C43: 2014-15 | D43: 2015-16 | E43: 2016-17 | G43: 2014-15 | H43: 2015-16 | I43: 2016-17 | K43: 2014-15 | L43: 2015-16 | M43: 2016-17
A44: MDBA / BCR Tariffs | C44: High Security Entitlement ($/ML) | G44: General Security Entitlement ($/ML) | K44: Usage ($/ML delivered)
A45: Border | C45: =Border!H$67 -> 3.138659871 | D45: =Border!I$67 -> 0 | E45: =Border!J$67 -> 0 | G45: =Border!H$68 -> 1.057614132 | H45: =Border!I$68 -> 0 | I45: =Border!J$68 -> 0 | K45: =Border!H$69 -> 3.07303165 | L45: =Border!I$69 -> 6.432555426 | M45: =Border!J$69 -> 10.0904409
A46: Gwydir | C46: =Gwydir!H$67 -> 0 | D46: =Gwydir!I$67 -> 0 | E46: =Gwydir!J$67 -> 0 | G46: =Gwydir!H$68 -> 0 | H46: =Gwydir!I$68 -> 0 | I46: =Gwydir!J$68 -> 0 | K46: =Gwydir!H$69 -> 0 | L46: =Gwydir!I$69 -> 0 | M46: =Gwydir!J$69 -> 0
A47: Namoi | C47: =Namoi!H$67 -> 0 | D47: =Namoi!I$67 -> 0 | E47: =Namoi!J$67 -> 0 | G47: =Namoi!H$68 -> 0 | H47: =Namoi!I$68 -> 0 | I47: =Namoi!J$68 -> 0 | K47: =Namoi!H$69 -> 0 | L47: =Namoi!I$69 -> 0 | M47: =Namoi!J$69 -> 0
A48: Peel | C48: =Peel!I11 -> 0 | D48: =Peel!J11 -> 0 | E48: =Peel!K11 -> 0 | G48: =Peel!I12 -> 0 | H48: =Peel!J12 -> 0 | I48: =Peel!K12 -> 0 | K48: =Peel!I13 -> 0 | L48: =Peel!J13 -> 0 | M48: =Peel!K13 -> 0
A49: Lachlan | C49: =Lachlan!H$67 -> 0 | D49: =Lachlan!I$67 -> 0 | E49: =Lachlan!J$67 -> 0 | G49: =Lachlan!H$68 -> 0 | H49: =Lachlan!I$68 -> 0 | I49: =Lachlan!J$68 -> 0 | K49: =Lachlan!H$69 -> 0 | L49: =Lachlan!I$69 -> 0 | M49: =Lachlan!J$69 -> 0
A50: Macquarie | C50: =Macquarie!H$67 -> 0 | D50: =Macquarie!I$67 -> 0 | E50: =Macquarie!J$67 -> 0 | G50: =Macquarie!H$68 -> 0 | H50: =Macquarie!I$68 -> 0 | I50: =Macquarie!J$68 -> 0 | K50: =Macquarie!H$69 -> 0 | L50: =Macquarie!I$69 -> 0 | M50: =Macquarie!J$69 -> 0
A51: Murray | C51: =Murray!H$67 -> 2.919900447 | D51: =Murray!I$67 -> 0 | E51: =Murray!J$67 -> 0 | G51: =Murray!H$68 -> 1.655376631 | H51: =Murray!I$68 -> 0 | I51: =Murray!J$68 -> 0 | K51: =Murray!H$69 -> 4.315506358 | L51: =Murray!I$69 -> 9.493172526 | M51: =Murray!J$69 -> 15.28769071
A52: Murrumbidgee | C52: =Murrumbidgee!H$67 -> 0.6675537951 | D52: =Murrumbidgee!I$67 -> 0 | E52: =Murrumbidgee!J$67 -> 0 | G52: =Murrumbidgee!H$68 -> 0.2899324859 | H52: =Murrumbidgee!I$68 -> 0 | I52: =Murrumbidgee!J$68 -> 0 | K52: =Murrumbidgee!H$69 -> 0.8071815996 | L52: =Murrumbidgee!I$69 -> 1.75269421 | M52: =Murrumbidgee!J$69 -> 2.83005811
A53: Lowbidgee | C53: =Lowbidgee!H13 -> 0 | D53: =Lowbidgee!I13 -> 0 | E53: =Lowbidgee!J13 -> 0 | G53: =Lowbidgee!H14 -> 0 | H53: =Lowbidgee!I14 -> 0 | I53: =Lowbidgee!J14 -> 0 | K53: =Lowbidgee!H15 -> 0 | L53: =Lowbidgee!I15 -> 0 | M53: =Lowbidgee!J15 -> 0

Sheet Border
B1: Border | C1: Check | D1: =IF(E1>0.001,"Error","Ok") -> Ok | E1: =SUM(C76:E76,H76:J76) -> 0
B3: State Water Costs Tariffs | C3: 2014-15 | D3: 2015-16 | E3: 2016-17 | G3: MDBA / BCR Tariffs | H3: 2014-15 | I3: 2015-16 | J3: 2016-17
B6: Benchmark Revenue (Rev BBM) | C6: Forecast 2014-15 | D6: Forecast 2015-16 | E6: Forecast 2016-17 | G6: MDBA / BCR costs | H6: Forecast 2014-15 | I6: Forecast 2015-16 | J6: Forecast 2016-17
B7: Benchmark Revenue (Rev BBM) | C7: ='ACCC data inputs'!B$6*(1+C$31) -> 1536651.289 | D7: ='ACCC data inputs'!C$6*(1+C$31)*(1+D$31) -> 1544491.47 | E7: ='ACCC data inputs'!D$6*(1+C$31)*(1+D$31)*(1+E$31) -> 1552371.653 | G7: MDBA / BCR costs | H7: ='ACCC data inputs'!G$6*(1+H$31) -> 720507.8125 | I7: ='ACCC data inputs'!H$6*(1+H$31)*(1+I$31) -> 720507.8125 | J7: ='ACCC data inputs'!I$6*(1+H$31)*(1+I$31)*(1+J$31) -> 720507.8125
B11: Unders/Overs Adjustment | G11: Unders/Overs Adjustment
B12: Calc. of UOM (t-1) | C12: Estimated 2013-14 | D12: Estimated 2014-15 | E12: Estimated 2015-16 | G12: Calc. of UOM (t-1) | H12: Estimated 2013-14 | I12: Estimated 2014-15 | J12: Estimated 2015-16
B13: Revenue Requirement | C13: 0 | D13: =C47 -> 1536651.289 | E13: =D47 -> 1609910.11 | G13: MDBA / BCR costs | H13: 0 | I13: =H47 -> 720507.8125 | J13: =I47 -> 1471689.234
B14: Estimated Tariff Revenue | C14: 0 | D14: =C89 -> 0 | E14: =D89 -> 0 | G14: Estimated MDBA / BCR revenue | H14: 0 | I14: =H89 -> 0 | J14: =I89 -> 0
B15: Difference | C15: =C14-C13 -> 0 | D15: =D14-D13 -> -1536651.289 | E15: =E14-E13 -> -1609910.11 | G15: Difference | H15: =H14-H13 -> 0 | I15: =I14-I13 -> -720507.8125 | J15: =J14-J13 -> -1471689.234
B18: Calc. of UOM (t-2) | C18: Actual 2012-13 | D18: Actual 2013-14 | E18: Actual 2014-15 | G18: Calc. of UOM (t-2) | H18: Actual 2012-13 | I18: Actual 2013-14 | J18: Actual 2014-15
B19: Estimated Tariff Revenue | C19: 0 | D19: =C14 -> 0 | E19: =D14 -> 0 | G19: Estimated Tariff Revenue | H19: 0 | I19: =H14 -> 0 | J19: =I14 -> 0
B20: Actual Tariff Revenue | C20: 0 | D20: 0 | E20: =C102 -> 0 | G20: Actual Tariff Revenue | H20: 0 | I20: 0 | J20: =H102 -> 0
B21: Difference | C21: =C20-C19 -> 0 | D21: =D20-D19 -> 0 | E21: =E20-E19 -> 0 | G21: Difference | H21: =H20-H19 -> 0 | I21: =I20-I19 -> 0 | J21: =J20-J19 -> 0
B30: WACC | C30: Actual 2014-15 | D30: Actual 2015-16 | E30: Actual 2016-17 | G30: WACC | H30: Actual 2014-15 | I30: Actual 2015-16 | J30: Actual 2016-17
B31: CPI (t) | C31: ='State Water data inputs'!C11 -> 0.029296875 | D31: ='State Water data inputs'!D11 -> 0 | E31: ='State Water data inputs'!E11 -> 0 | G31: CPI (t) | H31: =C31 -> 0.029296875 | I31: =D31 -> 0 | J31: 0
B32: Real Pre Tax WACC | C32: ='ACCC data inputs'!B39 -> 0.04257220868 | D32: ='ACCC data inputs'!C39 -> 0.04257220868 | E32: ='ACCC data inputs'!D39 -> 0.04257220868 | G32: Real Pre Tax WACC | H32: =C32 -> 0.04257220868 | I32: 0.04257220868 | J32: 0.04257220868
B33: Nominal Pre Tax WACC | C33: =(1+C31)*(1+C32)-1 -> 0.07311631635 | D33: =(1+D31)*(1+D32)-1 -> 0.04257220868 | E33: 0.04257220868 | G33: Nominal Pre Tax WACC | H33: =(1+H31)*(1+H32)-1 -> 0.07311631635 | I33: =(1+I31)*(1+I32)-1 -> 0.04257220868 | J33: =(1+J31)*(1+J32)-1 -> 0.04257220868
B36: RAB UOM | C36: Actual 2014-15 | D36: Actual 2015-16 | E36: Actual 2016-17 | H36: Actual 2014-15 | I36: Actual 2015-16 | J36: Actual 2016-17
B37: Opening balance | C37: 0 | D37: =C40 -> 0 | E37: =D40 -> -1536651.289
B38: UOM (t-1) | C38: =C15 -> 0 | D38: =D15 -> -1536651.289 | E38: =E15 -> -1609910.11 | G38: UOM (t-1) | H38: =H15 -> 0 | I38: =I15 -> -720507.8125 | J38: =J15 -> -1471689.234
B39: UOM (t-2) | C39: 0 | D39: =D21*(1+C$33) -> 0 | E39: =E21*(1+D$33) -> 0 | G39: UOM (t-2) | H39: 0 | I39: =I21*(1+H$33) -> 0 | J39: =J21*(1+I$33) -> 0
B40: Closing balance | C40: =SUM(C37:C39) -> 0 | D40: =SUM(D37:D39) -> -1536651.289 | E40: -3146561.399
B42: Rev UOM (t) | C42: =C40*C$33 -> 0 | D42: =D40*D$33 -> -65418.63935 | E42: =E40*E$33 -> -133956.0685 | G42: Rev UOM (t) | H42: =SUM(H38:H40)*(1+H$33) -> 0 | I42: =SUM(I38:I39)*(1+I$33) -> -751181.4214 | J42: =SUM(J38:J39)*(1+J$33) -> -1534342.295
B46: Revenue Requirement | C46: 2014-15 | D46: 2015-16 | E46: 2016-17 | G46: Maximum pass through revenue | H46: 2014-15 | I46: 2015-16 | J46: 2016-17
B47: Revenue Requirement | C47: =(C7-C42) -> 1536651.289 | D47: =(D7-D42) -> 1609910.11 | E47: =(E7-E42) -> 1686327.722 | G47: Maximum MDBA / BCR Revenue | H47: =(H7-H42) -> 720507.8125 | I47: =(I7-I42) -> 1471689.234 | J47: =(J7-J42) -> 2254850.108
B52: Forecast Tariff Revenue | C52: 2014-15 | D52: 2015-16 | E52: 2016-17 | G52: Forecast Tariff Revenue | H52: 2014-15 | I52: 2015-16 | J52: 2016-17
B53: Revenue Requirement | C53: =C47 -> 1536651.289 | D53: =D47 -> 1609910.11 | E53: 1686327.722 | G53: Maximum MDBA / BCR Revenue | H53: =H47 -> 720507.8125 | I53: =I47 -> 1471689.234 | J53: =J47 -> 2254850.108
B54: Target Variable / Fixed ratio (%) | C54: ='ACCC data inputs'!B30 -> 0.6 | D54: ='ACCC data inputs'!C30 -> 0.6 | E54: ='ACCC data inputs'!D30 -> 0.6 | G54: Target Variable / Fixed ratio (%) | H54: =C54 -> 0.6 | I54: 0.6 | J54: 0.6
B55: Variable Charge Revenue | C55: =C53*C54 -> 921990.7735 | D55: =D53*D54 -> 965946.0659 | E55: =E53*E54 -> 1011796.633 | G55: Variable Charge Revenue | H55: =H53*H54 -> 432304.6875 | I55: =I53*I54 -> 883013.5404 | J55: =J53*J54 -> 1352910.065
B57: Water sharing plan ratio (WSP) | C57: ='ACCC data inputs'!$B$19 -> 1.28 | D57: ='ACCC data inputs'!$B$19 -> 1.28 | E57: ='ACCC data inputs'!$B$19 -> 1.28 | G57: Water sharing plan ratio (WSP) | H57: =C57 -> 1.28 | I57: 1.28 | J57: 1.28
B58: Average Water Allocation (AWA) | C58: ='State Water data inputs'!L$59 -> 2.318499677 | D58: ='State Water data inputs'!M$59 -> 2.220594258 | E58: ='State Water data inputs'!N$59 -> 2.103720876 | G58: Average Water Allocation (AWA) | H58: 2.318499677 | I58: 2.220594258 | J58: 2.103720876
B59: High security premium (times) | C59: =C57*C58 -> 2.967679587 | D59: =D57*D58 -> 2.842360651 | E59: =E57*E58 -> 2.692762722 | G59: High security premium (times) | H59: 2.967679587 | I59: 2.842360651 | J59: 2.692762722
B61: Forecast sales quantities | C61: =C$52 -> 2014-15 | D61: =D$52 -> 2015-16 | E61: 2016-17 | G61: Forecast sales quantities | H61: =H$52 -> 2014-15 | I61: =I$52 -> 2015-16 | J61: =J$52 -> 2016-17
B62: High Security Entitlement (ML) | C62: ='State Water data inputs'!B$31 -> 3122 | D62: ='State Water data inputs'!C$31 -> 0 | E62: ='State Water data inputs'!D$31 -> 0 | G62: High Security Entitlement (ML) | H62: =C62 -> 3122 | I62: 0 | J62: 0
B63: General Security Entitlement (ML) | C63: ='State Water data inputs'!B$17 -> 263238 | D63: ='State Water data inputs'!C$17 -> 0 | E63: ='State Water data inputs'!D$17 -> 0 | G63: General Security Entitlement (ML) | H63: 263238 | I63: 0 | J63: 0
B64: Water volumes (ML) | C64: ='State Water data inputs'!B$44 -> 140676.9395 | D64: ='State Water data inputs'!C$44 -> 137272.5895 | E64: ='State Water data inputs'!D$44 -> 134078.3895 | G64: Water volumes (ML) | H64: 140676.9395 | I64: 137272.5895 | J64: 134078.3895
B66: Tariffs ($ Nominal) | C66: =C$52 -> 2014-15 | D66: =D$52 -> 2015-16 | E66: 2016-17 | G66: Tariffs ($ Nominal) | H66: =H$52 -> 2014-15 | I66: =I$52 -> 2015-16 | J66: =J$52 -> 2016-17
B67: High Security Entitlement ($/ML) | C67: =C68*C59 -> 6.693925663 | D67: =D68*D59 -> 0 | E67: 0 | G67: High Security Entitlement ($/ML) | H67: =H68*H59 -> 3.138659871 | I67: =I68*I59 -> 0 | J67: =J68*J59 -> 0
B68: General Security Entitlement ($/ML) | C68: =(C53-C55)/(C63+C62*C59) -> 2.255609296 | D68: =IF((D63+D62*D59)=0,0,(D53-D55)/(D63+D62*D59)) -> 0 | E68: =IF((E63+E62*E59)=0,0,(E53-E55)/(E63+E62*E59)) -> 0 | G68: General Security Entitlement ($/ML) | H68: =(H53-H55)/(H63+H62*H59) -> 1.057614132 | I68: =IF((I63+I62*I59)=0,0,(I53-I55)/(I63+I62*I59)) -> 0 | J68: =IF((J63+J62*J59)=0,0,(J53-J55)/(J63+J62*J59)) -> 0
B69: Usage ($/ML delivered) | C69: =C55/C64 -> 6.553958145 | D69: =D55/D64 -> 7.036700257 | E69: 7.546306581 | G69: Usage ($/ML delivered) | H69: =H55/H64 -> 3.07303165 | I69: =I55/I64 -> 6.432555426 | J69: =J55/J64 -> 10.0904409
B71: Tariffs Revenue ($'000 Nominal) | C71: =C$52 -> 2014-15 | D71: =D$52 -> 2015-16 | E71: 2016-17 | G71: Tariffs Revenue ($'000 Nominal) | H71: =H$52 -> 2014-15 | I71: =I$52 -> 2015-16 | J71: =J$52 -> 2016-17
B72: High Security Entitlement | C72: =C62*C67 -> 20898.43592 | D72: =D62*D67 -> 0 | E72: 0 | G72: High Security Entitlement | H72: =H62*H67 -> 9798.896116 | I72: 0 | J72: 0
B73: General Security Entitlement | C73: =C63*C68 -> 593762.0798 | D73: 0 | E73: 0 | G73: General Security Entitlement | H73: 278404.2289 | I73: 0 | J73: 0
B74: Usage | C74: =C64*C69 -> 921990.7735 | D74: 965946.0659 | E74: 1011796.633 | G74: Usage | H74: 432304.6875 | I74: 883013.5404 | J74: 1352910.065
C75: =SUM(C72:C74) -> 1536651.289 | D75: =SUM(D72:D74) -> 965946.0659 | E75: 1011796.633 | H75: =SUM(H72:H74) -> 720507.8125 | I75: =SUM(I72:I74) -> 883013.5404 | J75: =SUM(J72:J74) -> 1352910.065
B76: Check | C76: =ABS(C75-C53) -> 0 | D76: =ABS(IF(SUM(D72:D73)=0,0,D75-D53)) -> 0 | E76: =ABS(IF(SUM(E72:E73)=0,0,E75-E53)) -> 0 | G76: Check | H76: =ABS(H75-H53) -> 0 | I76: =ABS(IF(SUM(I72:I73)=0,0,I75-I53)) -> 0 | J76: 0
B79: Estimated Tariff Revenue | G79: Estimated Tariff Revenue
B80: Estimated sales quantities | C80: =C$52 -> 2014-15 | D80: =D$52 -> 2015-16 | E80: 2016-17 | G80: Estimated sales quantities | H80: =H$52 -> 2014-15 | I80: =I$52 -> 2015-16 | J80: =J$52 -> 2016-17
B81: High Security Entitlement (ML) | C81: ='State Water data inputs'!F$31 -> 0 | D81: ='State Water data inputs'!G$31 -> 0 | E81: ='State Water data inputs'!H$31 -> 0 | G81: High Security Entitlement (ML) | H81: =C81 -> 0 | I81: 0 | J81: 0
B82: General Security Entitlement (ML) | C82: ='State Water data inputs'!F$17 -> 0 | D82: ='State Water data inputs'!G$17 -> 0 | E82: ='State Water data inputs'!H$17 -> 0 | G82: General Security Entitlement (ML) | H82: 0 | I82: 0 | J82: 0
B83: Water volumes (ML) | C83: ='State Water data inputs'!F$44 -> 0 | D83: ='State Water data inputs'!G$44 -> 0 | E83: ='State Water data inputs'!H$44 -> 0 | G83: Water volumes (ML) | H83: 0 | I83: 0 | J83: 0
B85: Tariffs Revenue ($'000 Nominal) | C85: =C$52 -> 2014-15 | D85: =D$52 -> 2015-16 | E85: 2016-17 | G85: Tariffs Revenue ($'000 Nominal) | H85: =H$52 -> 2014-15 | I85: =I$52 -> 2015-16 | J85: =J$52 -> 2016-17
B86: High Security Entitlement | C86: =C81*C67 -> 0 | D86: 0 | E86: 0 | G86: High Security Entitlement | H86: =H81*H67 -> 0 | I86: 0 | J86: 0
B87: General Security Entitlement | C87: 0 | D87: 0 | E87: 0 | G87: General Security Entitlement | H87: 0 | I87: 0 | J87: 0
B88: Usage | C88: 0 | D88: 0 | E88: 0 | G88: Usage | H88: 0 | I88: 0 | J88: 0
C89: =SUM(C86:C88) -> 0 | D89: =SUM(D86:D88) -> 0 | E89: 0 | H89: =SUM(H86:H88) -> 0 | I89: =SUM(I86:I88) -> 0 | J89: =SUM(J86:J88) -> 0
B92: Actual Tariff Revenue | G92: Actual Tariff Revenue
B93: Actual sales quantities | C93: =C$52 -> 2014-15 | D93: =D$52 -> 2015-16 | E93: 2016-17 | G93: Actual sales quantities | H93: =H$52 -> 2014-15 | I93: =I$52 -> 2015-16 | J93: =J$52 -> 2016-17
B94: High Security Entitlement (ML) | C94: ='State Water data inputs'!K$31 -> 0 | D94: ='State Water data inputs'!L$31 -> 0 | E94: ='State Water data inputs'!M$31 -> 0 | G94: High Security Entitlement (ML) | H94: =C94 -> 0 | I94: 0 | J94: 0
B95: General Security Entitlement (ML) | C95: ='State Water data inputs'!K$17 -> 0 | D95: ='State Water data inputs'!L$17 -> 0 | E95: ='State Water data inputs'!M$17 -> 0 | G95: General Security Entitlement (ML) | H95: 0 | I95: 0 | J95: 0
B96: Water volumes (ML) | C96: ='State Water data inputs'!K$44 -> 0 | D96: ='State Water data inputs'!L$44 -> 0 | E96: ='State Water data inputs'!M$44 -> 0 | G96: Water volumes (ML) | H96: 0 | I96: 0 | J96: 0
B98: Tariffs Revenue ($'000 Nominal) | C98: =C$52 -> 2014-15 | D98: =D$52 -> 2015-16 | E98: =E$52 -> 2016-17 | G98: Tariffs Revenue ($'000 Nominal) | H98: =H$52 -> 2014-15 | I98: =I$52 -> 2015-16 | J98: =J$52 -> 2016-17
B99: High Security Entitlement | C99: =C94*C67 -> 0 | D99: 0 | E99: 0 | G99: High Security Entitlement | H99: =H94*H67 -> 0 | I99: 0 | J99: 0
B100: General Security Entitlement | C100: 0 | D100: 0 | E100: 0 | G100: General Security Entitlement | H100: 0 | I100: 0 | J100: 0
B101: Usage | C101: 0 | D101: 0 | E101: 0 | G101: Usage | H101: 0 | I101: 0 | J101: 0
C102: =SUM(C99:C101) -> 0 | D102: =SUM(D99:D101) -> 0 | E102: 0 | H102: =SUM(H99:H101) -> 0 | I102: =SUM(I99:I101) -> 0 | J102: =SUM(J99:J101) -> 0

Sheet Gwydir
B1: Gwydir | C1: Check | D1: =IF(E1>0.001,"Error","Ok") -> Ok | E1: =SUM(C76:E76,H76:J76) -> 0
B3: State Water Costs Tariffs | C3: 2014-15 | D3: 2015-16 | E3: 2016-17 | G3: MDBA / BCR Tariffs | H3: 2014-15 | I3: 2015-16 | J3: 2016-17
B6: Benchmark Revenue (Rev BBM) | C6: Forecast 2014-15 | D6: Forecast 2015-16 | E6: Forecast 2016-17 | G6: MDBA / BCR costs | H6: Forecast 2014-15 | I6: Forecast 2015-16 | J6: Forecast 2016-17
B7: Benchmark Revenue (Rev BBM) | C7: ='ACCC data inputs'!B$7*(1+C$31) -> 4978540.264 | D7: ='ACCC data inputs'!C$7*(1+C$31)*(1+D$31) -> 5048264.33 | E7: ='ACCC data inputs'!D$7*(1+C$31)*(1+D$31)*(1+E$31) -> 5118964.877 | G7: MDBA / BCR costs | H7: ='ACCC data inputs'!G$7*(1+H$31) -> 0 | I7: ='ACCC data inputs'!H$7*(1+H$31)*(1+I$31) -> 0 | J7: ='ACCC data inputs'!I$7*(1+H$31)*(1+I$31)*(1+J$31) -> 0
B11: Unders/Overs Adjustment | G11: Unders/Overs Adjustment
B12: Calc. of UOM (t-1) | C12: Estimated 2013-14 | D12: Estimated 2014-15 | E12: Estimated 2015-16 | G12: Calc. of UOM (t-1) | H12: Estimated 2013-14 | I12: Estimated 2014-15 | J12: Estimated 2015-16
B13: Revenue Requirement | C13: 0 | D13: =C47 -> 4978540.264 | E13: =D47 -> 5260211.785 | G13: MDBA / BCR costs | H13: 0 | I13: =H47 -> 0 | J13: =I47 -> 0
B14: Estimated Tariff Revenue | C14: 0 | D14: =C89 -> 0 | E14: =D89 -> 0 | G14: Estimated MDBA / BCR revenue | H14: 0 | I14: =H89 -> 0 | J14: =I89 -> 0
B15: Difference | C15: =C14-C13 -> 0 | D15: =D14-D13 -> -4978540.264 | E15: =E14-E13 -> -5260211.785 | G15: Difference | H15: =H14-H13 -> 0 | I15: =I14-I13 -> 0 | J15: =J14-J13 -> 0
B18: Calc. of UOM (t-2) | C18: Actual 2012-13 | D18: Actual 2013-14 | E18: Actual 2014-15 | G18: Calc. of UOM (t-2) | H18: Actual 2012-13 | I18: Actual 2013-14 | J18: Actual 2014-15
B19: Estimated Tariff Revenue | C19: 0 | D19: =C14 -> 0 | E19: =D14 -> 0 | G19: Estimated Tariff Revenue | H19: 0 | I19: =H14 -> 0 | J19: =I14 -> 0
B20: Actual Tariff Revenue | C20: 0 | D20: 0 | E20: =C102 -> 0 | G20: Actual Tariff Revenue | H20: 0 | I20: 0 | J20: =H102 -> 0
B21: Difference | C21: =C20-C19 -> 0 | D21: =D20-D19 -> 0 | E21: =E20-E19 -> 0 | G21: Difference | H21: =H20-H19 -> 0 | I21: =I20-I19 -> 0 | J21: =J20-J19 -> 0
B30: WACC | C30: Actual 2014-15 | D30: Actual 2015-16 | E30: Actual 2016-17 | G30: WACC | H30: Actual 2014-15 | I30: Actual 2015-16 | J30: Actual 2016-17
B31: CPI (t) | C31: ='State Water data inputs'!C11 -> 0.029296875 | D31: ='State Water data inputs'!D11 -> 0 | E31: ='State Water data inputs'!E11 -> 0 | G31: CPI (t) | H31: =C31 -> 0.029296875 | I31: =D31 -> 0 | J31: 0
B32: Real Pre Tax WACC | C32: ='ACCC data inputs'!B39 -> 0.04257220868 | D32: ='ACCC data inputs'!C39 -> 0.04257220868 | E32: ='ACCC data inputs'!D39 -> 0.04257220868 | G32: Real Pre Tax WACC | H32: =C32 -> 0.04257220868 | I32: 0.04257220868 | J32: 0.04257220868
B33: Nominal Pre Tax WACC | C33: =(1+C31)*(1+C32)-1 -> 0.07311631635 | D33: =(1+D31)*(1+D32)-1 -> 0.04257220868 | E33: 0.04257220868 | G33: Nominal Pre Tax WACC | H33: =(1+H31)*(1+H32)-1 -> 0.07311631635 | I33: =(1+I31)*(1+I32)-1 -> 0.04257220868 | J33: =(1+J31)*(1+J32)-1 -> 0.04257220868
B36: RAB UOM | C36: Actual 2014-15 | D36: Actual 2015-16 | E36: Actual 2016-17 | H36: Actual 2014-15 | I36: Actual 2015-16 | J36: Actual 2016-17
B37: Opening balance | C37: 0 | D37: =C40 -> 0 | E37: =D40 -> -4978540.264
B38: UOM (t-1) | C38: =C15 -> 0 | D38: =D15 -> -4978540.264 | E38: =E15 -> -5260211.785 | G38: UOM (t-1) | H38: =H15 -> 0 | I38: =I15 -> 0 | J38: =J15 -> 0
B39: UOM (t-2) | C39: 0 | D39: =D21*(1+C$33) -> 0 | E39: =E21*(1+D$33) -> 0 | G39: UOM (t-2) | H39: 0 | I39: =I21*(1+H$33) -> 0 | J39: =J21*(1+I$33) -> 0
B40: Closing balance | C40: =SUM(C37:C39) -> 0 | D40: =SUM(D37:D39) -> -4978540.264 | E40: -10238752.05
B42: Rev UOM (t) | C42: =C40*C$33 -> 0 | D42: =D40*D$33 -> -211947.455 | E42: =E40*E$33 -> -435886.2888 | G42: Rev UOM (t) | H42: =SUM(H38:H40)*(1+H$33) -> 0 | I42: =SUM(I38:I39)*(1+I$33) -> 0 | J42: =SUM(J38:J39)*(1+J$33) -> 0
B46: Revenue Requirement | C46: 2014-15 | D46: 2015-16 | E46: 2016-17 | G46: Maximum pass through revenue | H46: 2014-15 | I46: 2015-16 | J46: 2016-17
B47: Revenue Requirement | C47: =(C7-C42) -> 4978540.264 | D47: =(D7-D42) -> 5260211.785 | E47: =(E7-E42) -> 5554851.166 | G47: Maximum MDBA / BCR Revenue | H47: =(H7-H42) -> 0 | I47: =(I7-I42) -> 0 | J47: =(J7-J42) -> 0
B52: Forecast Tariff Revenue | C52: 2014-15 | D52: 2015-16 | E52: 2016-17 | G52: Forecast Tariff Revenue | H52: 2014-15 | I52: 2015-16 | J52: 2016-17
B53: Revenue Requirement | C53: =C47 -> 4978540.264 | D53: =D47 -> 5260211.785 | E53: 5554851.166 | G53: Maximum MDBA / BCR Revenue | H53: =H47 -> 0 | I53: =I47 -> 0 | J53: =J47 -> 0
B54: Target Variable / Fixed ratio (%) | C54: ='ACCC data inputs'!B30 -> 0.6 | D54: ='ACCC data inputs'!C30 -> 0.6 | E54: ='ACCC data inputs'!D30 -> 0.6 | G54: Target Variable / Fixed ratio (%) | H54: =C54 -> 0.6 | I54: 0.6 | J54: 0.6
B55: Variable Charge Revenue | C55: =C53*C54 -> 2987124.158 | D55: =D53*D54 -> 3156127.071 | E55: =E53*E54 -> 3332910.7 | G55: Variable Charge Revenue | H55: =H53*H54 -> 0 | I55: =I53*I54 -> 0 | J55: =J53*J54 -> 0
B57: Water sharing plan ratio (WSP) | C57: ='ACCC data inputs'!$B$20 -> 1.81 | D57: ='ACCC data inputs'!$B$20 -> 1.81 | E57: ='ACCC data inputs'!$B$20 -> 1.81 | G57: Water sharing plan ratio (WSP) | H57: =C57 -> 1.81 | I57: 1.81 | J57: 1.81
B58: Average Water Allocation (AWA) | C58: ='State Water data inputs'!L$60 -> 2.246650589 | D58: ='State Water data inputs'!M$60 -> 2.134318059 | E58: ='State Water data inputs'!N$60 -> 2.02198553 | G58: Average Water Allocation (AWA) | H58: 2.246650589 | I58: 2.134318059 | J58: 2.02198553
B59: High security premium (times) | C59: =C57*C58 -> 4.066437565 | D59: =D57*D58 -> 3.863115687 | E59: =E57*E58 -> 3.659793809 | G59: High security premium (times) | H59: 4.066437565 | I59: 3.863115687 | J59: 3.659793809
B61: Forecast sales quantities | C61: =C$52 -> 2014-15 | D61: =D$52 -> 2015-16 | E61: 2016-17 | G61: Forecast sales quantities | H61: =H$52 -> 2014-15 | I61: =I$52 -> 2015-16 | J61: =J$52 -> 2016-17
B62: High Security Entitlement (ML) | C62: ='State Water data inputs'!B$32 -> 21457.9 | D62: ='State Water data inputs'!C$32 -> 0 | E62: ='State Water data inputs'!D$32 -> 0 | G62: High Security Entitlement (ML) | H62: =C62 -> 21457.9 | I62: 0 | J62: 0
B63: General Security Entitlement (ML) | C63: ='State Water data inputs'!B$18 -> 509665 | D63: ='State Water data inputs'!C$18 -> 0 | E63: ='State Water data inputs'!D$18 -> 0 | G63: General Security Entitlement (ML) | H63: 509665 | I63: 0 | J63: 0
B64: Water volumes (ML) | C64: ='State Water data inputs'!B$45 -> 245876.7405 | D64: ='State Water data inputs'!C$45 -> 240933.613 | E64: ='State Water data inputs'!D$45 -> 238674.575 | G64: Water volumes (ML) | H64: 245876.7405 | I64: 240933.613 | J64: 238674.575
B66: Tariffs ($ Nominal) | C66: =C$52 -> 2014-15 | D66: =D$52 -> 2015-16 | E66: 2016-17 | G66: Tariffs ($ Nominal) | H66: =H$52 -> 2014-15 | I66: =I$52 -> 2015-16 | J66: =J$52 -> 2016-17
B67: High Security Entitlement ($/ML) | C67: =C68*C59 -> 13.5662053 | D67: =D68*D59 -> 0 | E67: 0 | G67: High Security Entitlement ($/ML) | H67: =H68*H59 -> 0 | I67: =I68*I59 -> 0 | J67: =J68*J59 -> 0
B68: General Security Entitlement ($/ML) | C68: =(C53-C55)/(C63+C62*C59) -> 3.33614007 | D68: =IF((D63+D62*D59)=0,0,(D53-D55)/(D63+D62*D59)) -> 0 | E68: =IF((E63+E62*E59)=0,0,(E53-E55)/(E63+E62*E59)) -> 0 | G68: General Security Entitlement ($/ML) | H68: =(H53-H55)/(H63+H62*H59) -> 0 | I68: =IF((I63+I62*I59)=0,0,(I53-I55)/(I63+I62*I59)) -> 0 | J68: =IF((J63+J62*J59)=0,0,(J53-J55)/(J63+J62*J59)) -> 0
B69: Usage ($/ML delivered) | C69: =C55/C64 -> 12.14886838 | D69: =D55/D64 -> 13.09957142 | E69: 13.96424692 | G69: Usage ($/ML delivered) | H69: =H55/H64 -> 0 | I69: =I55/I64 -> 0 | J69: =J55/J64 -> 0
B71: Tariffs Revenue ($'000 Nominal) | C71: =C$52 -> 2014-15 | D71: =D$52 -> 2015-16 | E71: 2016-17 | G71: Tariffs Revenue ($'000 Nominal) | H71: =H$52 -> 2014-15 | I71: =I$52 -> 2015-16 | J71: =J$52 -> 2016-17
B72: High Security Entitlement | C72: =C62*C67 -> 291102.2768 | D72: =D62*D67 -> 0 | E72: 0 | G72: High Security Entitlement | H72: =H62*H67 -> 0 | I72: 0 | J72: 0
B73: General Security Entitlement | C73: =C63*C68 -> 1700313.829 | D73: 0 | E73: 0 | G73: General Security Entitlement | H73: 0 | I73: 0 | J73: 0
B74: Usage | C74: =C64*C69 -> 2987124.158 | D74: 3156127.071 | E74: 3332910.7 | G74: Usage | H74: 0 | I74: 0 | J74: 0
C75: =SUM(C72:C74) -> 4978540.264 | D75: =SUM(D72:D74) -> 3156127.071 | E75: 3332910.7 | H75: =SUM(H72:H74) -> 0 | I75: =SUM(I72:I74) -> 0 | J75: =SUM(J72:J74) -> 0
B76: Check | C76: =ABS(C75-C53) -> 0 | D76: =ABS(IF(SUM(D72:D73)=0,0,D75-D53)) -> 0 | E76: =ABS(IF(SUM(E72:E73)=0,0,E75-E53)) -> 0 | G76: Check | H76: =ABS(H75-H53) -> 0 | I76: =ABS(IF(SUM(I72:I73)=0,0,I75-I53)) -> 0 | J76: 0
B79: Estimated Tariff Revenue | G79: Estimated Tariff Revenue
B80: Estimated sales quantities | C80: =C$52 -> 2014-15 | D80: =D$52 -> 2015-16 | E80: 2016-17 | G80: Estimated sales quantities | H80: =H$52 -> 2014-15 | I80: =I$52 -> 2015-16 | J80: =J$52 -> 2016-17
B81: High Security Entitlement (ML) | C81: ='State Water data inputs'!F$32 -> 0 | D81: ='State Water data inputs'!G$32 -> 0 | E81: ='State Water data inputs'!H$32 -> 0 | G81: High Security Entitlement (ML) | H81: =C81 -> 0 | I81: 0 | J81: 0
B82: General Security Entitlement (ML) | C82: ='State Water data inputs'!F$18 -> 0 | D82: ='State Water data inputs'!G$18 -> 0 | E82: ='State Water data inputs'!H$18 -> 0 | G82: General Security Entitlement (ML) | H82: 0 | I82: 0 | J82: 0
B83: Water volumes (ML) | C83: ='State Water data inputs'!F$45 -> 0 | D83: ='State Water data inputs'!G$45 -> 0 | E83: ='State Water data inputs'!H$45 -> 0 | G83: Water volumes (ML) | H83: 0 | I83: 0 | J83: 0
B85: Tariffs Revenue ($'000 Nominal) | C85: =C$52 -> 2014-15 | D85: =D$52 -> 2015-16 | E85: 2016-17 | G85: Tariffs Revenue ($'000 Nominal) | H85: =H$52 -> 2014-15 | I85: =I$52 -> 2015-16 | J85: =J$52 -> 2016-17
B86: High Security Entitlement | C86: =C81*C67 -> 0 | D86: 0 | E86: 0 | G86: High Security Entitlement | H86: =H81*H67 -> 0 | I86: 0 | J86: 0
B87: General Security Entitlement | C87: 0 | D87: 0 | E87: 0 | G87: General Security Entitlement | H87: 0 | I87: 0 | J87: 0
B88: Usage | C88: 0 | D88: 0 | E88: 0 | G88: Usage | H88: 0 | I88: 0 | J88: 0
C89: =SUM(C86:C88) -> 0 | D89: =SUM(D86:D88) -> 0 | E89: 0 | H89: =SUM(H86:H88) -> 0 | I89: =SUM(I86:I88) -> 0 | J89: =SUM(J86:J88) -> 0
B92: Actual Tariff Revenue | G92: Actual Tariff Revenue
B93: Actual sales quantities | C93: =C$52 -> 2014-15 | D93: =D$52 -> 2015-16 | E93: 2016-17 | G93: Actual sales quantities | H93: =H$52 -> 2014-15 | I93: =I$52 -> 2015-16 | J93: =J$52 -> 2016-17
B94: High Security Entitlement (ML) | C94: ='State Water data inputs'!K$32 -> 0 | D94: ='State Water data inputs'!L$32 -> 0 | E94: ='State Water data inputs'!M$32 -> 0 | G94: High Security Entitlement (ML) | H94: =C94 -> 0 | I94: 0 | J94: 0
B95: General Security Entitlement (ML) | C95: ='State Water data inputs'!K$18 -> 0 | D95: ='State Water data inputs'!L$18 -> 0 | E95: ='State Water data inputs'!M$18 -> 0 | G95: General Security Entitlement (ML) | H95: 0 | I95: 0 | J95: 0
B96: Water volumes (ML) | C96: ='State Water data inputs'!K$45 -> 0 | D96: ='State Water data inputs'!L$45 -> 0 | E96: ='State Water data inputs'!M$45 -> 0 | G96: Water volumes (ML) | H96: 0 | I96: 0 | J96: 0
B98: Tariffs Revenue ($'000 Nominal) | C98: =C$52 -> 2014-15 | D98: =D$52 -> 2015-16 | E98: =E$52 -> 2016-17 | G98: Tariffs Revenue ($'000 Nominal) | H98: =H$52 -> 2014-15 | I98: =I$52 -> 2015-16 | J98: =J$52 -> 2016-17
B99: High Security Entitlement | C99: =C94*C67 -> 0 | D99: 0 | E99: 0 | G99: High Security Entitlement | H99: =H94*H67 -> 0 | I99: 0 | J99: 0
B100: General Security Entitlement | C100: 0 | D100: 0 | E100: 0 | G100: General Security Entitlement | H100: 0 | I100: 0 | J100: 0
B101: Usage | C101: 0 | D101: 0 | E101: 0 | G101: Usage | H101: 0 | I101: 0 | J101: 0
C102: =SUM(C99:C101) -> 0 | D102: =SUM(D99:D101) -> 0 | E102: 0 | H102: =SUM(H99:H101) -> 0 | I102: =SUM(I99:I101) -> 0 | J102: =SUM(J99:J101) -> 0

Sheet Namoi
B1: Namoi | C1: Check | D1: =IF(E1>0.001,"Error","Ok") -> Ok | E1: =SUM(C76:E76,H76:J76) -> 0
B3: State Water Costs Tariffs | C3: 2014-15 | D3: 2015-16 | E3: 2016-17 | G3: MDBA / BCR Tariffs | H3: 2014-15 | I3: 2015-16 | J3: 2016-17
B6: Benchmark Revenue (Rev BBM) | C6: Forecast 2014-15 | D6: Forecast 2015-16 | E6: Forecast 2016-17 | G6: MDBA / BCR costs | H6: Forecast 2014-15 | I6: Forecast 2015-16 | J6: Forecast 2016-17
B7: Benchmark Revenue (Rev BBM) | C7: ='ACCC data inputs'!B$8*(1+C$31) -> 5281330.975 | D7: ='ACCC data inputs'!C$8*(1+C$31)*(1+D$31) -> 5316929.963 | E7: ='ACCC data inputs'!D$8*(1+C$31)*(1+D$31)*(1+E$31) -> 5352768.906 | G7: MDBA / BCR costs | H7: ='ACCC data inputs'!G$8*(1+H$31) -> 0 | I7: ='ACCC data inputs'!H$8*(1+H$31)*(1+I$31) -> 0 | J7: ='ACCC data inputs'!I$8*(1+H$31)*(1+I$31)*(1+J$31) -> 0
B11: Unders/Overs Adjustment | G11: Unders/Overs Adjustment
B12: Calc. of UOM (t-1) | C12: Estimated 2013-14 | D12: Estimated 2014-15 | E12: Estimated 2015-16 | G12: Calc. of UOM (t-1) | H12: Estimated 2013-14 | I12: Estimated 2014-15 | J12: Estimated 2015-16
B13: Revenue Requirement | C13: 0 | D13: =C47 -> 5281330.975 | E13: =D47 -> 5541767.887 | G13: MDBA / BCR costs | H13: 0 | I13: =H47 -> 0 | J13: =I47 -> 0
B14: Estimated Tariff Revenue | C14: 0 | D14: =C89 -> 0 | E14: =D89 -> 0 | G14: Estimated MDBA / BCR revenue | H14: 0 | I14: =H89 -> 0 | J14: =I89 -> 0
B15: Difference | C15: =C14-C13 -> 0 | D15: =D14-D13 -> -5281330.975 | E15: =E14-E13 -> -5541767.887 | G15: Difference | H15: =H14-H13 -> 0 | I15: =I14-I13 -> 0 | J15: =J14-J13 -> 0
B18: Calc. of UOM (t-2) | C18: Actual 2012-13 | D18: Actual 2013-14 | E18: Actual 2014-15 | G18: Calc. of UOM (t-2) | H18: Actual 2012-13 | I18: Actual 2013-14 | J18: Actual 2014-15
B19: Estimated Tariff Revenue | C19: 0 | D19: =C14 -> 0 | E19: =D14 -> 0 | G19: Estimated Tariff Revenue | H19: 0 | I19: =H14 -> 0 | J19: =I14 -> 0
B20: Actual Tariff Revenue | C20: 0 | D20: 0 | E20: =C102 -> 0 | G20: Actual Tariff Revenue | H20: 0 | I20: 0 | J20: =H102 -> 0
B21: Difference | C21: =C20-C19 -> 0 | D21: =D20-D19 -> 0 | E21: =E20-E19 -> 0 | G21: Difference | H21: =H20-H19 -> 0 | I21: =I20-I19 -> 0 | J21: =J20-J19 -> 0
B30: WACC | C30: Actual 2014-15 | D30: Actual 2015-16 | E30: Actual 2016-17 | G30: WACC | H30: Actual 2014-15 | I30: Actual 2015-16 | J30: Actual 2016-17
B31: CPI (t) | C31: ='State Water data inputs'!C11 -> 0.029296875 | D31: ='State Water data inputs'!D11 -> 0 | E31: ='State Water data inputs'!E11 -> 0 | G31: CPI (t) | H31: =C31 -> 0.029296875 | I31: =D31 -> 0 | J31: 0
B32: Real Pre Tax WACC | C32: ='ACCC data inputs'!B39 -> 0.04257220868 | D32: ='ACCC data inputs'!C39 -> 0.04257220868 | E32: ='ACCC data inputs'!D39 -> 0.04257220868 | G32: Real Pre Tax WACC | H32: =C32 -> 0.04257220868 | I32: 0.04257220868 | J32: 0.04257220868
B33: Nominal Pre Tax WACC | C33: =(1+C31)*(1+C32)-1 -> 0.07311631635 | D33: =(1+D31)*(1+D32)-1 -> 0.04257220868 | E33: 0.04257220868 | G33: Nominal Pre Tax WACC | H33: =(1+H31)*(1+H32)-1 -> 0.07311631635 | I33: =(1+I31)*(1+I32)-1 -> 0.04257220868 | J33: =(1+J31)*(1+J32)-1 -> 0.04257220868
B36: RAB UOM | C36: Actual 2014-15 | D36: Actual 2015-16 | E36: Actual 2016-17 | H36: Actual 2014-15 | I36: Actual 2015-16 | J36: Actual 2016-17
B37: Opening balance | C37: 0 | D37: =C40 -> 0 | E37: =D40 -> -5281330.975
B38: UOM (t-1) | C38: =C15 -> 0 | D38: =D15 -> -5281330.975 | E38: =E15 -> -5541767.887 | G38: UOM (t-1) | H38: =H15 -> 0 | I38: =I15 -> 0 | J38: =J15 -> 0
B39: UOM (t-2) | C39: 0 | D39: =D21*(1+C$33) -> 0 | E39: =E21*(1+D$33) -> 0 | G39: UOM (t-2) | H39: 0 | I39: =I21*(1+H$33) -> 0 | J39: =J21*(1+I$33) -> 0
B40: Closing balance | C40: =SUM(C37:C39) -> 0 | D40: =SUM(D37:D39) -> -5281330.975 | E40: -10823098.86
B42: Rev UOM (t) | C42: =C40*C$33 -> 0 | D42: =D40*D$33 -> -224837.9244 | E42: =E40*E$33 -> -460763.2233 | G42: Rev UOM (t) | H42: =SUM(H38:H40)*(1+H$33) -> 0 | I42: =SUM(I38:I39)*(1+I$33) -> 0 | J42: =SUM(J38:J39)*(1+J$33) -> 0
B46: Revenue Requirement | C46: 2014-15 | D46: 2015-16 | E46: 2016-17 | G46: Maximum pass through revenue | H46: 2014-15 | I46: 2015-16 | J46: 2016-17
B47: Revenue Requirement | C47: =(C7-C42) -> 5281330.975 | D47: =(D7-D42) -> 5541767.887 | E47: =(E7-E42) -> 5813532.129 | G47: Maximum MDBA / BCR Revenue | H47: =(H7-H42) -> 0 | I47: =(I7-I42) -> 0 | J47: =(J7-J42) -> 0
B52: Forecast Tariff Revenue | C52: 2014-15 | D52: 2015-16 | E52: 2016-17 | G52: Forecast Tariff Revenue | H52: 2014-15 | I52: 2015-16 | J52: 2016-17
B53: Revenue Requirement | C53: =C47 -> 5281330.975 | D53: =D47 -> 5541767.887 | E53: 5813532.129 | G53: Maximum MDBA / BCR Revenue | H53: =H47 -> 0 | I53: =I47 -> 0 | J53: =J47 -> 0
B54: Target Variable / Fixed ratio (%) | C54: ='ACCC data inputs'!B30 -> 0.6 | D54: ='ACCC data inputs'!C30 -> 0.6 | E54: ='ACCC data inputs'!D30 -> 0.6 | G54: Target Variable / Fixed ratio (%) | H54: =C54 -> 0.6 | I54: 0.6 | J54: 0.6
B55: Variable Charge Revenue | C55: =C53*C54 -> 3168798.585 | D55: =D53*D54 -> 3325060.732 | E55: =E53*E54 -> 3488119.278 | G55: Variable Charge Revenue | H55: =H53*H54 -> 0 | I55: =I53*I54 -> 0 | J55: =J53*J54 -> 0
B57: Water sharing plan ratio (WSP) | C57: ='ACCC data inputs'!$B$21 -> 1.25 | D57: ='ACCC data inputs'!$B$21 -> 1.25 | E57: ='ACCC data inputs'!$B$21 -> 1.25 | G57: Water sharing plan ratio (WSP) | H57: =C57 -> 1.25 | I57: 1.25 | J57: 1.25
B58: Average Water Allocation (AWA) | C58: ='State Water data inputs'!L$61 -> 1.720536962 | D58: ='State Water data inputs'!M$61 -> 1.673378083 | E58: ='State Water data inputs'!N$61 -> 1.585305553 | G58: Average Water Allocation (AWA) | H58: 1.720536962 | I58: 1.673378083 | J58: 1.585305553
B59: High security premium (times) | C59: =C57*C58 -> 2.150671203 | D59: =D57*D58 -> 2.091722604 | E59: =E57*E58 -> 1.981631941 | G59: High security premium (times) | H59: 2.150671203 | I59: 2.091722604 | J59: 1.981631941
B61: Forecast sales quantities | C61: =C$52 -> 2014-15 | D61: =D$52 -> 2015-16 | E61: 2016-17 | G61: Forecast sales quantities | H61: =H$52 -> 2014-15 | I61: =I$52 -> 2015-16 | J61: =J$52 -> 2016-17
B62: High Security Entitlement (ML) | C62: ='State Water data inputs'!B$33 -> 8881 | D62: ='State Water data inputs'!C$33 -> 0 | E62: ='State Water data inputs'!D$33 -> 0 | G62: High Security Entitlement (ML) | H62: =C62 -> 8881 | I62: 0 | J62: 0
B63: General Security Entitlement (ML) | C63: ='State Water data inputs'!B$19 -> 256076 | D63: ='State Water data inputs'!C$19 -> 0 | E63: ='State Water data inputs'!D$19 -> 0 | G63: General Security Entitlement (ML) | H63: 256076 | I63: 0 | J63: 0
B64: Water volumes (ML) | C64: ='State Water data inputs'!B$46 -> 158960.9705 | D64: ='State Water data inputs'!C$46 -> 152848.5105 | E64: ='State Water data inputs'!D$46 -> 150866.7155 | G64: Water volumes (ML) | H64: 158960.9705 | I64: 152848.5105 | J64: 150866.7155
B66: Tariffs ($ Nominal) | C66: =C$52 -> 2014-15 | D66: =D$52 -> 2015-16 | E66: 2016-17 | G66: Tariffs ($ Nominal) | H66: =H$52 -> 2014-15 | I66: =I$52 -> 2015-16 | J66: =J$52 -> 2016-17
B67: High Security Entitlement ($/ML) | C67: =C68*C59 -> 16.51074492 | D67: =D68*D59 -> 0 | E67: 0 | G67: High Security Entitlement ($/ML) | H67: =H68*H59 -> 0 | I67: =I68*I59 -> 0 | J67: =J68*J59 -> 0
B68: General Security Entitlement ($/ML) | C68: =(C53-C55)/(C63+C62*C59) -> 7.677019575 | D68: =IF((D63+D62*D59)=0,0,(D53-D55)/(D63+D62*D59)) -> 0 | E68: =IF((E63+E62*E59)=0,0,(E53-E55)/(E63+E62*E59)) -> 0 | G68: General Security Entitlement ($/ML) | H68: =(H53-H55)/(H63+H62*H59) -> 0 | I68: =IF((I63+I62*I59)=0,0,(I53-I55)/(I63+I62*I59)) -> 0 | J68: =IF((J63+J62*J59)=0,0,(J53-J55)/(J63+J62*J59)) -> 0
B69: Usage ($/ML delivered) | C69: =C55/C64 -> 19.93444413 | D69: =D55/D64 -> 21.75396228 | E69: 23.12053567 | G69: Usage ($/ML delivered) | H69: =H55/H64 -> 0 | I69: =I55/I64 -> 0 | J69: =J55/J64 -> 0
B71: Tariffs Revenue ($'000 Nominal) | C71: =C$52 -> 2014-15 | D71: =D$52 -> 2015-16 | E71: 2016-17 | G71: Tariffs Revenue ($'000 Nominal) | H71: =H$52 -> 2014-15 | I71: =I$52 -> 2015-16 | J71: =J$52 -> 2016-17
B72: High Security Entitlement | C72: =C62*C67 -> 146631.9256 | D72: =D62*D67 -> 0 | E72: 0 | G72: High Security Entitlement | H72: =H62*H67 -> 0 | I72: 0 | J72: 0
B73: General Security Entitlement | C73: =C63*C68 -> 1965900.465 | D73: 0 | E73: 0 | G73: General Security Entitlement | H73: 0 | I73: 0 | J73: 0
B74: Usage | C74: =C64*C69 -> 3168798.585 | D74: 3325060.732 | E74: 3488119.278 | G74: Usage | H74: 0 | I74: 0 | J74: 0
C75: =SUM(C72:C74) -> 5281330.975 | D75: =SUM(D72:D74) -> 3325060.732 | E75: 3488119.278 | H75: =SUM(H72:H74) -> 0 | I75: =SUM(I72:I74) -> 0 | J75: =SUM(J72:J74) -> 0
B76: Check | C76: =ABS(C75-C53) -> 0 | D76: =ABS(IF(SUM(D72:D73)=0,0,D75-D53)) -> 0 | E76: =ABS(IF(SUM(E72:E73)=0,0,E75-E53)) -> 0 | G76: Check | H76: =ABS(H75-H53) -> 0 | I76: =ABS(IF(SUM(I72:I73)=0,0,I75-I53)) -> 0 | J76: 0
B79: Estimated Tariff Revenue | G79: Estimated Tariff Revenue
B80: Estimated sales quantities | C80: =C$52 -> 2014-15 | D80: =D$52 -> 2015-16 | E80: 2016-17 | G80: Estimated sales quantities | H80: =H$52 -> 2014-15 | I80: =I$52 -> 2015-16 | J80: =J$52 -> 2016-17
B81: High Security Entitlement (ML) | C81: ='State Water data inputs'!F$33 -> 0 | D81: ='State Water data inputs'!G$33 -> 0 | E81: ='State Water data inputs'!H$33 -> 0 | G81: High Security Entitlement (ML) | H81: =C81 -> 0 | I81: 0 | J81: 0
B82: General Security Entitlement (ML) | C82: ='State Water data inputs'!F$19 -> 0 | D82: ='State Water data inputs'!G$19 -> 0 | E82: ='State Water data inputs'!H$19 -> 0 | G82: General Security Entitlement (ML) | H82: 0 | I82: 0 | J82: 0
B83: Water volumes (ML) | C83: ='State Water data inputs'!F$46 -> 0 | D83: ='State Water data inputs'!G$46 -> 0 | E83: ='State Water data inputs'!H$46 -> 0 | G83: Water volumes (ML) | H83: 0 | I83: 0 | J83: 0
B85: Tariffs Revenue ($'000 Nominal) | C85: =C$52 -> 2014-15 | D85: =D$52 -> 2015-16 | E85: 2016-17 | G85: Tariffs Revenue ($'000 Nominal) | H85: =H$52 -> 2014-15 | I85: =I$52 -> 2015-16 | J85: =J$52 -> 2016-17
B86: High Security Entitlement | C86: =C81*C67 -> 0 | D86: 0 | E86: 0 | G86: High Security Entitlement | H86: =H81*H67 -> 0 | I86: 0 | J86: 0
B87: General Security Entitlement | C87: 0 | D87: 0 | E87: 0 | G87: General Security Entitlement | H87: 0 | I87: 0 | J87: 0
B88: Usage | C88: 0 | D88: 0 | E88: 0 | G88: Usage | H88: 0 | I88: 0 | J88: 0
C89: =SUM(C86:C88) -> 0 | D89: =SUM(D86:D88) -> 0 | E89: 0 | H89: =SUM(H86:H88) -> 0 | I89: =SUM(I86:I88) -> 0 | J89: =SUM(J86:J88) -> 0
B92: Actual Tariff Revenue | G92: Actual Tariff Revenue
B93: Actual sales quantities | C93: =C$52 -> 2014-15 | D93: =D$52 -> 2015-16 | E93: 2016-17 | G93: Actual sales quantities | H93: =H$52 -> 2014-15 | I93: =I$52 -> 2015-16 | J93: =J$52 -> 2016-17
B94: High Security Entitlement (ML) | C94: ='State Water data inputs'!K$33 -> 0 | D94: ='State Water data inputs'!L$33 -> 0 | E94: ='State Water data inputs'!M$33 -> 0 | G94: High Security Entitlement (ML) | H94: =C94 -> 0 | I94: 0 | J94: 0
B95: General Security Entitlement (ML) | C95: ='State Water data inputs'!K$19 -> 0 | D95: ='State Water data inputs'!L$19 -> 0 | E95: ='State Water data inputs'!M$19 -> 0 | G95: General Security Entitlement (ML) | H95: 0 | I95: 0 | J95: 0
B96: Water volumes (ML) | C96: ='State Water data inputs'!K$46 -> 0 | D96: ='State Water data inputs'!L$46 -> 0 | E96: ='State Water data inputs'!M$46 -> 0 | G96: Water volumes (ML) | H96: 0 | I96: 0 | J96: 0
B98: Tariffs Revenue ($'000 Nominal) | C98: =C$52 -> 2014-15 | D98: =D$52 -> 2015-16 | E98: =E$52 -> 2016-17 | G98: Tariffs Revenue ($'000 Nominal) | H98: =H$52 -> 2014-15 | I98: =I$52 -> 2015-16 | J98: =J$52 -> 2016-17
B99: High Security Entitlement | C99: =C94*C67 -> 0 | D99: 0 | E99: 0 | G99: High Security Entitlement | H99: =H94*H67 -> 0 | I99: 0 | J99: 0
B100: General Security Entitlement | C100: 0 | D100: 0 | E100: 0 | G100: General Security Entitlement | H100: 0 | I100: 0 | J100: 0
B101: Usage | C101: 0 | D101: 0 | E101: 0 | G101: Usage | H101: 0 | I101: 0 | J101: 0
C102: =SUM(C99:C101) -> 0 | D102: =SUM(D99:D101) -> 0 | E102: 0 | H102: =SUM(H99:H101) -> 0 | I102: =SUM(I99:I101) -> 0 | J102: =SUM(J99:J101) -> 0

Sheet Peel
B1: Peel | C1: Check | D1: =IF(E1>0.001,"Error","Ok") -> Ok | E1: 0
B3: State Water Costs Tariffs | H3: MDBA / BCR Tariffs
D5: 2014-15 | E5: 2015-16 | F5: 2016-17
B6: Peel Valley Annual real price increase cap | D6: ='ACCC data inputs'!B51 -> 0.1 | E6: ='ACCC data inputs'!C51 -> 0.1 | F6: ='ACCC data inputs'!D51 -> 0.1
B7: Actual CPI | D7: ='State Water data inputs'!C11 -> 0.029296875 | E7: ='State Water data inputs'!D11 -> 0 | F7: ='State Water data inputs'!E11 -> 0
B10: Tariffs ($ Nominal) | C10: 2013-14 | D10: 2014-15 | E10: 2015-16 | F10: 2016-17 | H10: Tariffs ($ Nominal) | I10: 2014-15 | J10: 2015-16 | K10: 2016-17
B11: High Security Entitlement ($/ML) | C11: ='ACCC data inputs'!B48 -> 25.07631511 | D11: =C11*(1+D$6)*(1+D$7) -> 28.39207006 | E11: =D11*(1+E$6)*(1+E$7) -> 31.23127706 | F11: 34.35440477 | H11: High Security Entitlement ($/ML) | I11: 0 | J11: 0 | K11: 0
B12: General Security Entitlement ($/ML) | C12: ='ACCC data inputs'!C48 -> 2.757498724 | D12: =C12*(1+D$6)*(1+D$7) -> 3.122113301 | E12: 3.434324632 | F12: 3.777757095 | H12: General Security Entitlement ($/ML) | I12: 0 | J12: 0 | K12: 0
B13: Usage ($/ML delivered) | C13: ='ACCC data inputs'!D48 -> 41.42221008 | D13: =C13*(1+D$6)*(1+D$7) -> 46.89932652 | E13: 51.58925918 | F13: 56.74818509 | H13: Usage ($/ML delivered) | I13: 0 | J13: 0 | K13: 0

Sheet Lachlan
B1: Lachlan | C1: Check | D1: =IF(E1>0.001,"Error","Ok") -> Ok | E1: =SUM(C76:E76,H76:J76) -> 9.313225746e-10
B3: State Water Costs Tariffs | C3: 2014-15 | D3: 2015-16 | E3: 2016-17 | G3: MDBA / BCR Tariffs | H3: 2014-15 | I3: 2015-16 | J3: 2016-17
B6: Benchmark Revenue (Rev BBM) | C6: Forecast 2014-15 | D6: Forecast 2015-16 | E6: Forecast 2016-17 | G6: MDBA / BCR costs | H6: Forecast 2014-15 | I6: Forecast 2015-16 | J6: Forecast 2016-17
B7: Benchmark Revenue (Rev BBM) | C7: ='ACCC data inputs'!B$10*(1+C$31) -> 6989360.41 | D7: ='ACCC data inputs'!C$10*(1+C$31)*(1+D$31) -> 7130246.519 | E7: ='ACCC data inputs'!D$10*(1+C$31)*(1+D$31)*(1+E$31) -> 7273972.502 | G7: MDBA / BCR costs | H7: ='ACCC data inputs'!G$10*(1+H$31) -> 0 | I7: ='ACCC data inputs'!H$10*(1+H$31)*(1+I$31) -> 0 | J7: ='ACCC data inputs'!I$10*(1+H$31)*(1+I$31)*(1+J$31) -> 0
B11: Unders/Overs Adjustment | G11: Unders/Overs Adjustment
B12: Calc. of UOM (t-1) | C12: Estimated 2013-14 | D12: Estimated 2014-15 | E12: Estimated 2015-16 | G12: Calc. of UOM (t-1) | H12: Estimated 2013-14 | I12: Estimated 2014-15 | J12: Estimated 2015-16
B13: Revenue Requirement | C13: 0 | D13: =C47 -> 6989360.41 | E13: =D47 -> 7427799.029 | G13: MDBA / BCR costs | H13: 0 | I13: =H47 -> 0 | J13: =I47 -> 0
B14: Estimated Tariff Revenue | C14: 0 | D14: =C89 -> 0 | E14: =D89 -> 0 | G14: Estimated MDBA / BCR revenue | H14: 0 | I14: =H89 -> 0 | J14: =I89 -> 0
B15: Difference | C15: =C14-C13 -> 0 | D15: =D14-D13 -> -6989360.41 | E15: =E14-E13 -> -7427799.029 | G15: Difference | H15: =H14-H13 -> 0 | I15: =I14-I13 -> 0 | J15: =J14-J13 -> 0
B18: Calc. of UOM (t-2) | C18: Actual 2012-13 | D18: Actual 2013-14 | E18: Actual 2014-15 | G18: Calc. of UOM (t-2) | H18: Actual 2012-13 | I18: Actual 2013-14 | J18: Actual 2014-15
B19: Estimated Tariff Revenue | C19: 0 | D19: =C14 -> 0 | E19: =D14 -> 0 | G19: Estimated Tariff Revenue | H19: 0 | I19: =H14 -> 0 | J19: =I14 -> 0
B20: Actual Tariff Revenue | C20: 0 | D20: 0 | E20: =C102 -> 0 | G20: Actual Tariff Revenue | H20: 0 | I20: 0 | J20: =H102 -> 0
B21: Difference | C21: =C20-C19 -> 0 | D21: =D20-D19 -> 0 | E21: =E20-E19 -> 0 | G21: Difference | H21: =H20-H19 -> 0 | I21: =I20-I19 -> 0 | J21: =J20-J19 -> 0
B30: WACC | C30: Actual 2014-15 | D30: Actual 2015-16 | E30: Actual 2016-17 | G30: WACC | H30: Actual 2014-15 | I30: Actual 2015-16 | J30: Actual 2016-17
B31: CPI (t) | C31: ='State Water data inputs'!C11 -> 0.029296875 | D31: ='State Water data inputs'!D11 -> 0 | E31: ='State Water data inputs'!E11 -> 0 | G31: CPI (t) | H31: =C31 -> 0.029296875 | I31: =D31 -> 0 | J31: 0
B32: Real Pre Tax WACC | C32: ='ACCC data inputs'!B39 -> 0.04257220868 | D32: ='ACCC data inputs'!C39 -> 0.04257220868 | E32: ='ACCC data inputs'!D39 -> 0.04257220868 | G32: Real Pre Tax WACC | H32: =C32 -> 0.04257220868 | I32: 0.04257220868 | J32: 0.04257220868
B33: Nominal Pre Tax WACC | C33: =(1+C31)*(1+C32)-1 -> 0.07311631635 | D33: =(1+D31)*(1+D32)-1 -> 0.04257220868 | E33: 0.04257220868 | G33: Nominal Pre Tax WACC | H33: =(1+H31)*(1+H32)-1 -> 0.07311631635 | I33: =(1+I31)*(1+I32)-1 -> 0.04257220868 | J33: =(1+J31)*(1+J32)-1 -> 0.04257220868
B36: RAB UOM | C36: Actual 2014-15 | D36: Actual 2015-16 | E36: Actual 2016-17 | H36: Actual 2014-15 | I36: Actual 2015-16 | J36: Actual 2016-17
B37: Opening balance | C37: 0 | D37: =C40 -> 0 | E37: =D40 -> -6989360.41
B38: UOM (t-1) | C38: =C15 -> 0 | D38: =D15 -> -6989360.41 | E38: =E15 -> -7427799.029 | G38: UOM (t-1) | H38: =H15 -> 0 | I38: =I15 -> 0 | J38: =J15 -> 0
B39: UOM (t-2) | C39: 0 | D39: =D21*(1+C$33) -> 0 | E39: =E21*(1+D$33) -> 0 | G39: UOM (t-2) | H39: 0 | I39: =I21*(1+H$33) -> 0 | J39: =J21*(1+I$33) -> 0
B40: Closing balance | C40: =SUM(C37:C39) -> 0 | D40: =SUM(D37:D39) -> -6989360.41 | E40: -14417159.44
B42: Rev UOM (t) | C42: =C40*C$33 -> 0 | D42: =D40*D$33 -> -297552.5099 | E42: =E40*E$33 -> -613770.3202 | G42: Rev UOM (t) | H42: =SUM(H38:H40)*(1+H$33) -> 0 | I42: =SUM(I38:I39)*(1+I$33) -> 0 | J42: =SUM(J38:J39)*(1+J$33) -> 0
B46: Revenue Requirement | C46: 2014-15 | D46: 2015-16 | E46: 2016-17 | G46: Maximum pass through revenue | H46: 2014-15 | I46: 2015-16 | J46: 2016-17
B47: Revenue Requirement | C47: =(C7-C42) -> 6989360.41 | D47: =(D7-D42) -> 7427799.029 | E47: =(E7-E42) -> 7887742.822 | G47: Maximum MDBA / BCR Revenue | H47: =(H7-H42) -> 0 | I47: =(I7-I42) -> 0 | J47: =(J7-J42) -> 0
B52: Forecast Tariff Revenue | C52: 2014-15 | D52: 2015-16 | E52: 2016-17 | G52: Forecast Tariff Revenue | H52: 2014-15 | I52: 2015-16 | J52: 2016-17
B53: Revenue Requirement | C53: =C47 -> 6989360.41 | D53: =D47 -> 7427799.029 | E53: 7887742.822 | G53: Maximum MDBA / BCR Revenue | H53: =H47 -> 0 | I53: =I47 -> 0 | J53: =J47 -> 0
B54: Target Variable / Fixed ratio (%) | C54: ='ACCC data inputs'!B30 -> 0.6 | D54: ='ACCC data inputs'!C30 -> 0.6 | E54: ='ACCC data inputs'!D30 -> 0.6 | G54: Target Variable / Fixed ratio (%) | H54: =C54 -> 0.6 | I54: 0.6 | J54: 0.6
B55: Variable Charge Revenue | C55: =C53*C54 -> 4193616.246 | D55: =D53*D54 -> 4456679.417 | E55: =E53*E54 -> 4732645.693 | G55: Variable Charge Revenue | H55: =H53*H54 -> 0 | I55: =I53*I54 -> 0 | J55: =J53*J54 -> 0
B57: Water sharing plan ratio (WSP) | C57: ='ACCC data inputs'!$B$23 -> 2.45 | D57: ='ACCC data inputs'!$B$23 -> 2.45 | E57: ='ACCC data inputs'!$B$23 -> 2.45 | G57: Water sharing plan ratio (WSP) | H57: =C57 -> 2.45 | I57: 2.45 | J57: 2.45
B58: Average Water Allocation (AWA) | C58: ='State Water data inputs'!L$63 -> 1.645064806 | D58: ='State Water data inputs'!M$63 -> 1.755379388 | E58: ='State Water data inputs'!N$63 -> 1.805728518 | G58: Average Water Allocation (AWA) | H58: 1.645064806 | I58: 1.755379388 | J58: 1.805728518
B59: High security premium (times) | C59: =C57*C58 -> 4.030408774 | D59: =D57*D58 -> 4.300679502 | E59: =E57*E58 -> 4.424034869 | G59: High security premium (times) | H59: 4.030408774 | I59: 4.300679502 | J59: 4.424034869
B61: Forecast sales quantities | C61: =C$52 -> 2014-15 | D61: =D$52 -> 2015-16 | E61: 2016-17 | G61: Forecast sales quantities | H61: =H$52 -> 2014-15 | I61: =I$52 -> 2015-16 | J61: =J$52 -> 2016-17
B62: High Security Entitlement (ML) | C62: ='State Water data inputs'!B$35 -> 60745 | D62: ='State Water data inputs'!C$35 -> 0 | E62: ='State Water data inputs'!D$35 -> 0 | G62: High Security Entitlement (ML) | H62: =C62 -> 60745 | I62: 0 | J62: 0
B63: General Security Entitlement (ML) | C63: ='State Water data inputs'!B$21 -> 632837 | D63: ='State Water data inputs'!C$21 -> 0 | E63: ='State Water data inputs'!D$21 -> 0 | G63: General Security Entitlement (ML) | H63: 632837 | I63: 0 | J63: 0
B64: Water volumes (ML) | C64: ='State Water data inputs'!B$48 -> 227697.179 | D64: ='State Water data inputs'!C$48 -> 213448.4265 | E64: ='State Water data inputs'!D$48 -> 193955.308 | G64: Water volumes (ML) | H64: 227697.179 | I64: 213448.4265 | J64: 193955.308
B66: Tariffs ($ Nominal) | C66: =C$52 -> 2014-15 | D66: =D$52 -> 2015-16 | E66: 2016-17 | G66: Tariffs ($ Nominal) | H66: =H$52 -> 2014-15 | I66: =I$52 -> 2015-16 | J66: =J$52 -> 2016-17
B67: High Security Entitlement ($/ML) | C67: =C68*C59 -> 12.83861419 | D67: =D68*D59 -> 0 | E67: 0 | G67: High Security Entitlement ($/ML) | H67: =H68*H59 -> 0 | I67: =I68*I59 -> 0 | J67: =J68*J59 -> 0
B68: General Security Entitlement ($/ML) | C68: =(C53-C55)/(C63+C62*C59) -> 3.185437237 | D68: =IF((D63+D62*D59)=0,0,(D53-D55)/(D63+D62*D59)) -> 0 | E68: =IF((E63+E62*E59)=0,0,(E53-E55)/(E63+E62*E59)) -> 0 | G68: General Security Entitlement ($/ML) | H68: =(H53-H55)/(H63+H62*H59) -> 0 | I68: =IF((I63+I62*I59)=0,0,(I53-I55)/(I63+I62*I59)) -> 0 | J68: =IF((J63+J62*J59)=0,0,(J53-J55)/(J63+J62*J59)) -> 0
B69: Usage ($/ML delivered) | C69: =C55/C64 -> 18.41751516 | D69: =D55/D64 -> 20.87942034 | E69: 24.40070211 | G69: Usage ($/ML delivered) | H69: =H55/H64 -> 0 | I69: =I55/I64 -> 0 | J69: =J55/J64 -> 0
B71: Tariffs Revenue ($'000 Nominal) | C71: =C$52 -> 2014-15 | D71: =D$52 -> 2015-16 | E71: 2016-17 | G71: Tariffs Revenue ($'000 Nominal) | H71: =H$52 -> 2014-15 | I71: =I$52 -> 2015-16 | J71: =J$52 -> 2016-17
B72: High Security Entitlement | C72: =C62*C67 -> 779881.6189 | D72: =D62*D67 -> 0 | E72: 0 | G72: High Security Entitlement | H72: =H62*H67 -> 0 | I72: 0 | J72: 0
B73: General Security Entitlement | C73: =C63*C68 -> 2015862.545 | D73: 0 | E73: 0 | G73: General Security Entitlement | H73: 0 | I73: 0 | J73: 0
B74: Usage | C74: =C64*C69 -> 4193616.246 | D74: 4456679.417 | E74: 4732645.693 | G74: Usage | H74: 0 | I74: 0 | J74: 0
C75: =SUM(C72:C74) -> 6989360.41 | D75: =SUM(D72:D74) -> 4456679.417 | E75: 4732645.693 | H75: =SUM(H72:H74) -> 0 | I75: =SUM(I72:I74) -> 0 | J75: =SUM(J72:J74) -> 0
B76: Check | C76: =ABS(C75-C53) -> 9.313225746e-10 | D76: =ABS(IF(SUM(D72:D73)=0,0,D75-D53)) -> 0 | E76: =ABS(IF(SUM(E72:E73)=0,0,E75-E53)) -> 0 | G76: Check | H76: =ABS(H75-H53) -> 0 | I76: =ABS(IF(SUM(I72:I73)=0,0,I75-I53)) -> 0 | J76: 0
B79: Estimated Tariff Revenue | G79: Estimated Tariff Revenue
B80: Estimated sales quantities | C80: =C$52 -> 2014-15 | D80: =D$52 -> 2015-16 | E80: 2016-17 | G80: Estimated sales quantities | H80: =H$52 -> 2014-15 | I80: =I$52 -> 2015-16 | J80: =J$52 -> 2016-17
B81: High Security Entitlement (ML) | C81: ='State Water data inputs'!F$35 -> 0 | D81: ='State Water data inputs'!G$35 -> 0 | E81: ='State Water data inputs'!H$35 -> 0 | G81: High Security Entitlement (ML) | H81: =C81 -> 0 | I81: 0 | J81: 0
B82: General Security Entitlement (ML) | C82: ='State Water data inputs'!F$21 -> 0 | D82: ='State Water data inputs'!G$21 -> 0 | E82: ='State Water data inputs'!H$21 -> 0 | G82: General Security Entitlement (ML) | H82: 0 | I82: 0 | J82: 0
B83: Water volumes (ML) | C83: ='State Water data inputs'!F$48 -> 0 | D83: ='State Water data inputs'!G$48 -> 0 | E83: ='State Water data inputs'!H$48 -> 0 | G83: Water volumes (ML) | H83: 0 | I83: 0 | J83: 0
B85: Tariffs Revenue ($'000 Nominal) | C85: =C$52 -> 2014-15 | D85: =D$52 -> 2015-16 | E85: 2016-17 | G85: Tariffs Revenue ($'000 Nominal) | H85: =H$52 -> 2014-15 | I85: =I$52 -> 2015-16 | J85: =J$52 -> 2016-17
B86: High Security Entitlement | C86: =C81*C67 -> 0 | D86: 0 | E86: 0 | G86: High Security Entitlement | H86: =H81*H67 -> 0 | I86: 0 | J86: 0
B87: General Security Entitlement | C87: 0 | D87: 0 | E87: 0 | G87: General Security Entitlement | H87: 0 | I87: 0 | J87: 0
B88: Usage | C88: 0 | D88: 0 | E88: 0 | G88: Usage | H88: 0 | I88: 0 | J88: 0
C89: =SUM(C86:C88) -> 0 | D89: =SUM(D86:D88) -> 0 | E89: 0 | H89: =SUM(H86:H88) -> 0 | I89: =SUM(I86:I88) -> 0 | J89: =SUM(J86:J88) -> 0
B92: Actual Tariff Revenue | G92: Actual Tariff Revenue
B93: Actual sales quantities | C93: =C$52 -> 2014-15 | D93: =D$52 -> 2015-16 | E93: 2016-17 | G93: Actual sales quantities | H93: =H$52 -> 2014-15 | I93: =I$52 -> 2015-16 | J93: =J$52 -> 2016-17
B94: High Security Entitlement (ML) | C94: ='State Water data inputs'!K$35 -> 0 | D94: ='State Water data inputs'!L$35 -> 0 | E94: ='State Water data inputs'!M$35 -> 0 | G94: High Security Entitlement (ML) | H94: =C94 -> 0 | I94: 0 | J94: 0
B95: General Security Entitlement (ML) | C95: ='State Water data inputs'!K$21 -> 0 | D95: ='State Water data inputs'!L$21 -> 0 | E95: ='State Water data inputs'!M$21 -> 0 | G95: General Security Entitlement (ML) | H95: 0 | I95: 0 | J95: 0
B96: Water volumes (ML) | C96: ='State Water data inputs'!K$48 -> 0 | D96: ='State Water data inputs'!L$48 -> 0 | E96: ='State Water data inputs'!M$48 -> 0 | G96: Water volumes (ML) | H96: 0 | I96: 0 | J96: 0
B98: Tariffs Revenue ($'000 Nominal) | C98: =C$52 -> 2014-15 | D98: =D$52 -> 2015-16 | E98: =E$52 -> 2016-17 | G98: Tariffs Revenue ($'000 Nominal) | H98: =H$52 -> 2014-15 | I98: =I$52 -> 2015-16 | J98: =J$52 -> 2016-17
B99: High Security Entitlement | C99: =C94*C67 -> 0 | D99: 0 | E99: 0 | G99: High Security Entitlement | H99: =H94*H67 -> 0 | I99: 0 | J99: 0
B100: General Security Entitlement | C100: 0 | D100: 0 | E100: 0 | G100: General Security Entitlement | H100: 0 | I100: 0 | J100: 0
B101: Usage | C101: 0 | D101: 0 | E101: 0 | G101: Usage | H101: 0 | I101: 0 | J101: 0
C102: =SUM(C99:C101) -> 0 | D102: =SUM(D99:D101) -> 0 | E102: 0 | H102: =SUM(H99:H101) -> 0 | I102: =SUM(I99:I101) -> 0 | J102: =SUM(J99:J101) -> 0

Sheet Macquarie
B1: Macquarie | C1: Check | D1: =IF(E1>0.001,"Error","Ok") -> Ok | E1: =SUM(C76:E76,H76:J76) -> 0
B3: State Water Costs Tariffs | C3: 2014-15 | D3: 2015-16 | E3: 2016-17 | G3: MDBA / BCR Tariffs | H3: 2014-15 | I3: 2015-16 | J3: 2016-17
B6: Benchmark Revenue (Rev BBM) | C6: Forecast 2014-15 | D6: Forecast 2015-16 | E6: Forecast 2016-17 | G6: MDBA / BCR costs | H6: Forecast 2014-15 | I6: Forecast 2015-16 | J6: Forecast 2016-17
B7: Benchmark Revenue (Rev BBM) | C7: ='ACCC data inputs'!B$11*(1+C$31) -> 6712722.533 | D7: ='ACCC data inputs'!C$11*(1+C$31)*(1+D$31) -> 6838755.588 | E7: ='ACCC data inputs'!D$11*(1+C$31)*(1+D$31)*(1+E$31) -> 6967154.945 | G7: MDBA / BCR costs | H7: ='ACCC data inputs'!G$11*(1+H$31) -> 0 | I7: ='ACCC data inputs'!H$11*(1+H$31)*(1+I$31) -> 0 | J7: ='ACCC data inputs'!I$11*(1+H$31)*(1+I$31)*(1+J$31) -> 0
B11: Unders/Overs Adjustment | G11: Unders/Overs Adjustment
B12: Calc. of UOM (t-1) | C12: Estimated 2013-14 | D12: Estimated 2014-15 | E12: Estimated 2015-16 | G12: Calc. of UOM (t-1) | H12: Estimated 2013-14 | I12: Estimated 2014-15 | J12: Estimated 2015-16
B13: Revenue Requirement | C13: 0 | D13: =C47 -> 6712722.533 | E13: =D47 -> 7124531.012 | G13: MDBA / BCR costs | H13: 0 | I13: =H47 -> 0 | J13: =I47 -> 0
B14: Estimated Tariff Revenue | C14: 0 | D14: =C89 -> 0 | E14: =D89 -> 0 | G14: Estimated MDBA / BCR revenue | H14: 0 | I14: =H89 -> 0 | J14: =I89 -> 0
B15: Difference | C15: =C14-C13 -> 0 | D15: =D14-D13 -> -6712722.533 | E15: =E14-E13 -> -7124531.012 | G15: Difference | H15: =H14-H13 -> 0 | I15: =I14-I13 -> 0 | J15: =J14-J13 -> 0
B18: Calc. of UOM (t-2) | C18: Actual 2012-13 | D18: Actual 2013-14 | E18: Actual 2014-15 | G18: Calc. of UOM (t-2) | H18: Actual 2012-13 | I18: Actual 2013-14 | J18: Actual 2014-15
B19: Estimated Tariff Revenue | C19: 0 | D19: =C14 -> 0 | E19: =D14 -> 0 | G19: Estimated Tariff Revenue | H19: 0 | I19: =H14 -> 0 | J19: =I14 -> 0
B20: Actual Tariff Revenue | C20: 0 | D20: 0 | E20: =C102 -> 0 | G20: Actual Tariff Revenue | H20: 0 | I20: 0 | J20: =H102 -> 0
B21: Difference | C21: =C20-C19 -> 0 | D21: =D20-D19 -> 0 | E21: =E20-E19 -> 0 | G21: Difference | H21: =H20-H19 -> 0 | I21: =I20-I19 -> 0 | J21: =J20-J19 -> 0
B30: WACC | C30: Actual 2014-15 | D30: Actual 2015-16 | E30: Actual 2016-17 | G30: WACC | H30: Actual 2014-15 | I30: Actual 2015-16 | J30: Actual 2016-17
B31: CPI (t) | C31: ='State Water data inputs'!C11 -> 0.029296875 | D31: ='State Water data inputs'!D11 -> 0 | E31: ='State Water data inputs'!E11 -> 0 | G31: CPI (t) | H31: =C31 -> 0.029296875 | I31: =D31 -> 0 | J31: 0
B32: Real Pre Tax WACC | C32: ='ACCC data inputs'!B39 -> 0.04257220868 | D32: ='ACCC data inputs'!C39 -> 0.04257220868 | E32: ='ACCC data inputs'!D39 -> 0.04257220868 | G32: Real Pre Tax WACC | H32: =C32 -> 0.04257220868 | I32: 0.04257220868 | J32: 0.04257220868
B33: Nominal Pre Tax WACC | C33: =(1+C31)*(1+C32)-1 -> 0.07311631635 | D33: =(1+D31)*(1+D32)-1 -> 0.04257220868 | E33: 0.04257220868 | G33: Nominal Pre Tax WACC | H33: =(1+H31)*(1+H32)-1 -> 0.07311631635 | I33: =(1+I31)*(1+I32)-1 -> 0.04257220868 | J33: =(1+J31)*(1+J32)-1 -> 0.04257220868
B36: RAB UOM | C36: Actual 2014-15 | D36: Actual 2015-16 | E36: Actual 2016-17 | H36: Actual 2014-15 | I36: Actual 2015-16 | J36: Actual 2016-17
B37: Opening balance | C37: 0 | D37: =C40 -> 0 | E37: =D40 -> -6712722.533
B38: UOM (t-1) | C38: =C15 -> 0 | D38: =D15 -> -6712722.533 | E38: =E15 -> -7124531.012 | G38: UOM (t-1) | H38: =H15 -> 0 | I38: =I15 -> 0 | J38: =J15 -> 0
B39: UOM (t-2) | C39: 0 | D39: =D21*(1+C$33) -> 0 | E39: =E21*(1+D$33) -> 0 | G39: UOM (t-2) | H39: 0 | I39: =I21*(1+H$33) -> 0 | J39: =J21*(1+I$33) -> 0
B40: Closing balance | C40: =SUM(C37:C39) -> 0 | D40: =SUM(D37:D39) -> -6712722.533 | E40: -13837253.54
B42: Rev UOM (t) | C42: =C40*C$33 -> 0 | D42: =D40*D$33 -> -285775.4245 | E42: =E40*E$33 -> -589082.4454 | G42: Rev UOM (t) | H42: =SUM(H38:H40)*(1+H$33) -> 0 | I42: =SUM(I38:I39)*(1+I$33) -> 0 | J42: =SUM(J38:J39)*(1+J$33) -> 0
B46: Revenue Requirement | C46: 2014-15 | D46: 2015-16 | E46: 2016-17 | G46: Maximum pass through revenue | H46: 2014-15 | I46: 2015-16 | J46: 2016-17
B47: Revenue Requirement | C47: =(C7-C42) -> 6712722.533 | D47: =(D7-D42) -> 7124531.012 | E47: =(E7-E42) -> 7556237.39 | G47: Maximum MDBA / BCR Revenue | H47: =(H7-H42) -> 0 | I47: =(I7-I42) -> 0 | J47: =(J7-J42) -> 0
B52: Forecast Tariff Revenue | C52: 2014-15 | D52: 2015-16 | E52: 2016-17 | G52: Forecast Tariff Revenue | H52: 2014-15 | I52: 2015-16 | J52: 2016-17
B53: Revenue Requirement | C53: =C47 -> 6712722.533 | D53: =D47 -> 7124531.012 | E53: 7556237.39 | G53: Maximum MDBA / BCR Revenue | H53: =H47 -> 0 | I53: =I47 -> 0 | J53: =J47 -> 0
B54: Target Variable / Fixed ratio (%) | C54: ='ACCC data inputs'!B30 -> 0.6 | D54: ='ACCC data inputs'!C30 -> 0.6 | E54: ='ACCC data inputs'!D30 -> 0.6 | G54: Target Variable / Fixed ratio (%) | H54: =C54 -> 0.6 | I54: 0.6 | J54: 0.6
B55: Variable Charge Revenue | C55: =C53*C54 -> 4027633.52 | D55: =D53*D54 -> 4274718.607 | E55: =E53*E54 -> 4533742.434 | G55: Variable Charge Revenue | H55: =H53*H54 -> 0 | I55: =I53*I54 -> 0 | J55: =J53*J54 -> 0
B57: Water sharing plan ratio (WSP) | C57: ='ACCC data inputs'!$B$24 -> 1.88 | D57: ='ACCC data inputs'!$B$24 -> 1.88 | E57: ='ACCC data inputs'!$B$24 -> 1.88 | G57: Water sharing plan ratio (WSP) | H57: =C57 -> 1.88 | I57: 1.88 | J57: 1.88
B58: Average Water Allocation (AWA) | C58: ='State Water data inputs'!L$64 -> 1.960784314 | D58: ='State Water data inputs'!M$64 -> 2.065217391 | E58: ='State Water data inputs'!N$64 -> 2.142857143 | G58: Average Water Allocation (AWA) | H58: 1.960784314 | I58: 2.065217391 | J58: 2.142857143
B59: High security premium (times) | C59: =C57*C58 -> 3.68627451 | D59: =D57*D58 -> 3.882608696 | E59: =E57*E58 -> 4.028571429 | G59: High security premium (times) | H59: 3.68627451 | I59: 3.882608696 | J59: 4.028571429
B61: Forecast sales quantities | C61: =C$52 -> 2014-15 | D61: =D$52 -> 2015-16 | E61: 2016-17 | G61: Forecast sales quantities | H61: =H$52 -> 2014-15 | I61: =I$52 -> 2015-16 | J61: =J$52 -> 2016-17
B62: High Security Entitlement (ML) | C62: ='State Water data inputs'!B$36 -> 42606 | D62: ='State Water data inputs'!C$36 -> 0 | E62: ='State Water data inputs'!D$36 -> 0 | G62: High Security Entitlement (ML) | H62: =C62 -> 42606 | I62: 0 | J62: 0
B63: General Security Entitlement (ML) | C63: ='State Water data inputs'!B$22 -> 631716 | D63: ='State Water data inputs'!C$22 -> 0 | E63: ='State Water data inputs'!D$22 -> 0 | G63: General Security Entitlement (ML) | H63: 631716 | I63: 0 | J63: 0
B64: Water volumes (ML) | C64: ='State Water data inputs'!B$49 -> 279670.6685 | D64: ='State Water data inputs'!C$49 -> 253939.8495 | E64: ='State Water data inputs'!D$49 -> 245588.856 | G64: Water volumes (ML) | H64: 279670.6685 | I64: 253939.8495 | J64: 245588.856
B66: Tariffs ($ Nominal) | C66: =C$52 -> 2014-15 | D66: =D$52 -> 2015-16 | E66: 2016-17 | G66: Tariffs ($ Nominal) | H66: =H$52 -> 2014-15 | I66: =I$52 -> 2015-16 | J66: =J$52 -> 2016-17
B67: High Security Entitlement ($/ML) | C67: =C68*C59 -> 12.54856596 | D67: =D68*D59 -> 0 | E67: 0 | G67: High Security Entitlement ($/ML) | H67: =H68*H59 -> 0 | I67: =I68*I59 -> 0 | J67: =J68*J59 -> 0
B68: General Security Entitlement ($/ML) | C68: =(C53-C55)/(C63+C62*C59) -> 3.404132255 | D68: =IF((D63+D62*D59)=0,0,(D53-D55)/(D63+D62*D59)) -> 0 | E68: =IF((E63+E62*E59)=0,0,(E53-E55)/(E63+E62*E59)) -> 0 | G68: General Security Entitlement ($/ML) | H68: =(H53-H55)/(H63+H62*H59) -> 0 | I68: =IF((I63+I62*I59)=0,0,(I53-I55)/(I63+I62*I59)) -> 0 | J68: =IF((J63+J62*J59)=0,0,(J53-J55)/(J63+J62*J59)) -> 0
B69: Usage ($/ML delivered) | C69: =C55/C64 -> 14.40134406 | D69: =D55/D64 -> 16.83358723 | E69: 18.46070098 | G69: Usage ($/ML delivered) | H69: =H55/H64 -> 0 | I69: =I55/I64 -> 0 | J69: =J55/J64 -> 0
B71: Tariffs Revenue ($'000 Nominal) | C71: =C$52 -> 2014-15 | D71: =D$52 -> 2015-16 | E71: 2016-17 | G71: Tariffs Revenue ($'000 Nominal) | H71: =H$52 -> 2014-15 | I71: =I$52 -> 2015-16 | J71: =J$52 -> 2016-17
B72: High Security Entitlement | C72: =C62*C67 -> 534644.2013 | D72: =D62*D67 -> 0 | E72: 0 | G72: High Security Entitlement | H72: =H62*H67 -> 0 | I72: 0 | J72: 0
B73: General Security Entitlement | C73: =C63*C68 -> 2150444.812 | D73: 0 | E73: 0 | G73: General Security Entitlement | H73: 0 | I73: 0 | J73: 0
B74: Usage | C74: =C64*C69 -> 4027633.52 | D74: 4274718.607 | E74: 4533742.434 | G74: Usage | H74: 0 | I74: 0 | J74: 0
C75: =SUM(C72:C74) -> 6712722.533 | D75: =SUM(D72:D74) -> 4274718.607 | E75: 4533742.434 | H75: =SUM(H72:H74) -> 0 | I75: =SUM(I72:I74) -> 0 | J75: =SUM(J72:J74) -> 0
B76: Check | C76: =ABS(C75-C53) -> 0 | D76: =ABS(IF(SUM(D72:D73)=0,0,D75-D53)) -> 0 | E76: =ABS(IF(SUM(E72:E73)=0,0,E75-E53)) -> 0 | G76: Check | H76: =ABS(H75-H53) -> 0 | I76: =ABS(IF(SUM(I72:I73)=0,0,I75-I53)) -> 0 | J76: 0
B79: Estimated Tariff Revenue | G79: Estimated Tariff Revenue
B80: Estimated sales quantities | C80: =C$52 -> 2014-15 | D80: =D$52 -> 2015-16 | E80: 2016-17 | G80: Estimated sales quantities | H80: =H$52 -> 2014-15 | I80: =I$52 -> 2015-16 | J80: =J$52 -> 2016-17
B81: High Security Entitlement (ML) | C81: ='State Water data inputs'!F$36 -> 0 | D81: ='State Water data inputs'!G$36 -> 0 | E81: ='State Water data inputs'!H$36 -> 0 | G81: High Security Entitlement (ML) | H81: =C81 -> 0 | I81: 0 | J81: 0
B82: General Security Entitlement (ML) | C82: ='State Water data inputs'!F$22 -> 0 | D82: ='State Water data inputs'!G$22 -> 0 | E82: ='State Water data inputs'!H$22 -> 0 | G82: General Security Entitlement (ML) | H82: 0 | I82: 0 | J82: 0
B83: Water volumes (ML) | C83: ='State Water data inputs'!F$49 -> 0 | D83: ='State Water data inputs'!G$49 -> 0 | E83: ='State Water data inputs'!H$49 -> 0 | G83: Water volumes (ML) | H83: 0 | I83: 0 | J83: 0
B85: Tariffs Revenue ($'000 Nominal) | C85: =C$52 -> 2014-15 | D85: =D$52 -> 2015-16 | E85: 2016-17 | G85: Tariffs Revenue ($'000 Nominal) | H85: =H$52 -> 2014-15 | I85: =I$52 -> 2015-16 | J85: =J$52 -> 2016-17
B86: High Security Entitlement | C86: =C81*C67 -> 0 | D86: 0 | E86: 0 | G86: High Security Entitlement | H86: =H81*H67 -> 0 | I86: 0 | J86: 0
B87: General Security Entitlement | C87: 0 | D87: 0 | E87: 0 | G87: General Security Entitlement | H87: 0 | I87: 0 | J87: 0
B88: Usage | C88: 0 | D88: 0 | E88: 0 | G88: Usage | H88: 0 | I88: 0 | J88: 0
C89: =SUM(C86:C88) -> 0 | D89: =SUM(D86:D88) -> 0 | E89: 0 | H89: =SUM(H86:H88) -> 0 | I89: =SUM(I86:I88) -> 0 | J89: =SUM(J86:J88) -> 0
B92: Actual Tariff Revenue | G92: Actual Tariff Revenue
B93: Actual sales quantities | C93: =C$52 -> 2014-15 | D93: =D$52 -> 2015-16 | E93: 2016-17 | G93: Actual sales quantities | H93: =H$52 -> 2014-15 | I93: =I$52 -> 2015-16 | J93: =J$52 -> 2016-17
B94: High Security Entitlement (ML) | C94: ='State Water data inputs'!K$36 -> 0 | D94: ='State Water data inputs'!L$36 -> 0 | E94: ='State Water data inputs'!M$36 -> 0 | G94: High Security Entitlement (ML) | H94: =C94 -> 0 | I94: 0 | J94: 0
B95: General Security Entitlement (ML) | C95: ='State Water data inputs'!K$22 -> 0 | D95: ='State Water data inputs'!L$22 -> 0 | E95: ='State Water data inputs'!M$22 -> 0 | G95: General Security Entitlement (ML) | H95: 0 | I95: 0 | J95: 0
B96: Water volumes (ML) | C96: ='State Water data inputs'!K$49 -> 0 | D96: ='State Water data inputs'!L$49 -> 0 | E96: ='State Water data inputs'!M$49 -> 0 | G96: Water volumes (ML) | H96: 0 | I96: 0 | J96: 0
B98: Tariffs Revenue ($'000 Nominal) | C98: =C$52 -> 2014-15 | D98: =D$52 -> 2015-16 | E98: =E$52 -> 2016-17 | G98: Tariffs Revenue ($'000 Nominal) | H98: =H$52 -> 2014-15 | I98: =I$52 -> 2015-16 | J98: =J$52 -> 2016-17
B99: High Security Entitlement | C99: =C94*C67 -> 0 | D99: 0 | E99: 0 | G99: High Security Entitlement | H99: =H94*H67 -> 0 | I99: 0 | J99: 0
B100: General Security Entitlement | C100: 0 | D100: 0 | E100: 0 | G100: General Security Entitlement | H100: 0 | I100: 0 | J100: 0
B101: Usage | C101: 0 | D101: 0 | E101: 0 | G101: Usage | H101: 0 | I101: 0 | J101: 0
C102: =SUM(C99:C101) -> 0 | D102: =SUM(D99:D101) -> 0 | E102: 0 | H102: =SUM(H99:H101) -> 0 | I102: =SUM(I99:I101) -> 0 | J102: =SUM(J99:J101) -> 0

Sheet Murray
B1: Murray | C1: Check | D1: =IF(E1>0.001,"Error","Ok") -> Ok | E1: =SUM(C76:E76,H76:J76) -> 0
B3: State Water Costs Tariffs | C3: 2014-15 | D3: 2015-16 | E3: 2016-17 | G3: MDBA / BCR Tariffs | H3: 2014-15 | I3: 2015-16 | J3: 2016-17
B6: Benchmark Revenue (Rev BBM) | C6: Forecast 2014-15 | D6: Forecast 2015-16 | E6: Forecast 2016-17 | G6: MDBA / BCR costs | H6: Forecast 2014-15 | I6: Forecast 2015-16 | J6: Forecast 2016-17
B7: Benchmark Revenue (Rev BBM) | C7: ='ACCC data inputs'!B$12*(1+C$31) -> 6234692.7 | D7: ='ACCC data inputs'!C$12*(1+C$31)*(1+D$31) -> 6124676.787 | E7: ='ACCC data inputs'!D$12*(1+C$31)*(1+D$31)*(1+E$31) -> 6016602.189 | G7: MDBA / BCR costs | H7: ='ACCC data inputs'!G$12*(1+H$31) -> 10498828.12 | I7: ='ACCC data inputs'!H$12*(1+H$31)*(1+I$31) -> 10704687.5 | J7: ='ACCC data inputs'!I$12*(1+H$31)*(1+I$31)*(1+J$31) -> 9572460.938
B11: Unders/Overs Adjustment | G11: Unders/Overs Adjustment
B12: Calc. of UOM (t-1) | C12: Estimated 2013-14 | D12: Estimated 2014-15 | E12: Estimated 2015-16 | G12: Calc. of UOM (t-1) | H12: Estimated 2013-14 | I12: Estimated 2014-15 | J12: Estimated 2015-16
B13: Revenue Requirement | C13: 0 | D13: =C47 -> 6234692.7 | E13: =D47 -> 6390101.426 | G13: MDBA / BCR costs | H13: 0 | I13: =H47 -> 10498828.12 | J13: =I47 -> 21650473.93
B14: Estimated Tariff Revenue | C14: 0 | D14: =C89 -> 0 | E14: =D89 -> 0 | G14: Estimated MDBA / BCR revenue | H14: 0 | I14: =H89 -> 0 | J14: =I89 -> 0
B15: Difference | C15: =C14-C13 -> 0 | D15: =D14-D13 -> -6234692.7 | E15: =E14-E13 -> -6390101.426 | G15: Difference | H15: =H14-H13 -> 0 | I15: =I14-I13 -> -10498828.12 | J15: =J14-J13 -> -21650473.93
B18: Calc. of UOM (t-2) | C18: Actual 2012-13 | D18: Actual 2013-14 | E18: Actual 2014-15 | G18: Calc. of UOM (t-2) | H18: Actual 2012-13 | I18: Actual 2013-14 | J18: Actual 2014-15
B19: Estimated Tariff Revenue | C19: 0 | D19: =C14 -> 0 | E19: =D14 -> 0 | G19: Estimated Tariff Revenue | H19: 0 | I19: =H14 -> 0 | J19: =I14 -> 0
B20: Actual Tariff Revenue | C20: 0 | D20: 0 | E20: =C102 -> 0 | G20: Actual Tariff Revenue | H20: 0 | I20: 0 | J20: =H102 -> 0
B21: Difference | C21: =C20-C19 -> 0 | D21: =D20-D19 -> 0 | E21: =E20-E19 -> 0 | G21: Difference | H21: =H20-H19 -> 0 | I21: =I20-I19 -> 0 | J21: =J20-J19 -> 0
B30: WACC | C30: Actual 2014-15 | D30: Actual 2015-16 | E30: Actual 2016-17 | G30: WACC | H30: Actual 2014-15 | I30: Actual 2015-16 | J30: Actual 2016-17
B31: CPI (t) | C31: ='State Water data inputs'!C11 -> 0.029296875 | D31: ='State Water data inputs'!D11 -> 0 | E31: ='State Water data inputs'!E11 -> 0 | G31: CPI (t) | H31: =C31 -> 0.029296875 | I31: =D31 -> 0 | J31: 0
B32: Real Pre Tax WACC | C32: ='ACCC data inputs'!B39 -> 0.04257220868 | D32: ='ACCC data inputs'!C39 -> 0.04257220868 | E32: ='ACCC data inputs'!D39 -> 0.04257220868 | G32: Real Pre Tax WACC | H32: =C32 -> 0.04257220868 | I32: 0.04257220868 | J32: 0.04257220868
B33: Nominal Pre Tax WACC | C33: =(1+C31)*(1+C32)-1 -> 0.07311631635 | D33: =(1+D31)*(1+D32)-1 -> 0.04257220868 | E33: 0.04257220868 | G33: Nominal Pre Tax WACC | H33: =(1+H31)*(1+H32)-1 -> 0.07311631635 | I33: =(1+I31)*(1+I32)-1 -> 0.04257220868 | J33: =(1+J31)*(1+J32)-1 -> 0.04257220868
B36: RAB UOM | C36: Actual 2014-15 | D36: Actual 2015-16 | E36: Actual 2016-17 | H36: Actual 2014-15 | I36: Actual 2015-16 | J36: Actual 2016-17
B37: Opening balance | C37: 0 | D37: =C40 -> 0 | E37: =D40 -> -6234692.7
B38: UOM (t-1) | C38: =C15 -> 0 | D38: =D15 -> -6234692.7 | E38: =E15 -> -6390101.426 | G38: UOM (t-1) | H38: =H15 -> 0 | I38: =I15 -> -10498828.12 | J38: =J15 -> -21650473.93
B39: UOM (t-2) | C39: 0 | D39: =D21*(1+C$33) -> 0 | E39: =E21*(1+D$33) -> 0 | G39: UOM (t-2) | H39: 0 | I39: =I21*(1+H$33) -> 0 | J39: =J21*(1+I$33) -> 0
B40: Closing balance | C40: =SUM(C37:C39) -> 0 | D40: =SUM(D37:D39) -> -6234692.7 | E40: -12624794.13
B42: Rev UOM (t) | C42: =C40*C$33 -> 0 | D42: =D40*D$33 -> -265424.6387 | E42: =E40*E$33 -> -537465.3701 | G42: Rev UOM (t) | H42: =SUM(H38:H40)*(1+H$33) -> 0 | I42: =SUM(I38:I39)*(1+I$33) -> -10945786.43 | J42: =SUM(J38:J39)*(1+J$33) -> -22572182.42
B46: Revenue Requirement | C46: 2014-15 | D46: 2015-16 | E46: 2016-17 | G46: Maximum pass through revenue | H46: 2014-15 | I46: 2015-16 | J46: 2016-17
B47: Revenue Requirement | C47: =(C7-C42) -> 6234692.7 | D47: =(D7-D42) -> 6390101.426 | E47: =(E7-E42) -> 6554067.559 | G47: Maximum MDBA / BCR Revenue | H47: =(H7-H42) -> 10498828.12 | I47: =(I7-I42) -> 21650473.93 | J47: =(J7-J42) -> 32144643.36
B52: Forecast Tariff Revenue | C52: 2014-15 | D52: 2015-16 | E52: 2016-17 | G52: Forecast Tariff Revenue | H52: 2014-15 | I52: 2015-16 | J52: 2016-17
B53: Revenue Requirement | C53: =C47 -> 6234692.7 | D53: =D47 -> 6390101.426 | E53: 6554067.559 | G53: Maximum MDBA / BCR Revenue | H53: =H47 -> 10498828.12 | I53: =I47 -> 21650473.93 | J53: =J47 -> 32144643.36
B54: Target Variable / Fixed ratio (%) | C54: ='ACCC data inputs'!B30 -> 0.6 | D54: ='ACCC data inputs'!C30 -> 0.6 | E54: ='ACCC data inputs'!D30 -> 0.6 | G54: Target Variable / Fixed ratio (%) | H54: =C54 -> 0.6 | I54: 0.6 | J54: 0.6
B55: Variable Charge Revenue | C55: =C53*C54 -> 3740815.62 | D55: =D53*D54 -> 3834060.856 | E55: =E53*E54 -> 3932440.535 | G55: Variable Charge Revenue | H55: =H53*H54 -> 6299296.875 | I55: =I53*I54 -> 12990284.36 | J55: =J53*J54 -> 19286786.01
B57: Water sharing plan ratio (WSP) | C57: ='ACCC data inputs'!$B$25 -> 1.25 | D57: ='ACCC data inputs'!$B$25 -> 1.25 | E57: ='ACCC data inputs'!$B$25 -> 1.25 | G57: Water sharing plan ratio (WSP) | H57: =C57 -> 1.25 | I57: 1.25 | J57: 1.25
B58: Average Water Allocation (AWA) | C58: ='State Water data inputs'!L$65 -> 1.411111111 | D58: ='State Water data inputs'!M$65 -> 1.479508197 | E58: ='State Water data inputs'!N$65 -> 1.515555556 | G58: Average Water Allocation (AWA) | H58: 1.411111111 | I58: 1.479508197 | J58: 1.515555556
B59: High security premium (times) | C59: =C57*C58 -> 1.763888889 | D59: =D57*D58 -> 1.849385246 | E59: =E57*E58 -> 1.894444444 | G59: High security premium (times) | H59: 1.763888889 | I59: 1.849385246 | J59: 1.894444444
B61: Forecast sales quantities | C61: =C$52 -> 2014-15 | D61: =D$52 -> 2015-16 | E61: 2016-17 | G61: Forecast sales quantities | H61: =H$52 -> 2014-15 | I61: =I$52 -> 2015-16 | J61: =J$52 -> 2016-17
B62: High Security Entitlement (ML) | C62: ='State Water data inputs'!B$37 -> 261400.7 | D62: ='State Water data inputs'!C$37 -> 0 | E62: ='State Water data inputs'!D$37 -> 0 | G62: High Security Entitlement (ML) | H62: =C62 -> 261400.7 | I62: 0 | J62: 0
B63: General Security Entitlement (ML) | C63: ='State Water data inputs'!B$23 -> 2075822 | D63: ='State Water data inputs'!C$23 -> 0 | E63: ='State Water data inputs'!D$23 -> 0 | G63: General Security Entitlement (ML) | H63: 2075822 | I63: 0 | J63: 0
B64: Water volumes (ML) | C64: ='State Water data inputs'!B$50 -> 1459688.934 | D64: ='State Water data inputs'!C$50 -> 1368381.784 | E64: ='State Water data inputs'!D$50 -> 1261589.234 | G64: Water volumes (ML) | H64: 1459688.934 | I64: 1368381.784 | J64: 1261589.234
B66: Tariffs ($ Nominal) | C66: =C$52 -> 2014-15 | D66: =D$52 -> 2015-16 | E66: 2016-17 | G66: Tariffs ($ Nominal) | H66: =H$52 -> 2014-15 | I66: =I$52 -> 2015-16 | J66: =J$52 -> 2016-17
B67: High Security Entitlement ($/ML) | C67: =C68*C59 -> 1.733972762 | D67: =D68*D59 -> 0 | E67: 0 | G67: High Security Entitlement ($/ML) | H67: =H68*H59 -> 2.919900447 | I67: =I68*I59 -> 0 | J67: =J68*J59 -> 0
B68: General Security Entitlement ($/ML) | C68: =(C53-C55)/(C63+C62*C59) -> 0.9830396761 | D68: =IF((D63+D62*D59)=0,0,(D53-D55)/(D63+D62*D59)) -> 0 | E68: =IF((E63+E62*E59)=0,0,(E53-E55)/(E63+E62*E59)) -> 0 | G68: General Security Entitlement ($/ML) | H68: =(H53-H55)/(H63+H62*H59) -> 1.655376631 | I68: =IF((I63+I62*I59)=0,0,(I53-I55)/(I63+I62*I59)) -> 0 | J68: =IF((J63+J62*J59)=0,0,(J53-J55)/(J63+J62*J59)) -> 0
B69: Usage ($/ML delivered) | C69: =C55/C64 -> 2.562748496 | D69: =D55/D64 -> 2.801894106 | E69: 3.117053023 | G69: Usage ($/ML delivered) | H69: =H55/H64 -> 4.315506358 | I69: =I55/I64 -> 9.493172526 | J69: =J55/J64 -> 15.28769071
B71: Tariffs Revenue ($'000 Nominal) | C71: =C$52 -> 2014-15 | D71: =D$52 -> 2015-16 | E71: 2016-17 | G71: Tariffs Revenue ($'000 Nominal) | H71: =H$52 -> 2014-15 | I71: =I$52 -> 2015-16 | J71: =J$52 -> 2016-17
B72: High Security Entitlement | C72: =C62*C67 -> 453261.6938 | D72: =D62*D67 -> 0 | E72: 0 | G72: High Security Entitlement | H72: =H62*H67 -> 763264.0207 | I72: 0 | J72: 0
B73: General Security Entitlement | C73: =C63*C68 -> 2040615.386 | D73: 0 | E73: 0 | G73: General Security Entitlement | H73: 3436267.229 | I73: 0 | J73: 0
B74: Usage | C74: =C64*C69 -> 3740815.62 | D74: 3834060.856 | E74: 3932440.535 | G74: Usage | H74: 6299296.875 | I74: 12990284.36 | J74: 19286786.01
C75: =SUM(C72:C74) -> 6234692.7 | D75: =SUM(D72:D74) -> 3834060.856 | E75: 3932440.535 | H75: =SUM(H72:H74) -> 10498828.12 | I75: =SUM(I72:I74) -> 12990284.36 | J75: =SUM(J72:J74) -> 19286786.01
B76: Check | C76: =ABS(C75-C53) -> 0 | D76: =ABS(IF(SUM(D72:D73)=0,0,D75-D53)) -> 0 | E76: =ABS(IF(SUM(E72:E73)=0,0,E75-E53)) -> 0 | G76: Check | H76: =ABS(H75-H53) -> 0 | I76: =ABS(IF(SUM(I72:I73)=0,0,I75-I53)) -> 0 | J76: 0
B79: Estimated Tariff Revenue | G79: Estimated Tariff Revenue
B80: Estimated sales quantities | C80: =C$52 -> 2014-15 | D80: =D$52 -> 2015-16 | E80: 2016-17 | G80: Estimated sales quantities | H80: =H$52 -> 2014-15 | I80: =I$52 -> 2015-16 | J80: =J$52 -> 2016-17
B81: High Security Entitlement (ML) | C81: ='State Water data inputs'!F$37 -> 0 | D81: ='State Water data inputs'!G$37 -> 0 | E81: ='State Water data inputs'!H$37 -> 0 | G81: High Security Entitlement (ML) | H81: =C81 -> 0 | I81: 0 | J81: 0
B82: General Security Entitlement (ML) | C82: ='State Water data inputs'!F$23 -> 0 | D82: ='State Water data inputs'!G$23 -> 0 | E82: ='State Water data inputs'!H$23 -> 0 | G82: General Security Entitlement (ML) | H82: 0 | I82: 0 | J82: 0
B83: Water volumes (ML) | C83: ='State Water data inputs'!F$50 -> 0 | D83: ='State Water data inputs'!G$50 -> 0 | E83: ='State Water data inputs'!H$50 -> 0 | G83: Water volumes (ML) | H83: 0 | I83: 0 | J83: 0
B85: Tariffs Revenue ($'000 Nominal) | C85: =C$52 -> 2014-15 | D85: =D$52 -> 2015-16 | E85: 2016-17 | G85: Tariffs Revenue ($'000 Nominal) | H85: =H$52 -> 2014-15 | I85: =I$52 -> 2015-16 | J85: =J$52 -> 2016-17
B86: High Security Entitlement | C86: =C81*C67 -> 0 | D86: 0 | E86: 0 | G86: High Security Entitlement | H86: =H81*H67 -> 0 | I86: 0 | J86: 0
B87: General Security Entitlement | C87: 0 | D87: 0 | E87: 0 | G87: General Security Entitlement | H87: 0 | I87: 0 | J87: 0
B88: Usage | C88: 0 | D88: 0 | E88: 0 | G88: Usage | H88: 0 | I88: 0 | J88: 0
C89: =SUM(C86:C88) -> 0 | D89: =SUM(D86:D88) -> 0 | E89: 0 | H89: =SUM(H86:H88) -> 0 | I89: =SUM(I86:I88) -> 0 | J89: =SUM(J86:J88) -> 0
B92: Actual Tariff Revenue | G92: Actual Tariff Revenue
B93: Actual sales quantities | C93: =C$52 -> 2014-15 | D93: =D$52 -> 2015-16 | E93: 2016-17 | G93: Actual sales quantities | H93: =H$52 -> 2014-15 | I93: =I$52 -> 2015-16 | J93: =J$52 -> 2016-17
B94: High Security Entitlement (ML) | C94: ='State Water data inputs'!K$37 -> 0 | D94: ='State Water data inputs'!L$37 -> 0 | E94: ='State Water data inputs'!M$37 -> 0 | G94: High Security Entitlement (ML) | H94: =C94 -> 0 | I94: 0 | J94: 0
B95: General Security Entitlement (ML) | C95: ='State Water data inputs'!K$23 -> 0 | D95: ='State Water data inputs'!L$23 -> 0 | E95: ='State Water data inputs'!M$23 -> 0 | G95: General Security Entitlement (ML) | H95: 0 | I95: 0 | J95: 0
B96: Water volumes (ML) | C96: ='State Water data inputs'!K$50 -> 0 | D96: ='State Water data inputs'!L$50 -> 0 | E96: ='State Water data inputs'!M$50 -> 0 | G96: Water volumes (ML) | H96: 0 | I96: 0 | J96: 0
B98: Tariffs Revenue ($'000 Nominal) | C98: =C$52 -> 2014-15 | D98: =D$52 -> 2015-16 | E98: =E$52 -> 2016-17 | G98: Tariffs Revenue ($'000 Nominal) | H98: =H$52 -> 2014-15 | I98: =I$52 -> 2015-16 | J98: =J$52 -> 2016-17
B99: High Security Entitlement | C99: =C94*C67 -> 0 | D99: 0 | E99: 0 | G99: High Security Entitlement | H99: =H94*H67 -> 0 | I99: 0 | J99: 0
B100: General Security Entitlement | C100: 0 | D100: 0 | E100: 0 | G100: General Security Entitlement | H100: 0 | I100: 0 | J100: 0
B101: Usage | C101: 0 | D101: 0 | E101: 0 | G101: Usage | H101: 0 | I101: 0 | J101: 0
C102: =SUM(C99:C101) -> 0 | D102: =SUM(D99:D101) -> 0 | E102: 0 | H102: =SUM(H99:H101) -> 0 | I102: =SUM(I99:I101) -> 0 | J102: =SUM(J99:J101) -> 0

Sheet Murrumbidgee
B1: Murrumbidgee | C1: Check | D1: =IF(E1>0.001,"Error","Ok") -> Ok | E1: =SUM(C76:E76,H76:J76) -> 0
B3: State Water Costs Tariffs | C3: 2014-15 | D3: 2015-16 | E3: 2016-17 | G3: MDBA / BCR Tariffs | H3: 2014-15 | I3: 2015-16 | J3: 2016-17
B6: Benchmark Revenue (Rev BBM) | C6: Forecast 2014-15 | D6: Forecast 2015-16 | E6: Forecast 2016-17 | G6: MDBA / BCR costs | H6: Forecast 2014-15 | I6: Forecast 2015-16 | J6: Forecast 2016-17
B7: Benchmark Revenue (Rev BBM) | C7: ='ACCC data inputs'!B$13*(1+C$31) -> 10278578.68 | D7: ='ACCC data inputs'!C$13*(1+C$31)*(1+D$31) -> 10246979.27 | E7: ='ACCC data inputs'!D$13*(1+C$31)*(1+D$31)*(1+E$31) -> 10215477.01 | G7: MDBA / BCR costs | H7: ='ACCC data inputs'!G$13*(1+H$31) -> 2367382.812 | I7: ='ACCC data inputs'!H$13*(1+H$31)*(1+I$31) -> 2367382.812 | J7: ='ACCC data inputs'!I$13*(1+H$31)*(1+I$31)*(1+J$31) -> 2161523.438
B11: Unders/Overs Adjustment | G11: Unders/Overs Adjustment
B12: Calc. of UOM (t-1) | C12: Estimated 2013-14 | D12: Estimated 2014-15 | E12: Estimated 2015-16 | G12: Calc. of UOM (t-1) | H12: Estimated 2013-14 | I12: Estimated 2014-15 | J12: Estimated 2015-16
B13: Revenue Requirement | C13: 0 | D13: =C47 -> 10278578.68 | E13: =D47 -> 10684561.07 | G13: MDBA / BCR costs | H13: 0 | I13: =H47 -> 2367382.812 | J13: =I47 -> 4835550.34
B14: Estimated Tariff Revenue | C14: 0 | D14: =C89 -> 0 | E14: =D89 -> 0 | G14: Estimated MDBA / BCR revenue | H14: 0 | I14: =H89 -> 0 | J14: =I89 -> 0
B15: Difference | C15: =C14-C13 -> 0 | D15: =D14-D13 -> -10278578.68 | E15: =E14-E13 -> -10684561.07 | G15: Difference | H15: =H14-H13 -> 0 | I15: =I14-I13 -> -2367382.812 | J15: =J14-J13 -> -4835550.34
B18: Calc. of UOM (t-2) | C18: Actual 2012-13 | D18: Actual 2013-14 | E18: Actual 2014-15 | G18: Calc. of UOM (t-2) | H18: Actual 2012-13 | I18: Actual 2013-14 | J18: Actual 2014-15
B19: Estimated Tariff Revenue | C19: 0 | D19: =C14 -> 0 | E19: =D14 -> 0 | G19: Estimated Tariff Revenue | H19: 0 | I19: =H14 -> 0 | J19: =I14 -> 0
B20: Actual Tariff Revenue | C20: 0 | D20: 0 | E20: =C102 -> 0 | G20: Actual Tariff Revenue | H20: 0 | I20: 0 | J20: =H102 -> 0
B21: Difference | C21: =C20-C19 -> 0 | D21: =D20-D19 -> 0 | E21: =E20-E19 -> 0 | G21: Difference | H21: =H20-H19 -> 0 | I21: =I20-I19 -> 0 | J21: =J20-J19 -> 0
B30: WACC | C30: Actual 2014-15 | D30: Actual 2015-16 | E30: Actual 2016-17 | G30: WACC | H30: Actual 2014-15 | I30: Actual 2015-16 | J30: Actual 2016-17
B31: CPI (t) | C31: ='State Water data inputs'!C11 -> 0.029296875 | D31: ='State Water data inputs'!D11 -> 0 | E31: ='State Water data inputs'!E11 -> 0 | G31: CPI (t) | H31: =C31 -> 0.029296875 | I31: =D31 -> 0 | J31: 0
B32: Real Pre Tax WACC | C32: ='ACCC data inputs'!B39 -> 0.04257220868 | D32: ='ACCC data inputs'!C39 -> 0.04257220868 | E32: ='ACCC data inputs'!D39 -> 0.04257220868 | G32: Real Pre Tax WACC | H32: =C32 -> 0.04257220868 | I32: 0.04257220868 | J32: 0.04257220868
B33: Nominal Pre Tax WACC | C33: =(1+C31)*(1+C32)-1 -> 0.07311631635 | D33: =(1+D31)*(1+D32)-1 -> 0.04257220868 | E33: 0.04257220868 | G33: Nominal Pre Tax WACC | H33: =(1+H31)*(1+H32)-1 -> 0.07311631635 | I33: =(1+I31)*(1+I32)-1 -> 0.04257220868 | J33: =(1+J31)*(1+J32)-1 -> 0.04257220868
B36: RAB UOM | C36: Actual 2014-15 | D36: Actual 2015-16 | E36: Actual 2016-17 | H36: Actual 2014-15 | I36: Actual 2015-16 | J36: Actual 2016-17
B37: Opening balance | C37: 0 | D37: =C40 -> 0 | E37: =D40 -> -10278578.68
B38: UOM (t-1) | C38: =C15 -> 0 | D38: =D15 -> -10278578.68 | E38: =E15 -> -10684561.07 | G38: UOM (t-1) | H38: =H15 -> 0 | I38: =I15 -> -2367382.812 | J38: =J15 -> -4835550.34
B39: UOM (t-2) | C39: 0 | D39: =D21*(1+C$33) -> 0 | E39: =E21*(1+D$33) -> 0 | G39: UOM (t-2) | H39: 0 | I39: =I21*(1+H$33) -> 0 | J39: =J21*(1+I$33) -> 0
B40: Closing balance | C40: =SUM(C37:C39) -> 0 | D40: =SUM(D37:D39) -> -10278578.68 | E40: -20963139.75
B42: Rev UOM (t) | C42: =C40*C$33 -> 0 | D42: =D40*D$33 -> -437581.7966 | E42: =E40*E$33 -> -892447.1601 | G42: Rev UOM (t) | H42: =SUM(H38:H40)*(1+H$33) -> 0 | I42: =SUM(I38:I39)*(1+I$33) -> -2468167.528 | J42: =SUM(J38:J39)*(1+J$33) -> -5041410.398
B46: Revenue Requirement | C46: 2014-15 | D46: 2015-16 | E46: 2016-17 | G46: Maximum pass through revenue | H46: 2014-15 | I46: 2015-16 | J46: 2016-17
B47: Revenue Requirement | C47: =(C7-C42) -> 10278578.68 | D47: =(D7-D42) -> 10684561.07 | E47: =(E7-E42) -> 11107924.17 | G47: Maximum MDBA / BCR Revenue | H47: =(H7-H42) -> 2367382.812 | I47: =(I7-I42) -> 4835550.34 | J47: =(J7-J42) -> 7202933.836
B52: Forecast Tariff Revenue | C52: 2014-15 | D52: 2015-16 | E52: 2016-17 | G52: Forecast Tariff Revenue | H52: 2014-15 | I52: 2015-16 | J52: 2016-17
B53: Revenue Requirement | C53: =C47 -> 10278578.68 | D53: =D47 -> 10684561.07 | E53: 11107924.17 | G53: Maximum MDBA / BCR Revenue | H53: =H47 -> 2367382.812 | I53: =I47 -> 4835550.34 | J53: =J47 -> 7202933.836
B54: Target Variable / Fixed ratio (%) | C54: ='ACCC data inputs'!B30 -> 0.6 | D54: ='ACCC data inputs'!C30 -> 0.6 | E54: ='ACCC data inputs'!D30 -> 0.6 | G54: Target Variable / Fixed ratio (%) | H54: =C54 -> 0.6 | I54: 0.6 | J54: 0.6
B55: Variable Charge Revenue | C55: =C53*C54 -> 6167147.21 | D55: =D53*D54 -> 6410736.642 | E55: =E53*E54 -> 6664754.501 | G55: Variable Charge Revenue | H55: =H53*H54 -> 1420429.688 | I55: =I53*I54 -> 2901330.204 | J55: =J53*J54 -> 4321760.301
B57: Water sharing plan ratio (WSP) | C57: ='ACCC data inputs'!$B$26 -> 1.63 | D57: ='ACCC data inputs'!$B$26 -> 1.63 | E57: ='ACCC data inputs'!$B$26 -> 1.63 | G57: Water sharing plan ratio (WSP) | H57: =C57 -> 1.63 | I57: 1.63 | J57: 1.63
B58: Average Water Allocation (AWA) | C58: ='State Water data inputs'!L$66 -> 1.412543353 | D58: ='State Water data inputs'!M$66 -> 1.467531646 | E58: ='State Water data inputs'!N$66 -> 1.507697595 | G58: Average Water Allocation (AWA) | H58: 1.412543353 | I58: 1.467531646 | J58: 1.507697595
B59: High security premium (times) | C59: =C57*C58 -> 2.302445665 | D59: =D57*D58 -> 2.392076582 | E59: =E57*E58 -> 2.457547079 | G59: High security premium (times) | H59: 2.302445665 | I59: 2.392076582 | J59: 2.457547079
B61: Forecast sales quantities | C61: =C$52 -> 2014-15 | D61: =D$52 -> 2015-16 | E61: 2016-17 | G61: Forecast sales quantities | H61: =H$52 -> 2014-15 | I61: =I$52 -> 2015-16 | J61: =J$52 -> 2016-17
B62: High Security Entitlement (ML) | C62: ='State Water data inputs'!B$38 -> 436928 | D62: ='State Water data inputs'!C$38 -> 0 | E62: ='State Water data inputs'!D$38 -> 0 | G62: High Security Entitlement (ML) | H62: =C62 -> 436928 | I62: 0 | J62: 0
B63: General Security Entitlement (ML) | C63: ='State Water data inputs'!B$24 -> 2260113 | D63: ='State Water data inputs'!C$24 -> 0 | E63: ='State Water data inputs'!D$24 -> 0 | G63: General Security Entitlement (ML) | H63: 2260113 | I63: 0 | J63: 0
B64: Water volumes (ML) | C64: ='State Water data inputs'!B$51 -> 1759739.925 | D64: ='State Water data inputs'!C$51 -> 1655354.475 | E64: ='State Water data inputs'!D$51 -> 1527092.425 | G64: Water volumes (ML) | H64: 1759739.925 | I64: 1655354.475 | J64: 1527092.425
B66: Tariffs ($ Nominal) | C66: =C$52 -> 2014-15 | D66: =D$52 -> 2015-16 | E66: 2016-17 | G66: Tariffs ($ Nominal) | H66: =H$52 -> 2014-15 | I66: =I$52 -> 2015-16 | J66: =J$52 -> 2016-17
B67: High Security Entitlement ($/ML) | C67: =C68*C59 -> 2.898350099 | D67: =D68*D59 -> 0 | E67: 0 | G67: High Security Entitlement ($/ML) | H67: =H68*H59 -> 0.6675537951 | I67: =I68*I59 -> 0 | J67: =J68*J59 -> 0
B68: General Security Entitlement ($/ML) | C68: =(C53-C55)/(C63+C62*C59) -> 1.258813679 | D68: =IF((D63+D62*D59)=0,0,(D53-D55)/(D63+D62*D59)) -> 0 | E68: =IF((E63+E62*E59)=0,0,(E53-E55)/(E63+E62*E59)) -> 0 | G68: General Security Entitlement ($/ML) | H68: =(H53-H55)/(H63+H62*H59) -> 0.2899324859 | I68: =IF((I63+I62*I59)=0,0,(I53-I55)/(I63+I62*I59)) -> 0 | J68: =IF((J63+J62*J59)=0,0,(J53-J55)/(J63+J62*J59)) -> 0
B69: Usage ($/ML delivered) | C69: =C55/C64 -> 3.504578786 | D69: =D55/D64 -> 3.872727406 | E69: 4.364342585 | G69: Usage ($/ML delivered) | H69: =H55/H64 -> 0.8071815996 | I69: =I55/I64 -> 1.75269421 | J69: =J55/J64 -> 2.83005811
B71: Tariffs Revenue ($'000 Nominal) | C71: =C$52 -> 2014-15 | D71: =D$52 -> 2015-16 | E71: 2016-17 | G71: Tariffs Revenue ($'000 Nominal) | H71: =H$52 -> 2014-15 | I71: =I$52 -> 2015-16 | J71: =J$52 -> 2016-17
B72: High Security Entitlement | C72: =C62*C67 -> 1266370.312 | D72: =D62*D67 -> 0 | E72: 0 | G72: High Security Entitlement | H72: =H62*H67 -> 291672.9446 | I72: 0 | J72: 0
B73: General Security Entitlement | C73: =C63*C68 -> 2845061.161 | D73: 0 | E73: 0 | G73: General Security Entitlement | H73: 655280.1804 | I73: 0 | J73: 0
B74: Usage | C74: =C64*C69 -> 6167147.21 | D74: 6410736.642 | E74: 6664754.501 | G74: Usage | H74: 1420429.688 | I74: 2901330.204 | J74: 4321760.301
C75: =SUM(C72:C74) -> 10278578.68 | D75: =SUM(D72:D74) -> 6410736.642 | E75: 6664754.501 | H75: =SUM(H72:H74) -> 2367382.812 | I75: =SUM(I72:I74) -> 2901330.204 | J75: =SUM(J72:J74) -> 4321760.301
B76: Check | C76: =ABS(C75-C53) -> 0 | D76: =ABS(IF(SUM(D72:D73)=0,0,D75-D53)) -> 0 | E76: =ABS(IF(SUM(E72:E73)=0,0,E75-E53)) -> 0 | G76: Check | H76: =ABS(H75-H53) -> 0 | I76: =ABS(IF(SUM(I72:I73)=0,0,I75-I53)) -> 0 | J76: 0
B79: Estimated Tariff Revenue | G79: Estimated Tariff Revenue
B80: Estimated sales quantities | C80: =C$52 -> 2014-15 | D80: =D$52 -> 2015-16 | E80: 2016-17 | G80: Estimated sales quantities | H80: =H$52 -> 2014-15 | I80: =I$52 -> 2015-16 | J80: =J$52 -> 2016-17
B81: High Security Entitlement (ML) | C81: ='State Water data inputs'!F$38 -> 0 | D81: ='State Water data inputs'!G$38 -> 0 | E81: ='State Water data inputs'!H$38 -> 0 | G81: High Security Entitlement (ML) | H81: =C81 -> 0 | I81: 0 | J81: 0
B82: General Security Entitlement (ML) | C82: ='State Water data inputs'!F$24 -> 0 | D82: ='State Water data inputs'!G$24 -> 0 | E82: ='State Water data inputs'!H$24 -> 0 | G82: General Security Entitlement (ML) | H82: 0 | I82: 0 | J82: 0
B83: Water volumes (ML) | C83: ='State Water data inputs'!F$51 -> 0 | D83: ='State Water data inputs'!G$51 -> 0 | E83: ='State Water data inputs'!H$51 -> 0 | G83: Water volumes (ML) | H83: 0 | I83: 0 | J83: 0
B85: Tariffs Revenue ($'000 Nominal) | C85: =C$52 -> 2014-15 | D85: =D$52 -> 2015-16 | E85: 2016-17 | G85: Tariffs Revenue ($'000 Nominal) | H85: =H$52 -> 2014-15 | I85: =I$52 -> 2015-16 | J85: =J$52 -> 2016-17
B86: High Security Entitlement | C86: =C81*C67 -> 0 | D86: 0 | E86: 0 | G86: High Security Entitlement | H86: =H81*H67 -> 0 | I86: 0 | J86: 0
B87: General Security Entitlement | C87: 0 | D87: 0 | E87: 0 | G87: General Security Entitlement | H87: 0 | I87: 0 | J87: 0
B88: Usage | C88: 0 | D88: 0 | E88: 0 | G88: Usage | H88: 0 | I88: 0 | J88: 0
C89: =SUM(C86:C88) -> 0 | D89: =SUM(D86:D88) -> 0 | E89: 0 | H89: =SUM(H86:H88) -> 0 | I89: =SUM(I86:I88) -> 0 | J89: =SUM(J86:J88) -> 0
B92: Actual Tariff Revenue | G92: Actual Tariff Revenue
B93: Actual sales quantities | C93: =C$52 -> 2014-15 | D93: =D$52 -> 2015-16 | E93: 2016-17 | G93: Actual sales quantities | H93: =H$52 -> 2014-15 | I93: =I$52 -> 2015-16 | J93: =J$52 -> 2016-17
B94: High Security Entitlement (ML) | C94: ='State Water data inputs'!K$38 -> 0 | D94: ='State Water data inputs'!L$38 -> 0 | E94: ='State Water data inputs'!M$38 -> 0 | G94: High Security Entitlement (ML) | H94: =C94 -> 0 | I94: 0 | J94: 0
B95: General Security Entitlement (ML) | C95: ='State Water data inputs'!K$24 -> 0 | D95: ='State Water data inputs'!L$24 -> 0 | E95: ='State Water data inputs'!M$24 -> 0 | G95: General Security Entitlement (ML) | H95: 0 | I95: 0 | J95: 0
B96: Water volumes (ML) | C96: ='State Water data inputs'!K$51 -> 0 | D96: ='State Water data inputs'!L$51 -> 0 | E96: ='State Water data inputs'!M$51 -> 0 | G96: Water volumes (ML) | H96: 0 | I96: 0 | J96: 0
B98: Tariffs Revenue ($'000 Nominal) | C98: =C$52 -> 2014-15 | D98: =D$52 -> 2015-16 | E98: =E$52 -> 2016-17 | G98: Tariffs Revenue ($'000 Nominal) | H98: =H$52 -> 2014-15 | I98: =I$52 -> 2015-16 | J98: =J$52 -> 2016-17
B99: High Security Entitlement | C99: =C94*C67 -> 0 | D99: 0 | E99: 0 | G99: High Security Entitlement | H99: =H94*H67 -> 0 | I99: 0 | J99: 0
B100: General Security Entitlement | C100: 0 | D100: 0 | E100: 0 | G100: General Security Entitlement | H100: 0 | I100: 0 | J100: 0
B101: Usage | C101: 0 | D101: 0 | E101: 0 | G101: Usage | H101: 0 | I101: 0 | J101: 0
C102: =SUM(C99:C101) -> 0 | D102: =SUM(D99:D101) -> 0 | E102: 0 | H102: =SUM(H99:H101) -> 0 | I102: =SUM(I99:I101) -> 0 | J102: =SUM(J99:J101) -> 0

Sheet Lowbidgee
B1: Lowbidgee | C1: Check | D1: =IF(E1>0.001,"Error","Ok") -> Ok | E1: 0
B3: State Water Costs Tariffs | G3: MDBA / BCR Tariffs
C5: 2014-15 | D5: 2015-16 | E5: 2016-17
B6: Tariffs ($ Real 2013-14)
B7: General Security Entitlement ($/ML) | C7: ='ACCC data inputs'!B57 -> 0.7105504754 | D7: ='ACCC data inputs'!C57 -> 0.7504347828 | E7: ='ACCC data inputs'!D57 -> 0.7925578586
B9: Actual CPI | C9: ='State Water data inputs'!C11 -> 0.029296875 | D9: ='State Water data inputs'!D11 -> 0 | E9: ='State Water data inputs'!E11 -> 0
B12: Tariffs ($ Nominal) | C12: 2014-15 | D12: 2015-16 | E12: 2016-17 | G12: Tariffs ($ Nominal) | H12: 2014-15 | I12: 2015-16 | J12: 2016-17
B13: High Security Entitlement ($/ML) | G13: High Security Entitlement ($/ML) | H13: 0 | I13: 0 | J13: 0
B14: General Security Entitlement ($/ML) | C14: =C$7*(1+C$9) -> 0.7313673838 | D14: =D$7*(1+C$9)*(1+D$9) -> 0.7724201768 | E14: =E$7*(1+C$9)*(1+D$9)*(1+E$9) -> 0.8157773271 | G14: General Security Entitlement ($/ML) | H14: 0 | I14: 0 | J14: 0
B15: Usage ($/ML delivered) | G15: Usage ($/ML delivered) | H15: 0 | I15: 0 | J15: 0

Sheet Fish River
B1: Fish River | C1: Check | D1: =IF(E1>0.001,"Error","Ok") -> Ok | E1: =SUM(J149,J184,J204,J229,C235:E235) -> 2.328306437e-09
B3: State Water Costs Tariffs | C3: 2014-15 | D3: 2015-16 | E3: 2016-17
B6: Benchmark Revenue (Rev BBM) | C6: Forecast 2014-15 | D6: Forecast 2015-16 | E6: Forecast 2016-17
B7: Benchmark Revenue (Rev BBM) | C7: ='ACCC data inputs'!B$15*(1+C$31) -> 9721399.845 | D7: ='ACCC data inputs'!C$15*(1+C$31)*(1+D$31) -> 9828142.414 | E7: ='ACCC data inputs'!D$15*(1+C$31)*(1+D$31)*(1+E$31) -> 9936057.035
B11: Unders/Overs Adjustment
B12: Calc. of UOM (t-1) | C12: Estimated 2013-14 | D12: Estimated 2014-15 | E12: Estimated 2015-16
B13: Revenue Requirement | C13: 0 | D13: =C47 -> 9721399.845 | E13: =D47 -> 10011585.58
B14: Estimated Tariff Revenue | C14: 0 | D14: =C349 -> 5412411.082 | E14: =D349 -> 5606487.927
B15: Difference | C15: =C14-C13 -> 0 | D15: =D14-D13 -> -4308988.763 | E15: =E14-E13 -> -4405097.657
B18: Calc. of UOM (t-2) | C18: Actual 2012-13 | D18: Actual 2013-14 | E18: Actual 2014-15
B19: Estimated Tariff Revenue | C19: 0 | D19: =C14 -> 0 | E19: =D14 -> 5412411.082
B20: Actual Tariff Revenue | C20: 0 | D20: 0 | E20: =C462 -> 5412411.082
B21: Difference | C21: =C20-C19 -> 0 | D21: =D20-D19 -> 0 | E21: =E20-E19 -> 0
B30: WACC | C30: Actual 2014-15 | D30: Actual 2015-16 | E30: Actual 2016-17
B31: CPI (t) | C31: ='State Water data inputs'!C11 -> 0.029296875 | D31: ='State Water data inputs'!D11 -> 0 | E31: ='State Water data inputs'!E11 -> 0
B32: Real Pre Tax WACC | C32: ='ACCC data inputs'!B39 -> 0.04257220868 | D32: ='ACCC data inputs'!C39 -> 0.04257220868 | E32: ='ACCC data inputs'!D39 -> 0.04257220868
B33: Nominal Pre Tax WACC | C33: =(1+C31)*(1+C32)-1 -> 0.07311631635 | D33: =(1+D31)*(1+D32)-1 -> 0.04257220868 | E33: 0.04257220868
B36: RAB UOM | C36: Actual 2014-15 | D36: Actual 2015-16 | E36: Actual 2016-17
B37: Opening balance | C37: 0 | D37: =C40 -> 0 | E37: =D40 -> -4308988.763
B38: UOM (t-1) | C38: =C15 -> 0 | D38: =D15 -> -4308988.763 | E38: =E15 -> -4405097.657
B39: UOM (t-2) | C39: 0 | D39: =D21*(1+C$33) -> 0 | E39: =E21*(1+D$33) -> 0
B40: Closing balance | C40: =SUM(C37:C39) -> 0 | D40: =SUM(D37:D39) -> -4308988.763 | E40: -8714086.419
B42: Rev UOM (t) | C42: =C40*C$33 -> 0 | D42: =D40*D$33 -> -183443.1688 | E42: =E40*E$33 -> -370977.9055
B46: Revenue Requirement | C46: 2014-15 | D46: 2015-16 | E46: 2016-17
B47: Revenue Requirement | C47: =(C7-C42) -> 9721399.845 | D47: =(D7-D42) -> 10011585.58 | E47: =(E7-E42) -> 10307034.94
B52: Forecast Tariff Revenue | C52: 2014-15 | D52: 2015-16 | E52: 2016-17
B53: Revenue Requirement | C53: ='Fish River'!C47 -> 9721399.845 | D53: ='Fish River'!D47 -> 10011585.58 | E53: ='Fish River'!E47 -> 10307034.94
B57: Target (%) : 2014-15 to 2016-17 | C57: =C$110 -> 2014-15 | D57: =D$110 -> 2015-16 | E57: =E$110 -> 2016-17
B59: Total Revenue
B60: BULK RAW WATER | C60: =SUM(C61:C62) -> 1 | D60: =SUM(D61:D62) -> 1 | E60: =SUM(E61:E62) -> 1
B61: BULK FILTERED WATER | C61: ='ACCC data inputs'!B33 -> 0.8 | D61: ='ACCC data inputs'!C33 -> 0.8 | E61: ='ACCC data inputs'!D33 -> 0.8
C62: =1-C61 -> 0.2 | D62: =1-D61 -> 0.2 | E62: =1-E61 -> 0.2
B63: BULK RAW WATER
B64: Usage | C64: ='ACCC data inputs'!B35 -> 0.45 | D64: ='ACCC data inputs'!C35 -> 0.45 | E64: ='ACCC data inputs'!D35 -> 0.45
B65: Minimum Annual Quantity (MAQ) access charge | C65: =1-C64 -> 0.55 | D65: =1-D64 -> 0.55 | E65: =1-E64 -> 0.55
B67: BULK FILTERED WATER
B68: Usage | C68: ='ACCC data inputs'!B36 -> 0.4 | D68: ='ACCC data inputs'!C36 -> 0.4 | E68: ='ACCC data inputs'!D36 -> 0.4
B69: Minimum Annual Quantity (MAQ) access charge | C69: =1-C68 -> 0.6 | D69: =1-D68 -> 0.6 | E69: =1-E68 -> 0.6
B71: Usage | C71: =SUM(C72:C73) -> 0.44 | D71: =SUM(D72:D73) -> 0.44 | E71: =SUM(E72:E73) -> 0.44
B72: BULK RAW WATER | C72: =C64*C61 -> 0.36 | D72: =D64*D61 -> 0.36 | E72: =E64*E61 -> 0.36
B73: BULK FILTERED WATER | C73: =C68*C62 -> 0.08 | D73: =D68*D62 -> 0.08 | E73: =E68*E62 -> 0.08
B75: Minimum Annual Quantity (MAQ) access charge | C75: =SUM(C76:C77) -> 0.56 | D75: =SUM(D76:D77) -> 0.56 | E75: =SUM(E76:E77) -> 0.56
B76: BULK RAW WATER | C76: =C65*C61 -> 0.44 | D76: =D65*D61 -> 0.44 | E76: =E65*E61 -> 0.44
B77: BULK FILTERED WATER | C77: =C69*C62 -> 0.12 | D77: =D69*D62 -> 0.12 | E77: =E69*E62 -> 0.12
B81: Forecast Revenue Composition | C81: =C$110 -> 2014-15 | D81: =D$110 -> 2015-16 | E81: =E$110 -> 2016-17
B82: BULK RAW WATER
B83: Minimum Annual Quantity (MAQ) access charge | C83: =C72*C$53 -> 3499703.944 | D83: =D72*D$53 -> 3604170.81 | E83: =E72*E$53 -> 3710532.579
B84: Usage | C84: =C76*C$53 -> 4277415.932 | D84: =D76*D$53 -> 4405097.657 | E84: =E76*E$53 -> 4535095.374
C85: =SUM(C83:C84) -> 7777119.876 | D85: =SUM(D83:D84) -> 8009268.467 | E85: =SUM(E83:E84) -> 8245627.952
B87: BULK FILTERED WATER
B88: Minimum Annual Quantity (MAQ) access charge | C88: =C73*C$53 -> 777711.9876 | D88: =D73*D$53 -> 800926.8467 | E88: =E73*E$53 -> 824562.7952
B89: Usage | C89: =C77*C$53 -> 1166567.981 | D89: =D77*D$53 -> 1201390.27 | E89: =E77*E$53 -> 1236844.193
C90: =SUM(C88:C89) -> 1944279.969 | D90: =SUM(D88:D89) -> 2002317.117 | E90: =SUM(E88:E89) -> 2061406.988
B92: Total | C92: =SUM(C85,C90) -> 9721399.845 | D92: =SUM(D85,D90) -> 10011585.58 | E92: =SUM(E85,E90) -> 10307034.94
B96: Minimum Annual Quantity (MAQ) | C96: 2014-15 | D96: 2015-16 | E96: 2016-17
B97: BULK RAW WATER
B98: - Delta Electricity | C98: ='ACCC data inputs'!G20 -> 8184 | D98: ='ACCC data inputs'!H20 -> 8184 | E98: ='ACCC data inputs'!I20 -> 8184
B99: - Sydney Catchment Authority | C99: ='ACCC data inputs'!G21 -> 3650 | D99: ='ACCC data inputs'!H21 -> 3650 | E99: ='ACCC data inputs'!I21 -> 3650
B100: - Oberon Council | C100: ='ACCC data inputs'!G22 -> 1064 | D100: ='ACCC data inputs'!H22 -> 1064 | E100: ='ACCC data inputs'!I22 -> 1064
B101: - Individual Minor Customers | C101: ='ACCC data inputs'!G23 -> 200 | D101: ='ACCC data inputs'!H23 -> 200 | E101: ='ACCC data inputs'!I23 -> 200
B102: BULK FILTERED WATER
B103: - Lithgow Council | C103: ='ACCC data inputs'!G25 -> 1778 | D103: ='ACCC data inputs'!H25 -> 1778 | E103: ='ACCC data inputs'!I25 -> 1778
B104: - Individual Minor Customers | C104: ='ACCC data inputs'!G26 -> 200 | D104: ='ACCC data inputs'!H26 -> 200 | E104: ='ACCC data inputs'!I26 -> 200
B109: Forecast Tariff Revenue
B110: Forecast Tariff quantities | C110: 2014-15 | D110: 2015-16 | E110: 2016-17
B111: BULK RAW WATER
B112: Number of Minor Customers | C112: ='State Water data inputs'!B$87 -> 74 | D112: ='State Water data inputs'!C$87 -> 0 | E112: ='State Water data inputs'!D$87 -> 0
B114: Usage (ML)
B115: - Delta Electricity | C115: ='State Water data inputs'!B$75 -> 6189.8482 | D115: ='State Water data inputs'!C$75 -> 5929.7982 | E115: ='State Water data inputs'!D$75 -> 5615.7482
B116: - Sydney Catchment Authority | C116: ='State Water data inputs'!B$76 -> 2411.62875 | D116: ='State Water data inputs'!C$76 -> 2224.82875 | E116: ='State Water data inputs'!D$76 -> 2060.17875
B117: - Oberon Council | C117: ='State Water data inputs'!B$77 -> 717.08692 | D117: ='State Water data inputs'!C$77 -> 681.88692 | E117: ='State Water data inputs'!D$77 -> 652.08692
B118: - Individual Minor Customers | C118: ='State Water data inputs'!B$78 -> 52.09287623 | D118: ='State Water data inputs'!C$78 -> 46.22923347 | E118: ='State Water data inputs'!D$78 -> 44.08809423
B120: BULK FILTERED WATER
B121: Number of Minor Customers | C121: ='State Water data inputs'!B$88 -> 208 | D121: ='State Water data inputs'!C$88 -> 0 | E121: ='State Water data inputs'!D$88 -> 0
B123: Usage
B124: - Lithgow Council | C124: ='State Water data inputs'!B$80 -> 985.5005 | D124: ='State Water data inputs'!C$80 -> 881.1005 | E124: ='State Water data inputs'!D$80 -> 807.1005
B125: - Individual Minor Customers | C125: ='State Water data inputs'!B$81 -> 131.8055767 | D125: ='State Water data inputs'!C$81 -> 116.748685 | E125: ='State Water data inputs'!D$81 -> 111.2505837
B127: Tariff Revenue
B128: BULK RAW WATER | C128: =C$110 -> 2014-15 | D128: =D$110 -> 2015-16 | E128: =E$110 -> 2016-17
B129: Raw Water: Major customer Minimum Annual Quantity (MAQ) access charge
B130: Delta
B131: Price $ | C131: =C84/SUM(C132,C136,C140,C145) -> 0.3312539443 | D131: =D84/SUM(D132,D136,D140,D145) -> 0.3415333894 | E131: =E84/SUM(E132,E136,E140,E145) -> 0.3516122945
B132: Quantity (per kL) | C132: =C$98*10^3 -> 8184000 | D132: =D$98*10^3 -> 8184000 | E132: =E$98*10^3 -> 8184000
B133: Revenue $ | C133: =C131*C132 -> 2710982.28 | D133: =D131*D132 -> 2795109.259 | E133: =E131*E132 -> 2877595.018
B134: Sydney Catchment
B135: Price $ | C135: =C$131 -> 0.3312539443 | D135: =D$131 -> 0.3415333894 | E135: =E$131 -> 0.3516122945
B136: Quantity (per kL) | C136: =C$99*10^3 -> 3650000 | D136: =D$99*10^3 -> 3650000 | E136: =E$99*10^3 -> 3650000
B137: Revenue $ | C137: =C135*C136 -> 1209076.897 | D137: =D135*D136 -> 1246596.871 | E137: =E135*E136 -> 1283384.875
B138: Oberon Council
B139: Price $ | C139: =C$131 -> 0.3312539443 | D139: =D$131 -> 0.3415333894 | E139: =E$131 -> 0.3516122945
B140: Quantity (per kL) | C140: =C$100*10^3 -> 1064000 | D140: =D$100*10^3 -> 1064000 | E140: =E$100*10^3 -> 1064000
B141: Revenue $ | C141: =C139*C140 -> 352454.1967 | D141: =D139*D140 -> 363391.5263 | E141: =E139*E140 -> 374115.4813
B143: Raw Water: Individual Minor Customer access charge
B144: Price $ (Annual Service Charge 2014-15 onwards) | C144: =C131*C$101 -> 66.25078886 | D144: =D131*D$101 -> 68.30667788 | E144: =E131*E$101 -> 70.32245889
B145: Quantity (per unit) | C145: =C$101*C112 -> 14800 | D145: =D$101*D112 -> 0 | E145: =E$101*E112 -> 0
B146: Number of Minor Customers | C146: =C112 -> 74 | D146: =D112 -> 0 | E146: =E112 -> 0
B147: Revenue $ | C147: =C144*C146 -> 4902.558375 | D147: =D144*D146 -> 0 | E147: =E144*E146 -> 0 | G147: Check
G148: =C$81 -> 2014-15 | H148: =D$81 -> 2015-16 | I148: =E$81 -> 2016-17
B149: Sub total | C149: =SUM(C133,C137,C141,C147) -> 4277415.932 | D149: =SUM(D133,D137,D141,D147) -> 4405097.657 | E149: =SUM(E133,E137,E141,E147) -> 4535095.374 | G149: =ABS(C149-C$84) -> 0 | H149: =ABS(D149-D$84) -> 0 | I149: =ABS(E149-E$84) -> 0 | J149: =SUM(G149:I149) -> 0
B151: Raw Water: Usage up to MAQ | C151: =C$110 -> 2014-15 | D151: =D$110 -> 2015-16 | E151: =E$110 -> 2016-17
B152: Delta
B153: Price $ | C153: =(C83-C178)/SUM(C154,C158,C162,C167,C172) -> 0.3721564695 | D153: =(D83-D178)/SUM(D154,D158,D162,D167,D172) -> 0.4039722799 | E153: =(E83-E178)/SUM(E154,E158,E162,E167,E172) -> 0.4413504134
B154: Quantity (per kL) | C154: =MIN(C115,C$98)*10^3 -> 6189848.2 | D154: =MIN(D115,D$98)*10^3 -> 5929798.2 | E154: =MIN(E115,E$98)*10^3 -> 5615748.2
B155: Revenue $ | C155: =C153*C154 -> 2303592.053 | D155: =D153*D154 -> 2395474.098 | E155: =E153*E154 -> 2478512.789
B156: Sydney Catchment
B157: Price $ | C157: =C$153 -> 0.3721564695 | D157: =D$153 -> 0.4039722799 | E157: =E$153 -> 0.4413504134
B158: Quantity (per kL) | C158: =MIN(C116,C$99)*10^3 -> 2411628.75 | D158: =MIN(D116,D$99)*10^3 -> 2224828.75 | E158: =MIN(E116,E$99)*10^3 -> 2060178.75
B159: Revenue $ | C159: =C157*C158 -> 897503.2414 | D159: =D157*D158 -> 898769.1425 | E159: =E157*E158 -> 909260.7429
B160: Oberon Council
B161: Price $ | C161: =C$153 -> 0.3721564695 | D161: =D$153 -> 0.4039722799 | E161: =E$153 -> 0.4413504134
B162: Quantity (per kL) | C162: =MIN(C117,C$100)*10^3 -> 717086.92 | D162: =MIN(D117,D$100)*10^3 -> 681886.92 | E162: =MIN(E117,E$100)*10^3 -> 652086.92
B163: Revenue $ | C163: =C161*C162 -> 266868.5365 | D163: =D161*D162 -> 275463.4137 | E163: =E161*E162 -> 287798.8317
B165: Individual Minor Customer tier 1
B166: Price $ | C166: =C$153 -> 0.3721564695 | D166: =D$153 -> 0.4039722799 | E166: =E$153 -> 0.4413504134
B167: Quantity (per kL) | C167: =C$101*C112 -> 14800 | D167: =D$101*D112 -> 0 | E167: =E$101*E112 -> 0
B168: Revenue $ | C168: =C166*C167 -> 5507.915749 | D168: =D166*D167 -> 0 | E168: =E166*E167 -> 0
B170: Individual Minor Customer tier 2
B171: Price $ | C171: =C166 -> 0.3721564695 | D171: =D166 -> 0.4039722799 | E171: =E166 -> 0.4413504134
B172: Quantity (per unit) | C172: =C118*10^3-C167 -> 37292.87623 | D172: =D118*10^3-D167 -> 46229.23347 | E172: =E118*10^3-E167 -> 44088.09423
B173: Revenue $ | C173: =C171*C172 -> 13878.78516 | D173: =D171*D172 -> 18675.32884 | E173: =E171*E172 -> 19458.29861
B175: Raw Water: Individual Minor Customer access charge in excess of deemed MAQ
B176: Price $ | C176: =C$131 -> 0.3312539443 | D176: =D$131 -> 0.3415333894 | E176: =E$131 -> 0.3516122945
B177: Quantity (per unit) | C177: =C118*10^3-C145 -> 37292.87623 | D177: =D118*10^3-D145 -> 46229.23347 | E177: =E118*10^3-E145 -> 44088.09423
B178: Revenue $ | C178: =C176*C177 -> 12353.41234 | D178: =D176*D177 -> 15788.8268 | E178: =E176*E177 -> 15501.91597
B180: Tier 2 usage charge | C180: =SUM(C171,C176) -> 0.7034104138 | D180: =SUM(D171,D176) -> 0.7455056693 | E180: =SUM(E171,E176) -> 0.7929627078
B181: Quantity (kL) | C181: =C177 -> 37292.87623 | D181: =D177 -> 46229.23347 | E181: =E177 -> 44088.09423
B182: Revenue | C182: =C180*C181 -> 26232.1975 | D182: =D180*D181 -> 34464.15564 | E182: =E180*E181 -> 34960.21459 | G182: Check
G183: =C$81 -> 2014-15 | H183: =D$81 -> 2015-16 | I183: =E$81 -> 2016-17
B184: Sub total | C184: =SUM(C155,C159,C163,C168,C182) -> 3499703.944 | D184: =SUM(D155,D159,D163,D168,D182) -> 3604170.81 | E184: =SUM(E155,E159,E163,E168,E182) -> 3710532.579 | G184: =ABS(C184-C$83) -> 0 | H184: =ABS(D184-D$83) -> 4.656612873e-10 | I184: =ABS(E184-E$83) -> 0 | J184: =SUM(G184:I184) -> 4.656612873e-10
B187: Total Raw Water Revenue | C187: =SUM(C149,C184) -> 7777119.876 | D187: =SUM(D149,D184) -> 8009268.467 | E187: =SUM(E149,E184) -> 8245627.952
B192: BULK FILTERED WATER | C192: =C$110 -> 2014-15 | D192: =D$110 -> 2015-16 | E192: =E$110 -> 2016-17
B193: Filtered Water: Minimum Annual Quantity (MAQ)
B194: Lithgow Council
B195: Price $ | C195: =C89/SUM(C196,C200) -> 0.6411123221 | D195: =D89/SUM(D196,D200) -> 0.6756975647 | E195: =E89/SUM(E196,E200) -> 0.6956379037
B196: Quantity (per kL) | C196: =C$103*10^3 -> 1778000 | D196: =D$103*10^3 -> 1778000 | E196: =E$103*10^3 -> 1778000
B197: Revenue $ | C197: =C195*C196 -> 1139897.709 | D197: =D195*D196 -> 1201390.27 | E197: =E195*E196 -> 1236844.193
B198: Filtered Water: Individual Minor Customer access charge
B199: Price $ (Annual Service Charge) | C199: =C195*C$101 -> 128.2224644 | D199: =D195*D$101 -> 135.1395129 | E199: =E195*E$101 -> 139.1275807
B200: Quantity (per kL) | C200: =C$104*C121 -> 41600 | D200: =D$104*D121 -> 0 | E200: =E$104*E121 -> 0
B201: Number of Minor Customers | C201: =C121 -> 208 | D201: =D121 -> 0 | E201: =E121 -> 0
B202: Revenue $ | C202: =C199*C201 -> 26670.2726 | D202: =D199*D201 -> 0 | E202: =E199*E201 -> 0 | G202: Check
G203: =C$81 -> 2014-15 | H203: =D$81 -> 2015-16 | I203: =E$81 -> 2016-17
B204: Sub total | C204: =SUM(C197,C202) -> 1166567.981 | D204: =SUM(D197,D202) -> 1201390.27 | E204: =SUM(E197,E202) -> 1236844.193 | G204: =ABS(C204-C$89) -> 0 | H204: =ABS(D204-D$89) -> 0 | I204: =ABS(E204-E$89) -> 0 | J204: =SUM(G204:I204) -> 0
B206: Usage up to MAQ | C206: =C$110 -> 2014-15 | D206: =D$110 -> 2015-16 | E206: =E$110 -> 2016-17
B207: Lithgow Council
B208: Price $ | C208: =(C88-C223)/SUM(C209,C213,C217) -> 0.6442997992 | D208: =(D88-D223)/SUM(D209,D213,D217) -> 0.7235963665 | E208: =(E88-E223)/SUM(E209,E213,E217) -> 0.8136024291
B209: Quantity (per kL) | C209: =MIN(C124,C$103)*10^3 -> 985500.5 | D209: =MIN(D124,D$103)*10^3 -> 881100.5 | E209: =MIN(E124,E$103)*10^3 -> 807100.5
B210: Revenue $ | C210: =C208*C209 -> 634957.7743 | D210: =D208*D209 -> 637561.1203 | E210: =E208*E209 -> 656658.9273
B211: Individual Minor Customer tier 1
B212: Price $ | C212: =C$208 -> 0.6442997992 | D212: =D$208 -> 0.7235963665 | E212: =E$208 -> 0.8136024291
B213: Quantity (per kL) | C213: =C$104*C121 -> 41600 | D213: =D$104*D121 -> 0 | E213: =E$104*E121 -> 0
B214: Revenue $ | C214: =C212*C213 -> 26802.87165 | D214: =D212*D213 -> 0 | E214: =E212*E213 -> 0
B215: Individual Minor Customer tier 2
B216: Price $ | C216: =C212 -> 0.6442997992 | D216: =D212 -> 0.7235963665 | E216: =E212 -> 0.8136024291
B217: Quantity (per kL) | C217: =C125*10^3-C213 -> 90205.57665 | D217: =D125*10^3-D213 -> 116748.685 | E217: =E125*10^3-E213 -> 111250.5837
B218: Revenue $ | C218: =C216*C217 -> 58119.43493 | D218: =D216*D217 -> 84478.92423 | E218: =E216*E217 -> 90513.74512
B220: FIltered Water: Individual Minor Customer access charge in excess of deemed MAQ
B221: Price $ | C221: =C195 -> 0.6411123221 | D221: =D195 -> 0.6756975647 | E221: =E195 -> 0.6956379037
B222: Quantity (per unit) | C222: =C125*10^3-C200 -> 90205.57665 | D222: =D125*10^3-D200 -> 116748.685 | E222: =E125*10^3-E200 -> 111250.5837
B223: Revenue $ | C223: =C221*C222 -> 57831.90672 | D223: =D221*D222 -> 78886.8021 | E223: =E221*E222 -> 77390.12283
B225: Tier 2 usage charge | C225: =SUM(C216,C221) -> 1.285412121 | D225: =SUM(D216,D221) -> 1.399293931 | E225: =SUM(E216,E221) -> 1.509240333
B226: Quantity (kL) | C226: =C222 -> 90205.57665 | D226: =D222 -> 116748.685 | E226: =E222 -> 111250.5837
B227: Revenue | C227: =C225*C226 -> 115951.3416 | D227: =D225*D226 -> 163365.7263 | E227: =E225*E226 -> 167903.8679 | G227: Check
G228: =C$81 -> 2014-15 | H228: =D$81 -> 2015-16 | I228: =E$81 -> 2016-17
B229: Sub total | C229: =SUM(C210,C214,C227) -> 777711.9876 | D229: =SUM(D210,D214,D227) -> 800926.8467 | E229: =SUM(E210,E214,E227) -> 824562.7952 | G229: =ABS(C229-C$88) -> 0 | H229: =ABS(D229-D$88) -> 0 | I229: =ABS(E229-E$88) -> 0 | J229: =SUM(G229:I229) -> 0
B232: Total Filtered Water Revenue | C232: =SUM(C204,C229) -> 1944279.969 | D232: =SUM(D204,D229) -> 2002317.117 | E232: =SUM(E204,E229) -> 2061406.988
B234: Total Forecast Revenue | C234: =SUM(C187,C232) -> 9721399.845 | D234: =SUM(D187,D232) -> 10011585.58 | E234: =SUM(E187,E232) -> 10307034.94
B235: Check | C235: =ABS(C234-C53) -> 1.862645149e-09 | D235: =ABS(D234-D53) -> 0 | E235: =ABS(E234-E53) -> 0
B241: Estimated Tariff Revenue | C241: 2014-15 | D241: 2015-16 | E241: 2016-17
B242: Estimated Tariff quantities
B243: BULK RAW WATER
B244: Number of Minor Customers | C244: ='State Water data inputs'!F$87 -> 0 | D244: ='State Water data inputs'!G$87 -> 0 | E244: ='State Water data inputs'!H$87 -> 0
B246: Usage (ML)
B247: - Delta Electricity | C247: ='State Water data inputs'!F$75 -> 0 | D247: ='State Water data inputs'!G$75 -> 0 | E247: ='State Water data inputs'!H$75 -> 0
B248: - Sydney Catchment Authority | C248: ='State Water data inputs'!F$76 -> 0 | D248: ='State Water data inputs'!G$76 -> 0 | E248: ='State Water data inputs'!H$76 -> 0
B249: - Oberon Council | C249: ='State Water data inputs'!F$77 -> 0 | D249: ='State Water data inputs'!G$77 -> 0 | E249: ='State Water data inputs'!H$77 -> 0
B250: - Individual Minor Customers | C250: ='State Water data inputs'!F$78 -> 0 | D250: ='State Water data inputs'!G$78 -> 0 | E250: ='State Water data inputs'!H$78 -> 0
B252: BULK FILTERED WATER
B253: Number of Minor Customers | C253: ='State Water data inputs'!F$88 -> 0 | D253: ='State Water data inputs'!G$88 -> 0 | E253: ='State Water data inputs'!H$88 -> 0
B255: Usage
B256: - Lithgow Council | C256: ='State Water data inputs'!F$80 -> 0 | D256: ='State Water data inputs'!G$80 -> 0 | E256: ='State Water data inputs'!H$80 -> 0
B257: - Individual Minor Customers | C257: ='State Water data inputs'!F$81 -> 0 | D257: ='State Water data inputs'!G$81 -> 0 | E257: ='State Water data inputs'!H$81 -> 0
B260: Tariff Revenue
B261: BULK RAW WATER
B262: Raw Water: Major customer Minimum Annual Quantity (MAQ) access charge
B263: Delta
B264: Price $ | C264: =C$131 -> 0.3312539443 | D264: =D$131 -> 0.3415333894 | E264: =E$131 -> 0.3516122945
B265: Quantity (per kL) | C265: =C$98*10^3 -> 8184000 | D265: =D$98*10^3 -> 8184000 | E265: =E$98*10^3 -> 8184000
B266: Revenue $ | C266: =C264*C265 -> 2710982.28 | D266: =D264*D265 -> 2795109.259 | E266: =E264*E265 -> 2877595.018
B267: Sydney Catchment
B268: Price $ | C268: =C$131 -> 0.3312539443 | D268: =D$131 -> 0.3415333894 | E268: =E$131 -> 0.3516122945
B269: Quantity (per kL) | C269: =C$99*10^3 -> 3650000 | D269: =D$99*10^3 -> 3650000 | E269: =E$99*10^3 -> 3650000
B270: Revenue $ | C270: =C268*C269 -> 1209076.897 | D270: =D268*D269 -> 1246596.871 | E270: =E268*E269 -> 1283384.875
B271: Oberon Council
B272: Price $ | C272: =C$131 -> 0.3312539443 | D272: =D$131 -> 0.3415333894 | E272: =E$131 -> 0.3516122945
B273: Quantity (per kL) | C273: =C$100*10^3 -> 1064000 | D273: =D$100*10^3 -> 1064000 | E273: =E$100*10^3 -> 1064000
B274: Revenue $ | C274: =C272*C273 -> 352454.1967 | D274: =D272*D273 -> 363391.5263 | E274: =E272*E273 -> 374115.4813
B276: Raw Water: Individual Minor Customer access charge
B277: Price $ (Annual Service Charge 2014-15 onwards) | C277: =C264*C$101 -> 66.25078886 | D277: =D264*D$101 -> 68.30667788 | E277: =E264*E$101 -> 70.32245889
B278: Quantity (per unit) | C278: =C$101*C244 -> 0 | D278: =D$101*D244 -> 0 | E278: =E$101*E244 -> 0
... 136 more rows
